date,department/service,beneficiary,amount,summary of purpose,category,transaction number,SAP vendor number
01.12.2020,F & C S EXCLUDING CORPORATE BUDGETS,REDACTED PERSONAL DATA,500,SESS,OTHER PAYMENTS FOR CLIENTS,REDACTED,REDACTED
01.12.2020,F & C S EXCLUDING CORPORATE BUDGETS,REDACTED PERSONAL DATA,500,SESS,OTHER PAYMENTS FOR CLIENTS,REDACTED,REDACTED
01.12.2020,F & C S EXCLUDING CORPORATE BUDGETS,REDACTED PERSONAL DATA,500,SESS,OTHER PAYMENTS FOR CLIENTS,REDACTED,REDACTED
01.12.2020,F & C S EXCLUDING CORPORATE BUDGETS,REDACTED PERSONAL DATA,500,SESS,OTHER PAYMENTS FOR CLIENTS,REDACTED,REDACTED
01.12.2020,F & C S EXCLUDING CORPORATE BUDGETS,REDACTED PERSONAL DATA,500,SESS,OTHER PAYMENTS FOR CLIENTS,REDACTED,REDACTED
01.12.2020,F & C S EXCLUDING CORPORATE BUDGETS,REDACTED PERSONAL DATA,500,SESS,OTHER PAYMENTS FOR CLIENTS,REDACTED,REDACTED
01.12.2020,F & C S EXCLUDING CORPORATE BUDGETS,REDACTED PERSONAL DATA,500,SESS,OTHER PAYMENTS FOR CLIENTS,REDACTED,REDACTED
01.12.2020,F & C S EXCLUDING CORPORATE BUDGETS,REDACTED PERSONAL DATA,500,SESS,OTHER PAYMENTS FOR CLIENTS,REDACTED,REDACTED
01.12.2020,F & C S EXCLUDING CORPORATE BUDGETS,REDACTED PERSONAL DATA,500,SESS,OTHER PAYMENTS FOR CLIENTS,REDACTED,REDACTED
01.12.2020,LEISURE DIRECTORATE,NPOWER,472.74,SDM BUDGET,ELECTRICITY,5902445004,1000032342
02.12.2020,ADULT SOCIAL CARE,REDACTED PERSONAL DATA,"1,094.60",DISABILITIES LAC,PAYMENTS TO CARERS,REDACTED,REDACTED
02.12.2020,ADULT SOCIAL CARE,REDACTED PERSONAL DATA,"1,632.00",DISABILITIES LAC,PAYMENTS TO CARERS,REDACTED,REDACTED
02.12.2020,ADULT SOCIAL CARE,REDACTED PERSONAL DATA,756,DISABILITIES LAC,PAYMENTS TO CARERS,REDACTED,REDACTED
02.12.2020,ADULT SOCIAL CARE,REDACTED PERSONAL DATA,756,DISABILITIES LAC,PAYMENTS TO CARERS,REDACTED,REDACTED
02.12.2020,ADULT SOCIAL CARE,BLISSETT CARE LTD,"1,328.29",DISCHARGE TO ACCESS,HOMECARE - C&V,2103182349,1000042627
02.12.2020,ADULT SOCIAL CARE,BLISSETT CARE LTD,508.13,LD LTS 18-64,HOMECARE - C&V,2103182332,1000042627
02.12.2020,ADULT SOCIAL CARE,BLISSETT CARE LTD,499.82,MEM LTS 65+,HOMECARE - C&V,2103182344,1000042627
02.12.2020,ADULT SOCIAL CARE,BLISSETT CARE LTD,732.46,MEM LTS 65+,HOMECARE - C&V,2103182346,1000042627
02.12.2020,ADULT SOCIAL CARE,BLISSETT CARE LTD,"2,258.83",MEM LTS 65+,HOMECARE - C&V,2103182329,1000042627
02.12.2020,ADULT SOCIAL CARE,BLISSETT CARE LTD,251.93,MH LTS 65+,HOMECARE - C&V,2103182343,1000042627
02.12.2020,ADULT SOCIAL CARE,BLISSETT CARE LTD,626.75,MH LTS 65+,HOMECARE - C&V,2103182322,1000042627
02.12.2020,ADULT SOCIAL CARE,BLISSETT CARE LTD,543.62,PHY LTS 18-64,HOMECARE - C&V,2103182348,1000042627
02.12.2020,ADULT SOCIAL CARE,BLISSETT CARE LTD,617.35,PHY LTS 18-64,HOMECARE - C&V,2103182317,1000042627
02.12.2020,ADULT SOCIAL CARE,BLISSETT CARE LTD,771.97,PHY LTS 18-64,HOMECARE - C&V,2103182318,1000042627
02.12.2020,ADULT SOCIAL CARE,BLISSETT CARE LTD,858.27,PHY LTS 18-64,HOMECARE - C&V,2103182330,1000042627
02.12.2020,ADULT SOCIAL CARE,BLISSETT CARE LTD,911.95,PHY LTS 18-64,HOMECARE - C&V,2103182321,1000042627
02.12.2020,ADULT SOCIAL CARE,BLISSETT CARE LTD,"1,068.37",PHY LTS 18-64,HOMECARE - C&V,2103182342,1000042627
02.12.2020,ADULT SOCIAL CARE,BLISSETT CARE LTD,250.01,PHY LTS 65+,HOMECARE - C&V,2103182351,1000042627
02.12.2020,ADULT SOCIAL CARE,BLISSETT CARE LTD,286.09,PHY LTS 65+,HOMECARE - C&V,2103182338,1000042627
02.12.2020,ADULT SOCIAL CARE,BLISSETT CARE LTD,354.94,PHY LTS 65+,HOMECARE - C&V,2103182340,1000042627
02.12.2020,ADULT SOCIAL CARE,BLISSETT CARE LTD,364.14,PHY LTS 65+,HOMECARE - C&V,2103182315,1000042627
02.12.2020,ADULT SOCIAL CARE,BLISSETT CARE LTD,372.42,PHY LTS 65+,HOMECARE - C&V,2103182325,1000042627
02.12.2020,ADULT SOCIAL CARE,BLISSETT CARE LTD,479.52,PHY LTS 65+,HOMECARE - C&V,2103182336,1000042627
02.12.2020,ADULT SOCIAL CARE,BLISSETT CARE LTD,611.23,PHY LTS 65+,HOMECARE - C&V,2103182341,1000042627
02.12.2020,ADULT SOCIAL CARE,BLISSETT CARE LTD,657.49,PHY LTS 65+,HOMECARE - C&V,2103182327,1000042627
02.12.2020,ADULT SOCIAL CARE,BLISSETT CARE LTD,710.01,PHY LTS 65+,HOMECARE - C&V,2103182314,1000042627
02.12.2020,ADULT SOCIAL CARE,BLISSETT CARE LTD,731.75,PHY LTS 65+,HOMECARE - C&V,2103182335,1000042627
02.12.2020,ADULT SOCIAL CARE,BLISSETT CARE LTD,811.25,PHY LTS 65+,HOMECARE - C&V,2103182350,1000042627
02.12.2020,ADULT SOCIAL CARE,BLISSETT CARE LTD,829.2,PHY LTS 65+,HOMECARE - C&V,2103182311,1000042627
02.12.2020,ADULT SOCIAL CARE,BLISSETT CARE LTD,850.31,PHY LTS 65+,HOMECARE - C&V,2103182345,1000042627
02.12.2020,ADULT SOCIAL CARE,BLISSETT CARE LTD,881.54,PHY LTS 65+,HOMECARE - C&V,2103182331,1000042627
02.12.2020,ADULT SOCIAL CARE,BLISSETT CARE LTD,907.21,PHY LTS 65+,HOMECARE - C&V,2103182337,1000042627
02.12.2020,ADULT SOCIAL CARE,BLISSETT CARE LTD,911.25,PHY LTS 65+,HOMECARE - C&V,2103182319,1000042627
02.12.2020,ADULT SOCIAL CARE,BLISSETT CARE LTD,920.29,PHY LTS 65+,HOMECARE - C&V,2103182310,1000042627
02.12.2020,ADULT SOCIAL CARE,BLISSETT CARE LTD,929.13,PHY LTS 65+,HOMECARE - C&V,2103182309,1000042627
02.12.2020,ADULT SOCIAL CARE,BLISSETT CARE LTD,"1,044.91",PHY LTS 65+,HOMECARE - C&V,2103182352,1000042627
02.12.2020,ADULT SOCIAL CARE,BLISSETT CARE LTD,"1,052.40",PHY LTS 65+,HOMECARE - C&V,2103182326,1000042627
02.12.2020,ADULT SOCIAL CARE,BLISSETT CARE LTD,"1,118.28",PHY LTS 65+,HOMECARE - C&V,2103182324,1000042627
02.12.2020,ADULT SOCIAL CARE,BLISSETT CARE LTD,"1,258.05",PHY LTS 65+,HOMECARE - C&V,2103182333,1000042627
02.12.2020,ADULT SOCIAL CARE,BLISSETT CARE LTD,"1,890.30",PHY LTS 65+,HOMECARE - C&V,2103182353,1000042627
02.12.2020,ADULT SOCIAL CARE,BLISSETT CARE LTD,"2,402.80",PHY LTS 65+,HOMECARE - C&V,2103182312,1000042627
02.12.2020,ADULT SOCIAL CARE,BLISSETT CARE LTD,"2,540.65",PHY LTS 65+,HOMECARE - C&V,2103182323,1000042627
02.12.2020,ADULT SOCIAL CARE,BLISSETT CARE LTD,"2,586.15",PHY LTS 65+,HOMECARE - C&V,2103182339,1000042627
02.12.2020,ADULT SOCIAL CARE,BLISSETT CARE LTD,"2,857.26",PHY LTS 65+,HOMECARE - C&V,2103182347,1000042627
02.12.2020,ASSET MANAGEMENT,AVONLINE NETWORK SERVICES LTD,963.53,ENG CONTRACTS (NORTH),TV AERIALS R&M,5902445519,1000068672
02.12.2020,CENTRAL FUNCTIONS,STANBURY BUILDING SERVICES LTD,"2,595.00",COMMERCIAL PROPERTIES,BUILDING R&M,2103180387,3000001967
02.12.2020,CHIEF EXECUTIVE,F M CONWAY LTD,"14,951.85",CAPITAL PS (REGEN),CONSTRUCTION,2103182573,4001384
02.12.2020,CHIEF EXECUTIVE,BRITISH GAS,298.8,CAPITAL PS (REGEN),LAND & BUILDINGS ACQUISITION FEES,5902445526,1000062503
02.12.2020,CHIEF EXECUTIVE,CONWAY AECOM LTD,"26,155.75",CAPITAL PS (REGEN),CONSTRUCTION FEES  - EXTERNAL,5902445462,1000071205
02.12.2020,CHIEF EXECUTIVE,CONWAY AECOM LTD,"27,540.52",CAPITAL PS (REGEN),CONSTRUCTION FEES  - EXTERNAL,5902445464,1000071205
02.12.2020,CHIEF EXECUTIVE,BRAC CONTRACTS,"65,025.21",CAPITAL PS (REGEN),CONSTRUCTION FEES - ARCHITECT,2103181427,3000002025
02.12.2020,CHILDREN AND ADULT,KEYWORTH PRIMARY SCHOOL,"24,580.00",CAPITAL PS (EDUCATION),CONSTRUCTION FEES - INTERNAL,5902445447,5001000041
02.12.2020,CHILDREN AND FAMILIES,REDACTED PERSONAL DATA,465.52,ADOPTION ALLOWANCES,PAYMENTS TO CARERS,REDACTED,REDACTED
02.12.2020,CHILDREN AND FAMILIES,REDACTED PERSONAL DATA,559.06,ADOPTION ALLOWANCES,PAYMENTS TO CARERS,REDACTED,REDACTED
02.12.2020,CHILDREN AND FAMILIES,REDACTED PERSONAL DATA,695.04,ADOPTION ALLOWANCES,PAYMENTS TO CARERS,REDACTED,REDACTED
02.12.2020,CHILDREN AND FAMILIES,REDACTED PERSONAL DATA,375.54,ADOPTION ALLOWANCES,PAYMENTS TO CARERS,REDACTED,REDACTED
02.12.2020,CHILDREN AND FAMILIES,REDACTED PERSONAL DATA,375.54,ADOPTION ALLOWANCES,PAYMENTS TO CARERS,REDACTED,REDACTED
02.12.2020,CHILDREN AND FAMILIES,REDACTED PERSONAL DATA,500,ADOPTION ALLOWANCES,PAYMENTS TO CARERS,REDACTED,REDACTED
02.12.2020,CHILDREN AND FAMILIES,REDACTED PERSONAL DATA,635.34,ADOPTION ALLOWANCES,PAYMENTS TO CARERS,REDACTED,REDACTED
02.12.2020,CHILDREN AND FAMILIES,REDACTED PERSONAL DATA,375.54,ADOPTION ALLOWANCES,PAYMENTS TO CARERS,REDACTED,REDACTED
02.12.2020,CHILDREN AND FAMILIES,REDACTED PERSONAL DATA,653.06,ADOPTION ALLOWANCES,PAYMENTS TO CARERS,REDACTED,REDACTED
02.12.2020,CHILDREN AND FAMILIES,REDACTED PERSONAL DATA,465.54,ADOPTION ALLOWANCES,PAYMENTS TO CARERS,REDACTED,REDACTED
02.12.2020,CHILDREN AND FAMILIES,REDACTED PERSONAL DATA,400.84,ADOPTION ALLOWANCES,PAYMENTS TO CARERS,REDACTED,REDACTED
02.12.2020,CHILDREN AND FAMILIES,REDACTED PERSONAL DATA,375.54,ADOPTION ALLOWANCES,PAYMENTS TO CARERS,REDACTED,REDACTED
02.12.2020,CHILDREN AND FAMILIES,REDACTED PERSONAL DATA,451.8,ADOPTION ALLOWANCES,PAYMENTS TO CARERS,REDACTED,REDACTED
02.12.2020,CHILDREN AND FAMILIES,REDACTED PERSONAL DATA,359.44,ADOPTION ALLOWANCES,PAYMENTS TO CARERS,REDACTED,REDACTED
02.12.2020,CHILDREN AND FAMILIES,REDACTED PERSONAL DATA,319.36,ADOPTION ALLOWANCES,PAYMENTS TO CARERS,REDACTED,REDACTED
02.12.2020,CHILDREN AND FAMILIES,REDACTED PERSONAL DATA,465.48,ADOPTION ALLOWANCES,PAYMENTS TO CARERS,REDACTED,REDACTED
02.12.2020,CHILDREN AND FAMILIES,REDACTED PERSONAL DATA,386,ADOPTION ALLOWANCES,PAYMENTS TO CARERS,REDACTED,REDACTED
02.12.2020,CHILDREN AND FAMILIES,REDACTED PERSONAL DATA,465.54,ADOPTION ALLOWANCES,PAYMENTS TO CARERS,REDACTED,REDACTED
02.12.2020,CHILDREN AND FAMILIES,REDACTED PERSONAL DATA,255.22,ADOPTION ALLOWANCES,PAYMENTS TO CARERS,REDACTED,REDACTED
02.12.2020,CHILDREN AND FAMILIES,REDACTED PERSONAL DATA,269.22,ADOPTION ALLOWANCES,PAYMENTS TO CARERS,REDACTED,REDACTED
02.12.2020,CHILDREN AND FAMILIES,REDACTED PERSONAL DATA,705.24,ADOPTION ALLOWANCES,PAYMENTS TO CARERS,REDACTED,REDACTED
02.12.2020,CHILDREN AND FAMILIES,REDACTED PERSONAL DATA,777.36,ADOPTION ALLOWANCES,PAYMENTS TO CARERS,REDACTED,REDACTED
02.12.2020,CHILDREN AND FAMILIES,REDACTED PERSONAL DATA,512.02,ADOPTION ALLOWANCES,PAYMENTS TO CARERS,REDACTED,REDACTED
02.12.2020,CHILDREN AND FAMILIES,REDACTED PERSONAL DATA,251.12,ADOPTION ALLOWANCES,PAYMENTS TO CARERS,REDACTED,REDACTED
02.12.2020,CHILDREN AND FAMILIES,REDACTED PERSONAL DATA,375.54,ADOPTION ALLOWANCES,PAYMENTS TO CARERS,REDACTED,REDACTED
02.12.2020,CHILDREN AND FAMILIES,REDACTED PERSONAL DATA,375.54,ADOPTION ALLOWANCES,PAYMENTS TO CARERS,REDACTED,REDACTED
02.12.2020,CHILDREN AND FAMILIES,REDACTED PERSONAL DATA,457.14,ADOPTION ALLOWANCES,PAYMENTS TO CARERS,REDACTED,REDACTED
02.12.2020,CHILDREN AND FAMILIES,REDACTED PERSONAL DATA,502,ADOPTION ALLOWANCES,PAYMENTS TO CARERS,REDACTED,REDACTED
02.12.2020,CHILDREN AND FAMILIES,REDACTED PERSONAL DATA,375.54,ADOPTION ALLOWANCES,PAYMENTS TO CARERS,REDACTED,REDACTED
02.12.2020,CHILDREN AND FAMILIES,REDACTED PERSONAL DATA,640.9,ADOPTION ALLOWANCES,PAYMENTS TO CARERS,REDACTED,REDACTED
02.12.2020,CHILDREN AND FAMILIES,REDACTED PERSONAL DATA,382.3,ADOPTION ALLOWANCES,PAYMENTS TO CARERS,REDACTED,REDACTED
02.12.2020,CHILDREN AND FAMILIES,REDACTED PERSONAL DATA,382.3,ADOPTION ALLOWANCES,PAYMENTS TO CARERS,REDACTED,REDACTED
02.12.2020,CHILDREN AND FAMILIES,REDACTED PERSONAL DATA,375.54,ADOPTION ALLOWANCES,PAYMENTS TO CARERS,REDACTED,REDACTED
02.12.2020,CHILDREN AND FAMILIES,REDACTED PERSONAL DATA,278.54,ADOPTION ALLOWANCES,PAYMENTS TO CARERS,REDACTED,REDACTED
02.12.2020,CHILDREN AND FAMILIES,REDACTED PERSONAL DATA,485.22,ADOPTION ALLOWANCES,PAYMENTS TO CARERS,REDACTED,REDACTED
02.12.2020,CHILDREN AND FAMILIES,REDACTED PERSONAL DATA,368.52,ADOPTION ALLOWANCES,PAYMENTS TO CARERS,REDACTED,REDACTED
02.12.2020,CHILDREN AND FAMILIES,REDACTED PERSONAL DATA,252.9,ADOPTION ALLOWANCES,PAYMENTS TO CARERS,REDACTED,REDACTED
02.12.2020,CHILDREN AND FAMILIES,REDACTED PERSONAL DATA,253.56,ADOPTION ALLOWANCES,PAYMENTS TO CARERS,REDACTED,REDACTED
02.12.2020,CHILDREN AND FAMILIES,REDACTED PERSONAL DATA,382.3,ADOPTION ALLOWANCES,PAYMENTS TO CARERS,REDACTED,REDACTED
02.12.2020,CHILDREN AND FAMILIES,REDACTED PERSONAL DATA,382.3,ADOPTION ALLOWANCES,PAYMENTS TO CARERS,REDACTED,REDACTED
02.12.2020,CHILDREN AND FAMILIES,REDACTED PERSONAL DATA,351.42,ADOPTION ALLOWANCES,PAYMENTS TO CARERS,REDACTED,REDACTED
02.12.2020,CHILDREN AND FAMILIES,REDACTED PERSONAL DATA,484.92,ADOPTION ALLOWANCES,PAYMENTS TO CARERS,REDACTED,REDACTED
02.12.2020,CHILDREN AND FAMILIES,REDACTED PERSONAL DATA,530,ADOPTION ALLOWANCES,PAYMENTS TO CARERS,REDACTED,REDACTED
02.12.2020,CHILDREN AND FAMILIES,REDACTED PERSONAL DATA,908,ADOPTION ALLOWANCES,PAYMENTS TO CARERS,REDACTED,REDACTED
02.12.2020,CHILDREN AND FAMILIES,REDACTED PERSONAL DATA,738.32,ADOPTION ALLOWANCES,PAYMENTS TO CARERS,REDACTED,REDACTED
02.12.2020,CHILDREN AND FAMILIES,REDACTED PERSONAL DATA,695.12,ADOPTION ALLOWANCES,PAYMENTS TO CARERS,REDACTED,REDACTED
02.12.2020,CHILDREN AND FAMILIES,REDACTED PERSONAL DATA,293.98,ADOPTION ALLOWANCES,PAYMENTS TO CARERS,REDACTED,REDACTED
02.12.2020,CHILDREN AND FAMILIES,REDACTED PERSONAL DATA,251.94,ADOPTION ALLOWANCES,PAYMENTS TO CARERS,REDACTED,REDACTED
02.12.2020,CHILDREN AND FAMILIES,REDACTED PERSONAL DATA,652.9,ADOPTION ALLOWANCES,PAYMENTS TO CARERS,REDACTED,REDACTED
02.12.2020,CHILDREN AND FAMILIES,REDACTED PERSONAL DATA,652.9,ADOPTION ALLOWANCES,PAYMENTS TO CARERS,REDACTED,REDACTED
02.12.2020,CHILDREN AND FAMILIES,REDACTED PERSONAL DATA,712.3,ADOPTION ALLOWANCES,PAYMENTS TO CARERS,REDACTED,REDACTED
02.12.2020,CHILDREN AND FAMILIES,REDACTED PERSONAL DATA,767.68,ADOPTION ALLOWANCES,PAYMENTS TO CARERS,REDACTED,REDACTED
02.12.2020,CHILDREN AND FAMILIES,REDACTED PERSONAL DATA,510.96,ADOPTION ALLOWANCES,PAYMENTS TO CARERS,REDACTED,REDACTED
02.12.2020,CHILDREN AND FAMILIES,REDACTED PERSONAL DATA,682.3,ADOPTION ALLOWANCES,PAYMENTS TO CARERS,REDACTED,REDACTED
02.12.2020,CHILDREN AND FAMILIES,REDACTED PERSONAL DATA,682.3,ADOPTION ALLOWANCES,PAYMENTS TO CARERS,REDACTED,REDACTED
02.12.2020,CHILDREN AND FAMILIES,REDACTED PERSONAL DATA,588.42,ADOPTION ALLOWANCES,PAYMENTS TO CARERS,REDACTED,REDACTED
02.12.2020,CHILDREN AND FAMILIES,REDACTED PERSONAL DATA,"1,053.20",ADOPTION ALLOWANCES,PAYMENTS TO CARERS,REDACTED,REDACTED
02.12.2020,CHILDREN AND FAMILIES,REDACTED PERSONAL DATA,386,ADOPTION ALLOWANCES,PAYMENTS TO CARERS,REDACTED,REDACTED
02.12.2020,CHILDREN AND FAMILIES,REDACTED PERSONAL DATA,618.6,ADOPTION ALLOWANCES,PAYMENTS TO CARERS,REDACTED,REDACTED
02.12.2020,CHILDREN AND FAMILIES,REDACTED PERSONAL DATA,660,ADOPTION ALLOWANCES,PAYMENTS TO CARERS,REDACTED,REDACTED
02.12.2020,CHILDREN AND FAMILIES,REDACTED PERSONAL DATA,276.1,ADOPTION ALLOWANCES,PAYMENTS TO CARERS,REDACTED,REDACTED
02.12.2020,CHILDREN AND FAMILIES,REDACTED PERSONAL DATA,660,ADOPTION ALLOWANCES,PAYMENTS TO CARERS,REDACTED,REDACTED
02.12.2020,CHILDREN AND FAMILIES,POSTURITE (UK) LTD,373.75,CENTRAL SUPPORT,MEDICAL / HEALTH & SAFETY SERVICES,5902445411,11015468
02.12.2020,CHILDREN AND FAMILIES,NUGENT CARE,"29,970.00",CHILDREN�S RESID,RESIDENTIAL CARE,2103181665,1000066921
02.12.2020,CHILDREN AND FAMILIES,KEYS PCE LTD,"16,700.00",CHILDREN�S RESID,RESIDENTIAL CARE,2103181663,1000080090
02.12.2020,CHILDREN AND FAMILIES,ISWP ASSESSMENT SERVICES LTD,"3,564.80",FAMILY ASSESS RESID,RESIDENTIAL CARE,5902445402,1000083591
02.12.2020,CHILDREN AND FAMILIES,REDACTED PERSONAL DATA,"2,205.00",FAMILY ASSESS RESID,RESIDENTIAL CARE,REDACTED,REDACTED
02.12.2020,CHILDREN AND FAMILIES,REDACTED PERSONAL DATA,300,FE SUPPORT,CLIENT TRANSPORT,REDACTED,REDACTED
02.12.2020,CHILDREN AND FAMILIES,REDACTED PERSONAL DATA,300,FE SUPPORT,CLIENT TRANSPORT,REDACTED,REDACTED
02.12.2020,CHILDREN AND FAMILIES,REDACTED PERSONAL DATA,300,FE SUPPORT,CLIENT TRANSPORT,REDACTED,REDACTED
02.12.2020,CHILDREN AND FAMILIES,REDACTED PERSONAL DATA,300,FE SUPPORT,CLIENT TRANSPORT,REDACTED,REDACTED
02.12.2020,CHILDREN AND FAMILIES,REDACTED PERSONAL DATA,756,FOSTERING ALLOWANCES,PAYMENTS TO CARERS,REDACTED,REDACTED
02.12.2020,CHILDREN AND FAMILIES,REDACTED PERSONAL DATA,854,FOSTERING ALLOWANCES,PAYMENTS TO CARERS,REDACTED,REDACTED
02.12.2020,CHILDREN AND FAMILIES,REDACTED PERSONAL DATA,946,FOSTERING ALLOWANCES,PAYMENTS TO CARERS,REDACTED,REDACTED
02.12.2020,CHILDREN AND FAMILIES,REDACTED PERSONAL DATA,822,FOSTERING ALLOWANCES,PAYMENTS TO CARERS,REDACTED,REDACTED
02.12.2020,CHILDREN AND FAMILIES,REDACTED PERSONAL DATA,854,FOSTERING ALLOWANCES,PAYMENTS TO CARERS,REDACTED,REDACTED
02.12.2020,CHILDREN AND FAMILIES,REDACTED PERSONAL DATA,854,FOSTERING ALLOWANCES,PAYMENTS TO CARERS,REDACTED,REDACTED
02.12.2020,CHILDREN AND FAMILIES,REDACTED PERSONAL DATA,946,FOSTERING ALLOWANCES,PAYMENTS TO CARERS,REDACTED,REDACTED
02.12.2020,CHILDREN AND FAMILIES,REDACTED PERSONAL DATA,946,FOSTERING ALLOWANCES,PAYMENTS TO CARERS,REDACTED,REDACTED
02.12.2020,CHILDREN AND FAMILIES,REDACTED PERSONAL DATA,856,FOSTERING ALLOWANCES,PAYMENTS TO CARERS,REDACTED,REDACTED
02.12.2020,CHILDREN AND FAMILIES,REDACTED PERSONAL DATA,856,FOSTERING ALLOWANCES,PAYMENTS TO CARERS,REDACTED,REDACTED
02.12.2020,CHILDREN AND FAMILIES,REDACTED PERSONAL DATA,976,FOSTERING ALLOWANCES,PAYMENTS TO CARERS,REDACTED,REDACTED
02.12.2020,CHILDREN AND FAMILIES,REDACTED PERSONAL DATA,"1,700.00",FOSTERING ALLOWANCES,PAYMENTS TO CARERS,REDACTED,REDACTED
02.12.2020,CHILDREN AND FAMILIES,REDACTED PERSONAL DATA,854,FOSTERING ALLOWANCES,PAYMENTS TO CARERS,REDACTED,REDACTED
02.12.2020,CHILDREN AND FAMILIES,REDACTED PERSONAL DATA,854,FOSTERING ALLOWANCES,PAYMENTS TO CARERS,REDACTED,REDACTED
02.12.2020,CHILDREN AND FAMILIES,REDACTED PERSONAL DATA,888,FOSTERING ALLOWANCES,PAYMENTS TO CARERS,REDACTED,REDACTED
02.12.2020,CHILDREN AND FAMILIES,REDACTED PERSONAL DATA,924.2,FOSTERING ALLOWANCES,PAYMENTS TO CARERS,REDACTED,REDACTED
02.12.2020,CHILDREN AND FAMILIES,REDACTED PERSONAL DATA,712.3,FOSTERING ALLOWANCES,PAYMENTS TO CARERS,REDACTED,REDACTED
02.12.2020,CHILDREN AND FAMILIES,REDACTED PERSONAL DATA,822,FOSTERING ALLOWANCES,PAYMENTS TO CARERS,REDACTED,REDACTED
02.12.2020,CHILDREN AND FAMILIES,REDACTED PERSONAL DATA,824,FOSTERING ALLOWANCES,PAYMENTS TO CARERS,REDACTED,REDACTED
02.12.2020,CHILDREN AND FAMILIES,REDACTED PERSONAL DATA,756,FOSTERING ALLOWANCES,PAYMENTS TO CARERS,REDACTED,REDACTED
02.12.2020,CHILDREN AND FAMILIES,REDACTED PERSONAL DATA,756,FOSTERING ALLOWANCES,PAYMENTS TO CARERS,REDACTED,REDACTED
02.12.2020,CHILDREN AND FAMILIES,REDACTED PERSONAL DATA,854,FOSTERING ALLOWANCES,PAYMENTS TO CARERS,REDACTED,REDACTED
02.12.2020,CHILDREN AND FAMILIES,REDACTED PERSONAL DATA,-405.43,FOSTERING ALLOWANCES,PAYMENTS TO CARERS,REDACTED,REDACTED
02.12.2020,CHILDREN AND FAMILIES,REDACTED PERSONAL DATA,854,FOSTERING ALLOWANCES,PAYMENTS TO CARERS,REDACTED,REDACTED
02.12.2020,CHILDREN AND FAMILIES,REDACTED PERSONAL DATA,856,FOSTERING ALLOWANCES,PAYMENTS TO CARERS,REDACTED,REDACTED
02.12.2020,CHILDREN AND FAMILIES,REDACTED PERSONAL DATA,854,FOSTERING ALLOWANCES,PAYMENTS TO CARERS,REDACTED,REDACTED
02.12.2020,CHILDREN AND FAMILIES,REDACTED PERSONAL DATA,856,FOSTERING ALLOWANCES,PAYMENTS TO CARERS,REDACTED,REDACTED
02.12.2020,CHILDREN AND FAMILIES,REDACTED PERSONAL DATA,854,FOSTERING ALLOWANCES,PAYMENTS TO CARERS,REDACTED,REDACTED
02.12.2020,CHILDREN AND FAMILIES,REDACTED PERSONAL DATA,946,FOSTERING ALLOWANCES,PAYMENTS TO CARERS,REDACTED,REDACTED
02.12.2020,CHILDREN AND FAMILIES,REDACTED PERSONAL DATA,856,FOSTERING ALLOWANCES,PAYMENTS TO CARERS,REDACTED,REDACTED
02.12.2020,CHILDREN AND FAMILIES,REDACTED PERSONAL DATA,856,FOSTERING ALLOWANCES,PAYMENTS TO CARERS,REDACTED,REDACTED
02.12.2020,CHILDREN AND FAMILIES,REDACTED PERSONAL DATA,856,FOSTERING ALLOWANCES,PAYMENTS TO CARERS,REDACTED,REDACTED
02.12.2020,CHILDREN AND FAMILIES,REDACTED PERSONAL DATA,946,FOSTERING ALLOWANCES,PAYMENTS TO CARERS,REDACTED,REDACTED
02.12.2020,CHILDREN AND FAMILIES,REDACTED PERSONAL DATA,"1,632.00",FOSTERING ALLOWANCES,PAYMENTS TO CARERS,REDACTED,REDACTED
02.12.2020,CHILDREN AND FAMILIES,REDACTED PERSONAL DATA,854,FOSTERING ALLOWANCES,PAYMENTS TO CARERS,REDACTED,REDACTED
02.12.2020,CHILDREN AND FAMILIES,REDACTED PERSONAL DATA,856,FOSTERING ALLOWANCES,PAYMENTS TO CARERS,REDACTED,REDACTED
02.12.2020,CHILDREN AND FAMILIES,REDACTED PERSONAL DATA,946,FOSTERING ALLOWANCES,PAYMENTS TO CARERS,REDACTED,REDACTED
02.12.2020,CHILDREN AND FAMILIES,REDACTED PERSONAL DATA,"1,024.00",FOSTERING ALLOWANCES,PAYMENTS TO CARERS,REDACTED,REDACTED
02.12.2020,CHILDREN AND FAMILIES,REDACTED PERSONAL DATA,856,FOSTERING ALLOWANCES,PAYMENTS TO CARERS,REDACTED,REDACTED
02.12.2020,CHILDREN AND FAMILIES,REDACTED PERSONAL DATA,"1,734.00",FOSTERING ALLOWANCES,PAYMENTS TO CARERS,REDACTED,REDACTED
02.12.2020,CHILDREN AND FAMILIES,REDACTED PERSONAL DATA,856,FOSTERING ALLOWANCES,PAYMENTS TO CARERS,REDACTED,REDACTED
02.12.2020,CHILDREN AND FAMILIES,REDACTED PERSONAL DATA,660,FOSTERING ALLOWANCES,PAYMENTS TO CARERS,REDACTED,REDACTED
02.12.2020,CHILDREN AND FAMILIES,REDACTED PERSONAL DATA,854,FOSTERING ALLOWANCES,PAYMENTS TO CARERS,REDACTED,REDACTED
02.12.2020,CHILDREN AND FAMILIES,REDACTED PERSONAL DATA,854,FOSTERING ALLOWANCES,PAYMENTS TO CARERS,REDACTED,REDACTED
02.12.2020,CHILDREN AND FAMILIES,REDACTED PERSONAL DATA,856,FOSTERING ALLOWANCES,PAYMENTS TO CARERS,REDACTED,REDACTED
02.12.2020,CHILDREN AND FAMILIES,REDACTED PERSONAL DATA,946,FOSTERING ALLOWANCES,PAYMENTS TO CARERS,REDACTED,REDACTED
02.12.2020,CHILDREN AND FAMILIES,REDACTED PERSONAL DATA,706,FOSTERING ALLOWANCES,PAYMENTS TO CARERS,REDACTED,REDACTED
02.12.2020,CHILDREN AND FAMILIES,REDACTED PERSONAL DATA,"1,632.00",FOSTERING ALLOWANCES,PAYMENTS TO CARERS,REDACTED,REDACTED
02.12.2020,CHILDREN AND FAMILIES,REDACTED PERSONAL DATA,"1,632.00",FOSTERING ALLOWANCES,PAYMENTS TO CARERS,REDACTED,REDACTED
02.12.2020,CHILDREN AND FAMILIES,REDACTED PERSONAL DATA,856,FOSTERING ALLOWANCES,PAYMENTS TO CARERS,REDACTED,REDACTED
02.12.2020,CHILDREN AND FAMILIES,REDACTED PERSONAL DATA,854,FOSTERING ALLOWANCES,PAYMENTS TO CARERS,REDACTED,REDACTED
02.12.2020,CHILDREN AND FAMILIES,REDACTED PERSONAL DATA,300,FOSTERING ALLOWANCES,PAYMENTS TO CARERS,REDACTED,REDACTED
02.12.2020,CHILDREN AND FAMILIES,REDACTED PERSONAL DATA,824,FOSTERING ALLOWANCES,PAYMENTS TO CARERS,REDACTED,REDACTED
02.12.2020,CHILDREN AND FAMILIES,REDACTED PERSONAL DATA,912,FOSTERING ALLOWANCES,PAYMENTS TO CARERS,REDACTED,REDACTED
02.12.2020,CHILDREN AND FAMILIES,REDACTED PERSONAL DATA,854,FOSTERING ALLOWANCES,PAYMENTS TO CARERS,REDACTED,REDACTED
02.12.2020,CHILDREN AND FAMILIES,REDACTED PERSONAL DATA,854,FOSTERING ALLOWANCES,PAYMENTS TO CARERS,REDACTED,REDACTED
02.12.2020,CHILDREN AND FAMILIES,REDACTED PERSONAL DATA,854,FOSTERING ALLOWANCES,PAYMENTS TO CARERS,REDACTED,REDACTED
02.12.2020,CHILDREN AND FAMILIES,REDACTED PERSONAL DATA,854,FOSTERING ALLOWANCES,PAYMENTS TO CARERS,REDACTED,REDACTED
02.12.2020,CHILDREN AND FAMILIES,REDACTED PERSONAL DATA,946,FOSTERING ALLOWANCES,PAYMENTS TO CARERS,REDACTED,REDACTED
02.12.2020,CHILDREN AND FAMILIES,REDACTED PERSONAL DATA,706,FOSTERING ALLOWANCES,PAYMENTS TO CARERS,REDACTED,REDACTED
02.12.2020,CHILDREN AND FAMILIES,REDACTED PERSONAL DATA,888,FOSTERING ALLOWANCES,PAYMENTS TO CARERS,REDACTED,REDACTED
02.12.2020,CHILDREN AND FAMILIES,REDACTED PERSONAL DATA,854,FOSTERING ALLOWANCES,PAYMENTS TO CARERS,REDACTED,REDACTED
02.12.2020,CHILDREN AND FAMILIES,REDACTED PERSONAL DATA,854,FOSTERING ALLOWANCES,PAYMENTS TO CARERS,REDACTED,REDACTED
02.12.2020,CHILDREN AND FAMILIES,REDACTED PERSONAL DATA,946,FOSTERING ALLOWANCES,PAYMENTS TO CARERS,REDACTED,REDACTED
02.12.2020,CHILDREN AND FAMILIES,REDACTED PERSONAL DATA,856,FOSTERING ALLOWANCES,PAYMENTS TO CARERS,REDACTED,REDACTED
02.12.2020,CHILDREN AND FAMILIES,REDACTED PERSONAL DATA,946,FOSTERING ALLOWANCES,PAYMENTS TO CARERS,REDACTED,REDACTED
02.12.2020,CHILDREN AND FAMILIES,REDACTED PERSONAL DATA,702,FOSTERING ALLOWANCES,PAYMENTS TO CARERS,REDACTED,REDACTED
02.12.2020,CHILDREN AND FAMILIES,REDACTED PERSONAL DATA,793,FOSTERING ALLOWANCES,PAYMENTS TO CARERS,REDACTED,REDACTED
02.12.2020,CHILDREN AND FAMILIES,REDACTED PERSONAL DATA,856,FOSTERING ALLOWANCES,PAYMENTS TO CARERS,REDACTED,REDACTED
02.12.2020,CHILDREN AND FAMILIES,REDACTED PERSONAL DATA,706,FOSTERING ALLOWANCES,PAYMENTS TO CARERS,REDACTED,REDACTED
02.12.2020,CHILDREN AND FAMILIES,REDACTED PERSONAL DATA,919.72,FOSTERING ALLOWANCES,PAYMENTS TO CARERS,REDACTED,REDACTED
02.12.2020,CHILDREN AND FAMILIES,REDACTED PERSONAL DATA,854,FOSTERING ALLOWANCES,PAYMENTS TO CARERS,REDACTED,REDACTED
02.12.2020,CHILDREN AND FAMILIES,REDACTED PERSONAL DATA,854,FOSTERING ALLOWANCES,PAYMENTS TO CARERS,REDACTED,REDACTED
02.12.2020,CHILDREN AND FAMILIES,REDACTED PERSONAL DATA,854,FOSTERING ALLOWANCES,PAYMENTS TO CARERS,REDACTED,REDACTED
02.12.2020,CHILDREN AND FAMILIES,REDACTED PERSONAL DATA,854,FOSTERING ALLOWANCES,PAYMENTS TO CARERS,REDACTED,REDACTED
02.12.2020,CHILDREN AND FAMILIES,REDACTED PERSONAL DATA,700,FOSTERING ALLOWANCES,ADDITIONAL PAYMENTS TO AGENCIES/CARERS,REDACTED,REDACTED
02.12.2020,CHILDREN AND FAMILIES,REDACTED PERSONAL DATA,854,FOSTERING ALLOWANCES,PAYMENTS TO CARERS,REDACTED,REDACTED
02.12.2020,CHILDREN AND FAMILIES,REDACTED PERSONAL DATA,856,FOSTERING ALLOWANCES,PAYMENTS TO CARERS,REDACTED,REDACTED
02.12.2020,CHILDREN AND FAMILIES,REDACTED PERSONAL DATA,854,FOSTERING ALLOWANCES,PAYMENTS TO CARERS,REDACTED,REDACTED
02.12.2020,CHILDREN AND FAMILIES,REDACTED PERSONAL DATA,856,FOSTERING ALLOWANCES,PAYMENTS TO CARERS,REDACTED,REDACTED
02.12.2020,CHILDREN AND FAMILIES,REDACTED PERSONAL DATA,856,FOSTERING ALLOWANCES,PAYMENTS TO CARERS,REDACTED,REDACTED
02.12.2020,CHILDREN AND FAMILIES,REDACTED PERSONAL DATA,856,FOSTERING ALLOWANCES,PAYMENTS TO CARERS,REDACTED,REDACTED
02.12.2020,CHILDREN AND FAMILIES,REDACTED PERSONAL DATA,706,FOSTERING ALLOWANCES,PAYMENTS TO CARERS,REDACTED,REDACTED
02.12.2020,CHILDREN AND FAMILIES,REDACTED PERSONAL DATA,706,FOSTERING ALLOWANCES,PAYMENTS TO CARERS,REDACTED,REDACTED
02.12.2020,CHILDREN AND FAMILIES,REDACTED PERSONAL DATA,824,FOSTERING ALLOWANCES,PAYMENTS TO CARERS,REDACTED,REDACTED
02.12.2020,CHILDREN AND FAMILIES,REDACTED PERSONAL DATA,854,FOSTERING ALLOWANCES,PAYMENTS TO CARERS,REDACTED,REDACTED
02.12.2020,CHILDREN AND FAMILIES,REDACTED PERSONAL DATA,856,FOSTERING ALLOWANCES,PAYMENTS TO CARERS,REDACTED,REDACTED
02.12.2020,CHILDREN AND FAMILIES,REDACTED PERSONAL DATA,946,FOSTERING ALLOWANCES,PAYMENTS TO CARERS,REDACTED,REDACTED
02.12.2020,CHILDREN AND FAMILIES,REDACTED PERSONAL DATA,756,FOSTERING ALLOWANCES,PAYMENTS TO CARERS,REDACTED,REDACTED
02.12.2020,CHILDREN AND FAMILIES,REDACTED PERSONAL DATA,854,FOSTERING ALLOWANCES,PAYMENTS TO CARERS,REDACTED,REDACTED
02.12.2020,CHILDREN AND FAMILIES,REDACTED PERSONAL DATA,854,FOSTERING ALLOWANCES,PAYMENTS TO CARERS,REDACTED,REDACTED
02.12.2020,CHILDREN AND FAMILIES,REDACTED PERSONAL DATA,676,FOSTERING ALLOWANCES,PAYMENTS TO CARERS,REDACTED,REDACTED
02.12.2020,CHILDREN AND FAMILIES,REDACTED PERSONAL DATA,726,FOSTERING ALLOWANCES,PAYMENTS TO CARERS,REDACTED,REDACTED
02.12.2020,CHILDREN AND FAMILIES,REDACTED PERSONAL DATA,854,FOSTERING ALLOWANCES,PAYMENTS TO CARERS,REDACTED,REDACTED
02.12.2020,CHILDREN AND FAMILIES,REDACTED PERSONAL DATA,854,FOSTERING ALLOWANCES,PAYMENTS TO CARERS,REDACTED,REDACTED
02.12.2020,CHILDREN AND FAMILIES,REDACTED PERSONAL DATA,"1,454.00",FOSTERING ALLOWANCES,PAYMENTS TO CARERS,REDACTED,REDACTED
02.12.2020,CHILDREN AND FAMILIES,REDACTED PERSONAL DATA,411,FOSTERING ALLOWANCES,PAYMENTS TO CARERS,REDACTED,REDACTED
02.12.2020,CHILDREN AND FAMILIES,REDACTED PERSONAL DATA,854,FOSTERING ALLOWANCES,PAYMENTS TO CARERS,REDACTED,REDACTED
02.12.2020,CHILDREN AND FAMILIES,REDACTED PERSONAL DATA,824,FOSTERING ALLOWANCES,PAYMENTS TO CARERS,REDACTED,REDACTED
02.12.2020,CHILDREN AND FAMILIES,REDACTED PERSONAL DATA,706,FOSTERING ALLOWANCES,PAYMENTS TO CARERS,REDACTED,REDACTED
02.12.2020,CHILDREN AND FAMILIES,REDACTED PERSONAL DATA,756,FOSTERING ALLOWANCES,PAYMENTS TO CARERS,REDACTED,REDACTED
02.12.2020,CHILDREN AND FAMILIES,REDACTED PERSONAL DATA,854,FOSTERING ALLOWANCES,PAYMENTS TO CARERS,REDACTED,REDACTED
02.12.2020,CHILDREN AND FAMILIES,REDACTED PERSONAL DATA,706,FOSTERING ALLOWANCES,PAYMENTS TO CARERS,REDACTED,REDACTED
02.12.2020,CHILDREN AND FAMILIES,REDACTED PERSONAL DATA,854,FOSTERING ALLOWANCES,PAYMENTS TO CARERS,REDACTED,REDACTED
02.12.2020,CHILDREN AND FAMILIES,REDACTED PERSONAL DATA,854,FOSTERING ALLOWANCES,PAYMENTS TO CARERS,REDACTED,REDACTED
02.12.2020,CHILDREN AND FAMILIES,REDACTED PERSONAL DATA,824,FOSTERING ALLOWANCES,PAYMENTS TO CARERS,REDACTED,REDACTED
02.12.2020,CHILDREN AND FAMILIES,REDACTED PERSONAL DATA,854,FOSTERING ALLOWANCES,PAYMENTS TO CARERS,REDACTED,REDACTED
02.12.2020,CHILDREN AND FAMILIES,REDACTED PERSONAL DATA,854,FOSTERING ALLOWANCES,PAYMENTS TO CARERS,REDACTED,REDACTED
02.12.2020,CHILDREN AND FAMILIES,REDACTED PERSONAL DATA,824,FOSTERING ALLOWANCES,PAYMENTS TO CARERS,REDACTED,REDACTED
02.12.2020,CHILDREN AND FAMILIES,REDACTED PERSONAL DATA,824,FOSTERING ALLOWANCES,PAYMENTS TO CARERS,REDACTED,REDACTED
02.12.2020,CHILDREN AND FAMILIES,REDACTED PERSONAL DATA,"1,334.80",FOSTERING ALLOWANCES,PAYMENTS TO CARERS,REDACTED,REDACTED
02.12.2020,CHILDREN AND FAMILIES,REDACTED PERSONAL DATA,824,FOSTERING ALLOWANCES,PAYMENTS TO CARERS,REDACTED,REDACTED
02.12.2020,CHILDREN AND FAMILIES,REDACTED PERSONAL DATA,300,FOSTERING ALLOWANCES,ADDITIONAL PAYMENTS TO AGENCIES/CARERS,REDACTED,REDACTED
02.12.2020,CHILDREN AND FAMILIES,REDACTED PERSONAL DATA,946,FOSTERING ALLOWANCES,PAYMENTS TO CARERS,REDACTED,REDACTED
02.12.2020,CHILDREN AND FAMILIES,REDACTED PERSONAL DATA,726,FOSTERING ALLOWANCES,PAYMENTS TO CARERS,REDACTED,REDACTED
02.12.2020,CHILDREN AND FAMILIES,REDACTED PERSONAL DATA,428,FOSTERING ALLOWANCES,PAYMENTS TO CARERS,REDACTED,REDACTED
02.12.2020,CHILDREN AND FAMILIES,REDACTED PERSONAL DATA,946,FOSTERING ALLOWANCES,PAYMENTS TO CARERS,REDACTED,REDACTED
02.12.2020,CHILDREN AND FAMILIES,REDACTED PERSONAL DATA,726,FOSTERING ALLOWANCES,PAYMENTS TO CARERS,REDACTED,REDACTED
02.12.2020,CHILDREN AND FAMILIES,REDACTED PERSONAL DATA,726,FOSTERING ALLOWANCES,PAYMENTS TO CARERS,REDACTED,REDACTED
02.12.2020,CHILDREN AND FAMILIES,REDACTED PERSONAL DATA,-360.86,FOSTERING ALLOWANCES,PAYMENTS TO CARERS,REDACTED,REDACTED
02.12.2020,CHILDREN AND FAMILIES,REDACTED PERSONAL DATA,"1,632.00",FOSTERING ALLOWANCES,PAYMENTS TO CARERS,REDACTED,REDACTED
02.12.2020,CHILDREN AND FAMILIES,REDACTED PERSONAL DATA,776.08,FOSTERING ALLOWANCES,PAYMENTS TO CARERS,REDACTED,REDACTED
02.12.2020,CHILDREN AND FAMILIES,REDACTED PERSONAL DATA,856,FOSTERING ALLOWANCES,PAYMENTS TO CARERS,REDACTED,REDACTED
02.12.2020,CHILDREN AND FAMILIES,REDACTED PERSONAL DATA,946,FOSTERING ALLOWANCES,PAYMENTS TO CARERS,REDACTED,REDACTED
02.12.2020,CHILDREN AND FAMILIES,REDACTED PERSONAL DATA,706,FOSTERING ALLOWANCES,PAYMENTS TO CARERS,REDACTED,REDACTED
02.12.2020,CHILDREN AND FAMILIES,REDACTED PERSONAL DATA,706,FOSTERING ALLOWANCES,PAYMENTS TO CARERS,REDACTED,REDACTED
02.12.2020,CHILDREN AND FAMILIES,REDACTED PERSONAL DATA,756,FOSTERING ALLOWANCES,PAYMENTS TO CARERS,REDACTED,REDACTED
02.12.2020,CHILDREN AND FAMILIES,REDACTED PERSONAL DATA,706,FOSTERING ALLOWANCES,PAYMENTS TO CARERS,REDACTED,REDACTED
02.12.2020,CHILDREN AND FAMILIES,REDACTED PERSONAL DATA,822,FOSTERING ALLOWANCES,PAYMENTS TO CARERS,REDACTED,REDACTED
02.12.2020,CHILDREN AND FAMILIES,REDACTED PERSONAL DATA,854,FOSTERING ALLOWANCES,PAYMENTS TO CARERS,REDACTED,REDACTED
02.12.2020,CHILDREN AND FAMILIES,REDACTED PERSONAL DATA,822,FOSTERING ALLOWANCES,PAYMENTS TO CARERS,REDACTED,REDACTED
02.12.2020,CHILDREN AND FAMILIES,REDACTED PERSONAL DATA,"1,016.00",FOSTERING ALLOWANCES,PAYMENTS TO CARERS,REDACTED,REDACTED
02.12.2020,CHILDREN AND FAMILIES,REDACTED PERSONAL DATA,300,FOSTERING ALLOWANCES,ADDITIONAL PAYMENTS TO AGENCIES/CARERS,REDACTED,REDACTED
02.12.2020,CHILDREN AND FAMILIES,REDACTED PERSONAL DATA,756,FOSTERING ALLOWANCES,PAYMENTS TO CARERS,REDACTED,REDACTED
02.12.2020,CHILDREN AND FAMILIES,REDACTED PERSONAL DATA,726,FOSTERING ALLOWANCES,PAYMENTS TO CARERS,REDACTED,REDACTED
02.12.2020,CHILDREN AND FAMILIES,REDACTED PERSONAL DATA,856,FOSTERING ALLOWANCES,PAYMENTS TO CARERS,REDACTED,REDACTED
02.12.2020,CHILDREN AND FAMILIES,REDACTED PERSONAL DATA,856,FOSTERING ALLOWANCES,PAYMENTS TO CARERS,REDACTED,REDACTED
02.12.2020,CHILDREN AND FAMILIES,REDACTED PERSONAL DATA,824,FOSTERING ALLOWANCES,PAYMENTS TO CARERS,REDACTED,REDACTED
02.12.2020,CHILDREN AND FAMILIES,REDACTED PERSONAL DATA,912,FOSTERING ALLOWANCES,PAYMENTS TO CARERS,REDACTED,REDACTED
02.12.2020,CHILDREN AND FAMILIES,REDACTED PERSONAL DATA,726,FOSTERING ALLOWANCES,PAYMENTS TO CARERS,REDACTED,REDACTED
02.12.2020,CHILDREN AND FAMILIES,REDACTED PERSONAL DATA,824,FOSTERING ALLOWANCES,PAYMENTS TO CARERS,REDACTED,REDACTED
02.12.2020,CHILDREN AND FAMILIES,REDACTED PERSONAL DATA,676,FOSTERING ALLOWANCES,PAYMENTS TO CARERS,REDACTED,REDACTED
02.12.2020,CHILDREN AND FAMILIES,REDACTED PERSONAL DATA,726,FOSTERING ALLOWANCES,PAYMENTS TO CARERS,REDACTED,REDACTED
02.12.2020,CHILDREN AND FAMILIES,REDACTED PERSONAL DATA,912,FRIENDS &FAMILY FOST,PAYMENTS TO CARERS,REDACTED,REDACTED
02.12.2020,CHILDREN AND FAMILIES,REDACTED PERSONAL DATA,348,FRIENDS &FAMILY FOST,PAYMENTS TO CARERS,REDACTED,REDACTED
02.12.2020,CHILDREN AND FAMILIES,REDACTED PERSONAL DATA,476.08,FRIENDS &FAMILY FOST,PAYMENTS TO CARERS,REDACTED,REDACTED
02.12.2020,CHILDREN AND FAMILIES,REDACTED PERSONAL DATA,900,FRIENDS &FAMILY FOST,PAYMENTS TO CARERS,REDACTED,REDACTED
02.12.2020,CHILDREN AND FAMILIES,REDACTED PERSONAL DATA,824,FRIENDS &FAMILY FOST,PAYMENTS TO CARERS,REDACTED,REDACTED
02.12.2020,CHILDREN AND FAMILIES,REDACTED PERSONAL DATA,824,FRIENDS &FAMILY FOST,PAYMENTS TO CARERS,REDACTED,REDACTED
02.12.2020,CHILDREN AND FAMILIES,REDACTED PERSONAL DATA,822,FRIENDS &FAMILY FOST,PAYMENTS TO CARERS,REDACTED,REDACTED
02.12.2020,CHILDREN AND FAMILIES,REDACTED PERSONAL DATA,716,FRIENDS &FAMILY FOST,PAYMENTS TO CARERS,REDACTED,REDACTED
02.12.2020,CHILDREN AND FAMILIES,REDACTED PERSONAL DATA,824,FRIENDS &FAMILY FOST,PAYMENTS TO CARERS,REDACTED,REDACTED
02.12.2020,CHILDREN AND FAMILIES,REDACTED PERSONAL DATA,824,FRIENDS &FAMILY FOST,PAYMENTS TO CARERS,REDACTED,REDACTED
02.12.2020,CHILDREN AND FAMILIES,REDACTED PERSONAL DATA,300,FRIENDS &FAMILY FOST,ADDITIONAL PAYMENTS TO AGENCIES/CARERS,REDACTED,REDACTED
02.12.2020,CHILDREN AND FAMILIES,REDACTED PERSONAL DATA,824,FRIENDS &FAMILY FOST,PAYMENTS TO CARERS,REDACTED,REDACTED
02.12.2020,CHILDREN AND FAMILIES,REDACTED PERSONAL DATA,300,FRIENDS &FAMILY FOST,OTHER PAYMENTS FOR CLIENTS,REDACTED,REDACTED
02.12.2020,CHILDREN AND FAMILIES,REDACTED PERSONAL DATA,716,FRIENDS &FAMILY FOST,PAYMENTS TO CARERS,REDACTED,REDACTED
02.12.2020,CHILDREN AND FAMILIES,REDACTED PERSONAL DATA,824,FRIENDS &FAMILY FOST,PAYMENTS TO CARERS,REDACTED,REDACTED
02.12.2020,CHILDREN AND FAMILIES,REDACTED PERSONAL DATA,822,FRIENDS &FAMILY FOST,PAYMENTS TO CARERS,REDACTED,REDACTED
02.12.2020,CHILDREN AND FAMILIES,REDACTED PERSONAL DATA,854,FRIENDS &FAMILY FOST,PAYMENTS TO CARERS,REDACTED,REDACTED
02.12.2020,CHILDREN AND FAMILIES,REDACTED PERSONAL DATA,854,FRIENDS &FAMILY FOST,PAYMENTS TO CARERS,REDACTED,REDACTED
02.12.2020,CHILDREN AND FAMILIES,REDACTED PERSONAL DATA,726,FRIENDS &FAMILY FOST,PAYMENTS TO CARERS,REDACTED,REDACTED
02.12.2020,CHILDREN AND FAMILIES,REDACTED PERSONAL DATA,824,FRIENDS &FAMILY FOST,PAYMENTS TO CARERS,REDACTED,REDACTED
02.12.2020,CHILDREN AND FAMILIES,REDACTED PERSONAL DATA,310,FRIENDS &FAMILY FOST,PAYMENTS TO CARERS,REDACTED,REDACTED
02.12.2020,CHILDREN AND FAMILIES,REDACTED PERSONAL DATA,394,FRIENDS &FAMILY FOST,PAYMENTS TO CARERS,REDACTED,REDACTED
02.12.2020,CHILDREN AND FAMILIES,REDACTED PERSONAL DATA,394,FRIENDS &FAMILY FOST,PAYMENTS TO CARERS,REDACTED,REDACTED
02.12.2020,CHILDREN AND FAMILIES,REDACTED PERSONAL DATA,824,FRIENDS &FAMILY FOST,PAYMENTS TO CARERS,REDACTED,REDACTED
02.12.2020,CHILDREN AND FAMILIES,REDACTED PERSONAL DATA,726,FRIENDS &FAMILY FOST,PAYMENTS TO CARERS,REDACTED,REDACTED
02.12.2020,CHILDREN AND FAMILIES,REDACTED PERSONAL DATA,824,FRIENDS &FAMILY FOST,PAYMENTS TO CARERS,REDACTED,REDACTED
02.12.2020,CHILDREN AND FAMILIES,REDACTED PERSONAL DATA,726,FRIENDS &FAMILY FOST,PAYMENTS TO CARERS,REDACTED,REDACTED
02.12.2020,CHILDREN AND FAMILIES,REDACTED PERSONAL DATA,726,FRIENDS &FAMILY FOST,PAYMENTS TO CARERS,REDACTED,REDACTED
02.12.2020,CHILDREN AND FAMILIES,REDACTED PERSONAL DATA,824,FRIENDS &FAMILY FOST,PAYMENTS TO CARERS,REDACTED,REDACTED
02.12.2020,CHILDREN AND FAMILIES,REDACTED PERSONAL DATA,666,FRIENDS &FAMILY FOST,PAYMENTS TO CARERS,REDACTED,REDACTED
02.12.2020,CHILDREN AND FAMILIES,REDACTED PERSONAL DATA,462,FRIENDS &FAMILY FOST,PAYMENTS TO CARERS,REDACTED,REDACTED
02.12.2020,CHILDREN AND FAMILIES,REDACTED PERSONAL DATA,394,FRIENDS &FAMILY FOST,PAYMENTS TO CARERS,REDACTED,REDACTED
02.12.2020,CHILDREN AND FAMILIES,REDACTED PERSONAL DATA,912,FRIENDS &FAMILY FOST,PAYMENTS TO CARERS,REDACTED,REDACTED
02.12.2020,CHILDREN AND FAMILIES,REDACTED PERSONAL DATA,824,FRIENDS &FAMILY FOST,PAYMENTS TO CARERS,REDACTED,REDACTED
02.12.2020,CHILDREN AND FAMILIES,REDACTED PERSONAL DATA,400,FRIENDS &FAMILY FOST,ADDITIONAL PAYMENTS TO AGENCIES/CARERS,REDACTED,REDACTED
02.12.2020,CHILDREN AND FAMILIES,REDACTED PERSONAL DATA,824,FRIENDS &FAMILY FOST,PAYMENTS TO CARERS,REDACTED,REDACTED
02.12.2020,CHILDREN AND FAMILIES,REDACTED PERSONAL DATA,824,FRIENDS &FAMILY FOST,PAYMENTS TO CARERS,REDACTED,REDACTED
02.12.2020,CHILDREN AND FAMILIES,REDACTED PERSONAL DATA,726,FRIENDS &FAMILY FOST,PAYMENTS TO CARERS,REDACTED,REDACTED
02.12.2020,CHILDREN AND FAMILIES,REDACTED PERSONAL DATA,824,FRIENDS &FAMILY FOST,PAYMENTS TO CARERS,REDACTED,REDACTED
02.12.2020,CHILDREN AND FAMILIES,REDACTED PERSONAL DATA,676,FRIENDS &FAMILY FOST,PAYMENTS TO CARERS,REDACTED,REDACTED
02.12.2020,CHILDREN AND FAMILIES,REDACTED PERSONAL DATA,666,FRIENDS &FAMILY FOST,PAYMENTS TO CARERS,REDACTED,REDACTED
02.12.2020,CHILDREN AND FAMILIES,REDACTED PERSONAL DATA,824,FRIENDS &FAMILY FOST,PAYMENTS TO CARERS,REDACTED,REDACTED
02.12.2020,CHILDREN AND FAMILIES,REDACTED PERSONAL DATA,676,FRIENDS &FAMILY FOST,PAYMENTS TO CARERS,REDACTED,REDACTED
02.12.2020,CHILDREN AND FAMILIES,REDACTED PERSONAL DATA,726,FRIENDS &FAMILY FOST,PAYMENTS TO CARERS,REDACTED,REDACTED
02.12.2020,CHILDREN AND FAMILIES,REDACTED PERSONAL DATA,824,FRIENDS &FAMILY FOST,PAYMENTS TO CARERS,REDACTED,REDACTED
02.12.2020,CHILDREN AND FAMILIES,REDACTED PERSONAL DATA,824,FRIENDS &FAMILY FOST,PAYMENTS TO CARERS,REDACTED,REDACTED
02.12.2020,CHILDREN AND FAMILIES,REDACTED PERSONAL DATA,394,FRIENDS &FAMILY FOST,PAYMENTS TO CARERS,REDACTED,REDACTED
02.12.2020,CHILDREN AND FAMILIES,REDACTED PERSONAL DATA,418,FRIENDS &FAMILY FOST,PAYMENTS TO CARERS,REDACTED,REDACTED
02.12.2020,CHILDREN AND FAMILIES,REDACTED PERSONAL DATA,894,FRIENDS &FAMILY FOST,ADDITIONAL PAYMENTS TO AGENCIES/CARERS,REDACTED,REDACTED
02.12.2020,CHILDREN AND FAMILIES,REDACTED PERSONAL DATA,304,FRIENDS &FAMILY FOST,PAYMENTS TO CARERS,REDACTED,REDACTED
02.12.2020,CHILDREN AND FAMILIES,REDACTED PERSONAL DATA,462,FRIENDS &FAMILY FOST,PAYMENTS TO CARERS,REDACTED,REDACTED
02.12.2020,CHILDREN AND FAMILIES,REDACTED PERSONAL DATA,310,FRIENDS &FAMILY FOST,PAYMENTS TO CARERS,REDACTED,REDACTED
02.12.2020,CHILDREN AND FAMILIES,REDACTED PERSONAL DATA,310,FRIENDS &FAMILY FOST,PAYMENTS TO CARERS,REDACTED,REDACTED
02.12.2020,CHILDREN AND FAMILIES,REDACTED PERSONAL DATA,348,FRIENDS &FAMILY FOST,PAYMENTS TO CARERS,REDACTED,REDACTED
02.12.2020,CHILDREN AND FAMILIES,REDACTED PERSONAL DATA,348,FRIENDS &FAMILY FOST,PAYMENTS TO CARERS,REDACTED,REDACTED
02.12.2020,CHILDREN AND FAMILIES,REDACTED PERSONAL DATA,342,FRIENDS &FAMILY FOST,PAYMENTS TO CARERS,REDACTED,REDACTED
02.12.2020,CHILDREN AND FAMILIES,REDACTED PERSONAL DATA,394,FRIENDS &FAMILY FOST,PAYMENTS TO CARERS,REDACTED,REDACTED
02.12.2020,CHILDREN AND FAMILIES,REDACTED PERSONAL DATA,348,FRIENDS &FAMILY FOST,PAYMENTS TO CARERS,REDACTED,REDACTED
02.12.2020,CHILDREN AND FAMILIES,REDACTED PERSONAL DATA,348,FRIENDS &FAMILY FOST,PAYMENTS TO CARERS,REDACTED,REDACTED
02.12.2020,CHILDREN AND FAMILIES,REDACTED PERSONAL DATA,348,FRIENDS &FAMILY FOST,PAYMENTS TO CARERS,REDACTED,REDACTED
02.12.2020,CHILDREN AND FAMILIES,REDACTED PERSONAL DATA,348,FRIENDS &FAMILY FOST,PAYMENTS TO CARERS,REDACTED,REDACTED
02.12.2020,CHILDREN AND FAMILIES,REDACTED PERSONAL DATA,394,FRIENDS &FAMILY FOST,PAYMENTS TO CARERS,REDACTED,REDACTED
02.12.2020,CHILDREN AND FAMILIES,REDACTED PERSONAL DATA,310,FRIENDS &FAMILY FOST,PAYMENTS TO CARERS,REDACTED,REDACTED
02.12.2020,CHILDREN AND FAMILIES,REDACTED PERSONAL DATA,462,FRIENDS &FAMILY FOST,PAYMENTS TO CARERS,REDACTED,REDACTED
02.12.2020,CHILDREN AND FAMILIES,REDACTED PERSONAL DATA,300,LEAVING CARE GRANT,OTHER PAYMENTS FOR CLIENTS,REDACTED,REDACTED
02.12.2020,CHILDREN AND FAMILIES,REDACTED PERSONAL DATA,"2,000.00",LEAVING CARE GRANT,OTHER PAYMENTS FOR CLIENTS,REDACTED,REDACTED
02.12.2020,CHILDREN AND FAMILIES,REDACTED PERSONAL DATA,667.69,SEMI-IND CARELEAVERS,OTHER PAYMENTS FOR CLIENTS,REDACTED,REDACTED
02.12.2020,CHILDREN AND FAMILIES,REDACTED PERSONAL DATA,280,SEMI-IND CARELEAVERS,OTHER PAYMENTS FOR CLIENTS,REDACTED,REDACTED
02.12.2020,CHILDREN AND FAMILIES,REDACTED PERSONAL DATA,500,SEMI-IND LAC 16-17,OTHER PAYMENTS FOR CLIENTS,REDACTED,REDACTED
02.12.2020,CHILDREN AND FAMILIES,REDACTED PERSONAL DATA,388.04,SPECIAL GUARDIANSHIP,PAYMENTS TO CARERS,REDACTED,REDACTED
02.12.2020,CHILDREN AND FAMILIES,REDACTED PERSONAL DATA,342.45,SPECIAL GUARDIANSHIP,PAYMENTS TO CARERS,REDACTED,REDACTED
02.12.2020,CHILDREN AND FAMILIES,REDACTED PERSONAL DATA,389.34,SPECIAL GUARDIANSHIP,PAYMENTS TO CARERS,REDACTED,REDACTED
02.12.2020,CHILDREN AND FAMILIES,REDACTED PERSONAL DATA,356.15,SPECIAL GUARDIANSHIP,PAYMENTS TO CARERS,REDACTED,REDACTED
02.12.2020,CHILDREN AND FAMILIES,REDACTED PERSONAL DATA,403.04,SPECIAL GUARDIANSHIP,PAYMENTS TO CARERS,REDACTED,REDACTED
02.12.2020,CHILDREN AND FAMILIES,REDACTED PERSONAL DATA,343.05,SPECIAL GUARDIANSHIP,PAYMENTS TO CARERS,REDACTED,REDACTED
02.12.2020,CHILDREN AND FAMILIES,REDACTED PERSONAL DATA,525,SPECIAL GUARDIANSHIP,PAYMENTS TO CARERS,REDACTED,REDACTED
02.12.2020,CHILDREN AND FAMILIES,REDACTED PERSONAL DATA,525,SPECIAL GUARDIANSHIP,PAYMENTS TO CARERS,REDACTED,REDACTED
02.12.2020,CHILDREN AND FAMILIES,REDACTED PERSONAL DATA,"2,211.41",SPECIAL GUARDIANSHIP,PAYMENTS TO CARERS,REDACTED,REDACTED
02.12.2020,CHILDREN AND FAMILIES,REDACTED PERSONAL DATA,395,SPECIAL GUARDIANSHIP,PAYMENTS TO CARERS,REDACTED,REDACTED
02.12.2020,CHILDREN AND FAMILIES,REDACTED PERSONAL DATA,341.15,SPECIAL GUARDIANSHIP,PAYMENTS TO CARERS,REDACTED,REDACTED
02.12.2020,CHILDREN AND FAMILIES,REDACTED PERSONAL DATA,535.62,SPECIAL GUARDIANSHIP,PAYMENTS TO CARERS,REDACTED,REDACTED
02.12.2020,CHILDREN AND FAMILIES,REDACTED PERSONAL DATA,500,STAYPUT- FOST CARERS,PAYMENTS TO CARERS,REDACTED,REDACTED
02.12.2020,CHILDREN AND FAMILIES,REDACTED PERSONAL DATA,500,STAYPUT- FOST CARERS,PAYMENTS TO CARERS,REDACTED,REDACTED
02.12.2020,CHILDREN AND FAMILIES,REDACTED PERSONAL DATA,500,STAYPUT- FOST CARERS,PAYMENTS TO CARERS,REDACTED,REDACTED
02.12.2020,CHILDREN AND FAMILIES,REDACTED PERSONAL DATA,500,STAYPUT- FOST CARERS,PAYMENTS TO CARERS,REDACTED,REDACTED
02.12.2020,CHILDREN AND FAMILIES,REDACTED PERSONAL DATA,500,STAYPUT- FOST CARERS,PAYMENTS TO CARERS,REDACTED,REDACTED
02.12.2020,CHILDREN AND FAMILIES,REDACTED PERSONAL DATA,500,STAYPUT- FOST CARERS,PAYMENTS TO CARERS,REDACTED,REDACTED
02.12.2020,CHILDREN AND FAMILIES,REDACTED PERSONAL DATA,500,STAYPUT- FOST CARERS,PAYMENTS TO CARERS,REDACTED,REDACTED
02.12.2020,CHILDREN AND FAMILIES,REDACTED PERSONAL DATA,832,STAYPUT- FOST CARERS,PAYMENTS TO CARERS,REDACTED,REDACTED
02.12.2020,CHILDREN AND FAMILIES,REDACTED PERSONAL DATA,500,STAYPUT- FOST CARERS,PAYMENTS TO CARERS,REDACTED,REDACTED
02.12.2020,CHILDREN AND FAMILIES,REDACTED PERSONAL DATA,500,STAYPUT- FOST CARERS,PAYMENTS TO CARERS,REDACTED,REDACTED
02.12.2020,CHILDREN AND FAMILIES,REDACTED PERSONAL DATA,500,STAYPUT- FOST CARERS,PAYMENTS TO CARERS,REDACTED,REDACTED
02.12.2020,CHILDREN AND FAMILIES,REDACTED PERSONAL DATA,500,STAYPUT- FOST CARERS,PAYMENTS TO CARERS,REDACTED,REDACTED
02.12.2020,CHILDREN AND FAMILIES,REDACTED PERSONAL DATA,500,STAYPUT- FOST CARERS,PAYMENTS TO CARERS,REDACTED,REDACTED
02.12.2020,CHILDREN AND FAMILIES,REDACTED PERSONAL DATA,500,STAYPUT- FOST CARERS,PAYMENTS TO CARERS,REDACTED,REDACTED
02.12.2020,CHILDREN AND FAMILIES,REDACTED PERSONAL DATA,500,STAYPUT- FOST CARERS,PAYMENTS TO CARERS,REDACTED,REDACTED
02.12.2020,CHILDREN AND FAMILIES,REDACTED PERSONAL DATA,500,STAYPUT- FOST CARERS,PAYMENTS TO CARERS,REDACTED,REDACTED
02.12.2020,CHILDREN AND FAMILIES,REDACTED PERSONAL DATA,500,STAYPUT- FOST CARERS,PAYMENTS TO CARERS,REDACTED,REDACTED
02.12.2020,CHILDREN AND FAMILIES,REDACTED PERSONAL DATA,500,STAYPUT- FOST CARERS,PAYMENTS TO CARERS,REDACTED,REDACTED
02.12.2020,CHILDREN AND FAMILIES,REDACTED PERSONAL DATA,500,STAYPUT- FOST CARERS,PAYMENTS TO CARERS,REDACTED,REDACTED
02.12.2020,CHILDREN AND FAMILIES,REDACTED PERSONAL DATA,500,STAYPUT- FOST CARERS,PAYMENTS TO CARERS,REDACTED,REDACTED
02.12.2020,CHILDREN AND FAMILIES,REDACTED PERSONAL DATA,700,STAYPUT- FOST CARERS,PAYMENTS TO CARERS,REDACTED,REDACTED
02.12.2020,CHILDREN AND FAMILIES,REDACTED PERSONAL DATA,500,STAYPUT- FOST CARERS,PAYMENTS TO CARERS,REDACTED,REDACTED
02.12.2020,CHILDREN AND FAMILIES,REDACTED PERSONAL DATA,500,STAYPUT- FOST CARERS,PAYMENTS TO CARERS,REDACTED,REDACTED
02.12.2020,CHILDREN AND FAMILIES,REDACTED PERSONAL DATA,500,STAYPUT- FOST CARERS,PAYMENTS TO CARERS,REDACTED,REDACTED
02.12.2020,CHILDREN AND FAMILIES,REDACTED PERSONAL DATA,500,STAYPUT- FOST CARERS,PAYMENTS TO CARERS,REDACTED,REDACTED
02.12.2020,CHILDREN AND FAMILIES,REDACTED PERSONAL DATA,852,STAYPUT- FOST CARERS,PAYMENTS TO CARERS,REDACTED,REDACTED
02.12.2020,CHILDREN AND FAMILIES,REDACTED PERSONAL DATA,500,STAYPUT- FOST CARERS,PAYMENTS TO CARERS,REDACTED,REDACTED
02.12.2020,CHILDREN AND FAMILIES,REDACTED PERSONAL DATA,500,STAYPUT- FOST CARERS,PAYMENTS TO CARERS,REDACTED,REDACTED
02.12.2020,CHILDREN AND FAMILIES,REDACTED PERSONAL DATA,500,STAYPUT- FOST CARERS,PAYMENTS TO CARERS,REDACTED,REDACTED
02.12.2020,CHILDREN AND FAMILIES,REDACTED PERSONAL DATA,500,STAYPUT- FOST CARERS,PAYMENTS TO CARERS,REDACTED,REDACTED
02.12.2020,CHILDREN AND FAMILIES,REDACTED PERSONAL DATA,265.4,STAYPUT- FOST CARERS,PAYMENTS TO CARERS,REDACTED,REDACTED
02.12.2020,CHILDREN AND FAMILIES,REDACTED PERSONAL DATA,500,STAYPUT- FOST CARERS,PAYMENTS TO CARERS,REDACTED,REDACTED
02.12.2020,CHILDREN AND FAMILIES,REDACTED PERSONAL DATA,500,STAYPUT- FOST CARERS,PAYMENTS TO CARERS,REDACTED,REDACTED
02.12.2020,CHILDREN AND FAMILIES,REDACTED PERSONAL DATA,832,STAYPUT- FOST CARERS,PAYMENTS TO CARERS,REDACTED,REDACTED
02.12.2020,CHILDREN AND FAMILIES,REDACTED PERSONAL DATA,784,STAYPUT- FOST CARERS,PAYMENTS TO CARERS,REDACTED,REDACTED
02.12.2020,CHILDREN AND FAMILIES,REDACTED PERSONAL DATA,"1,178.58",STAYPUT- FOST CARERS,PAYMENTS TO CARERS,REDACTED,REDACTED
02.12.2020,CHILDREN AND FAMILIES,REDACTED PERSONAL DATA,430,STAYPUT- FOST CARERS,PAYMENTS TO CARERS,REDACTED,REDACTED
02.12.2020,CHILDREN AND FAMILIES,REDACTED PERSONAL DATA,500,STAYPUT- FOST CARERS,PAYMENTS TO CARERS,REDACTED,REDACTED
02.12.2020,CHILDREN AND FAMILIES,REDACTED PERSONAL DATA,700,STAYPUT- FOST CARERS,PAYMENTS TO CARERS,REDACTED,REDACTED
02.12.2020,CHILDREN AND FAMILIES,ST GILES TRUST,"17,500.00",TROUBLED FAM�S TEAM,EXTERNAL AGENCIES AND BODIES,5902445400,1013828
02.12.2020,CHILDREN AND FAMILIES,REDACTED PERSONAL DATA,400,UASC CARELEAVERS,OTHER PAYMENTS FOR CLIENTS,REDACTED,REDACTED
02.12.2020,CHILDREN'S SERVICES,GLS EDUCATIONAL SUPPLIES LTD,361.85,ALC  DIRECT DELIVERY,EQUIPMENT PURCHASE & REPAIR,5902445521,1318282
02.12.2020,CHILDREN'S SERVICES,GLS EDUCATIONAL SUPPLIES LTD,399.58,ALC  DIRECT DELIVERY,EQUIPMENT PURCHASE & REPAIR,5902445520,1318282
02.12.2020,CHILDREN'S SERVICES,WIZE UP INDEPENDENT SCHOOL,475,ALTERNATIVE PROVISION,EXTERNAL AGENCIES AND BODIES,5902445451,1000080560
02.12.2020,CHILDREN'S SERVICES,WIZE UP INDEPENDENT SCHOOL,"1,045.00",ALTERNATIVE PROVISION,EXTERNAL AGENCIES AND BODIES,5902445450,1000080560
02.12.2020,CHILDREN'S SERVICES,SHIRLEY MOYSE,700,SEN INCLUSION TEAM,CONSULTANTS SERVICES,5902445401,1000083073
02.12.2020,CHILDREN'S SERVICES,ROYAL BOROUGH OF KENSINGTON & CHELSEA,"8,499.46",SOUTHWARK CHOICES,SOFTWARE,5902445455,1000033864
02.12.2020,COMMUNITIES,REHAN JAMIL PHOTOGRAPHY,300,MAYORAL SUPPORT,PROFESSIONAL FEES,5902445472,1000057529
02.12.2020,COMMUNITIES,SANDS FILMS PRODUCTION LIMITED,300,VCS GRANTS,OTHER CONTRACTORS,5902444636,1000085712
02.12.2020,CUSTOMER EXPERIENCE HGF,PROFESSOR  S AL-SARRAJ,"2,400.00",CORONER'S,PROFESSIONAL FEES,5902445418,1000043051
02.12.2020,CUSTOMER EXPERIENCE HGF,KINGS ACCOMODATION LIMITED,"1,000.00",HOMELESS PROJECTS,GRANTS,5902445413,1000065572
02.12.2020,CUSTOMER EXPERIENCE HGF,KINGS ACCOMODATION LIMITED,"1,515.00",HOMELESS PROJECTS,GRANTS,5902445412,1000065572
02.12.2020,CUSTOMER EXPERIENCE HGF,HUGO WEST,"2,363.92",HOMELESS PROJECTS,GRANTS,5902445487,1000085956
02.12.2020,CUSTOMER EXPERIENCE HGF,KINDLY PROPERTIES LTD,"22,408.25",NIGHTLY TA (NSC),EXTERNAL AGENCIES AND BODIES,5902445474,1000060734
02.12.2020,CUSTOMER EXPERIENCE HGF,NORBURY PROPERTY SERVICES (LONDON) LTD,"34,787.70",NIGHTLY TA (NSC),EXTERNAL AGENCIES AND BODIES,5902445441,1000075566
02.12.2020,CUSTOMER EXPERIENCE HGF,SECURENT LTD,"1,410.50",NIGHTLY TA (NSC),EXTERNAL AGENCIES AND BODIES,5902445429,1000079400
02.12.2020,CUSTOMER EXPERIENCE HGF,REDACTED PERSONAL DATA,"2,000.00",PRIVATE SECTOR LEASING,EXTERNAL AGENCIES AND BODIES,REDACTED,REDACTED
02.12.2020,CUSTOMER EXPERIENCE HGF,REDACTED PERSONAL DATA,"4,274.29",PRIVATE SECTOR LEASING,EXTERNAL AGENCIES AND BODIES,REDACTED,REDACTED
02.12.2020,ENVIRONMENT AND LEISURE,LBOX COMMUNICATIONS,270,CAPITAL PS (LEISURE),CONSTRUCTION FEES  - EXTERNAL,5902445524,1000044844
02.12.2020,ENVIRONMENT AND LEISURE,SIMLAW ECOLOGY LIMITED,722.5,CAPITAL PS (LEISURE),CONSTR'N SUB CONTRACT - NON CERTIFICATED,5902445421,1000081042
02.12.2020,ENVIRONMENT AND LEISURE,RH WROUGHT IRON,760,CAPITAL PS (LEISURE),CONSTRUCTION FEES - INTERNAL,2103181424,3000000680
02.12.2020,ENVIRONMENT DIRECTORATE,DAWSON RENTALS SWEEPERS,292.25,COMMERCIAL VEH CTRL A/C,HIRED VEHICLES,5902445427,1000068168
02.12.2020,ENVIRONMENT DIRECTORATE,DAWSON RENTALS SWEEPERS,307.34,COMMERCIAL VEH CTRL A/C,HIRED VEHICLES,5902445430,1000068168
02.12.2020,ENVIRONMENT DIRECTORATE,DAWSON RENTALS SWEEPERS,378.44,COMMERCIAL VEH CTRL A/C,HIRED VEHICLES,5902445431,1000068168
02.12.2020,ENVIRONMENT DIRECTORATE,DAWSON RENTALS SWEEPERS,434.3,COMMERCIAL VEH CTRL A/C,HIRED VEHICLES,5902445420,1000068168
02.12.2020,ENVIRONMENT DIRECTORATE,DAWSON RENTALS SWEEPERS,544.87,COMMERCIAL VEH CTRL A/C,HIRED VEHICLES,5902445424,1000068168
02.12.2020,ENVIRONMENT DIRECTORATE,DAWSON RENTALS SWEEPERS,562.51,COMMERCIAL VEH CTRL A/C,HIRED VEHICLES,5902445423,1000068168
02.12.2020,ENVIRONMENT DIRECTORATE,DAWSON RENTALS SWEEPERS,630,COMMERCIAL VEH CTRL A/C,HIRED VEHICLES,5902445432,1000068168
02.12.2020,ENVIRONMENT DIRECTORATE,F H BRUNDLE,692.5,ENGINEERING CRAFTS,MATERIALS,5902445495,1082714
02.12.2020,ENVIRONMENT DIRECTORATE,SIGNSCAPE SYSTEMS LTD,"2,762.24",ENGINEERING CRAFTS,MATERIALS,5902445512,1000052408
02.12.2020,ENVIRONMENT DIRECTORATE,SIGNSCAPE SYSTEMS LTD,"4,143.36",ENGINEERING CRAFTS,MATERIALS,5902445511,1000052408
02.12.2020,ENVIRONMENT DIRECTORATE,PURPOSE POWDER COATINGS LTD,425,ENGINEERING CRAFTS,MATERIALS,5902445514,1000059450
02.12.2020,ENVIRONMENT DIRECTORATE,SPALDINGS (UK) LTD,780,GROUNDS MAINTENANCE - GENERAL,MATERIALS,5902445439,1907384
02.12.2020,ENVIRONMENT DIRECTORATE,CASTLE WATER LTD,257.3,MANAGEMENT TEAM,WATER,5902445477,1000078867
02.12.2020,ENVIRONMENT DIRECTORATE,CASTLE WATER LTD,563.97,MANAGEMENT TEAM,WATER,5902445478,1000078867
02.12.2020,ENVIRONMENT DIRECTORATE,BEW ELECTRICAL DISTRIBUTORS LTD,352.86,PUBLIC LIGHTING,MATERIALS,5902445504,1000045371
02.12.2020,ENVIRONMENT DIRECTORATE,BEW ELECTRICAL DISTRIBUTORS LTD,491.48,PUBLIC LIGHTING,MATERIALS,5902445504,1000045371
02.12.2020,F & C S EXCLUDING CORPORATE BUDGETS,REDACTED PERSONAL DATA,500,SESS,OTHER PAYMENTS FOR CLIENTS,REDACTED,REDACTED
02.12.2020,F & C S EXCLUDING CORPORATE BUDGETS,REDACTED PERSONAL DATA,500,SESS,OTHER PAYMENTS FOR CLIENTS,REDACTED,REDACTED
02.12.2020,F & C S EXCLUDING CORPORATE BUDGETS,REDACTED PERSONAL DATA,500,SESS,OTHER PAYMENTS FOR CLIENTS,REDACTED,REDACTED
02.12.2020,F & C S EXCLUDING CORPORATE BUDGETS,REDACTED PERSONAL DATA,500,SESS,OTHER PAYMENTS FOR CLIENTS,REDACTED,REDACTED
02.12.2020,F & C S EXCLUDING CORPORATE BUDGETS,REDACTED PERSONAL DATA,500,SESS,OTHER PAYMENTS FOR CLIENTS,REDACTED,REDACTED
02.12.2020,F & C S EXCLUDING CORPORATE BUDGETS,REDACTED PERSONAL DATA,500,SESS,OTHER PAYMENTS FOR CLIENTS,REDACTED,REDACTED
02.12.2020,F & C S EXCLUDING CORPORATE BUDGETS,REDACTED PERSONAL DATA,500,SESS,OTHER PAYMENTS FOR CLIENTS,REDACTED,REDACTED
02.12.2020,F & C S EXCLUDING CORPORATE BUDGETS,REDACTED PERSONAL DATA,500,SESS,OTHER PAYMENTS FOR CLIENTS,REDACTED,REDACTED
02.12.2020,F & C S EXCLUDING CORPORATE BUDGETS,REDACTED PERSONAL DATA,500,SESS,OTHER PAYMENTS FOR CLIENTS,REDACTED,REDACTED
02.12.2020,HOUSING,GUIDELINE LIFT SERVICES LTD,"46,428.44",GUIDELINE,I-WORLD CONTRACTORS HOLDING ACCOUNT,5902445403,1000064176
02.12.2020,HOUSING,OCO LIMITED,"138,474.17",PAYMENTS CONTROL ACCOUNT - OCO,I-WORLD CONTRACTORS HOLDING ACCOUNT,5902445479,1006066
02.12.2020,HOUSING,SMITH & BYFORD LTD,"113,765.58",SMITH AND BYFORD,I-WORLD CONTRACTORS HOLDING ACCOUNT,5902445480,11212119
02.12.2020,HOUSING GENERAL FUND,BUILDTRUST LTD,"6,672.21",CAPITAL PS (HOUSING GF),CAPITAL GRANTS,5902445523,1000079190
02.12.2020,HOUSING GENERAL FUND,HITACHI SOLUTIONS EUROPE LIMITED,"14,562.50",CAPITAL PS (STRAT SERV),ICT ACQUISITION,5902445459,1000084180
02.12.2020,HOUSING HRA,CALFORD SEADEN LLP,882,CAPITAL PS (HRA),CONSTRUCTION FEES  - EXTERNAL,5902445483,1061592
02.12.2020,HOUSING HRA,BELL PHILLIPS ARCHITECTS LTD,"9,594.00",CAPITAL PS (HRA),CONSTRUCTION FEES - ARCHITECT,5902445408,1000069307
02.12.2020,LEISURE DIRECTORATE,SECURE-A-FIELD LTD,526.15,SOUTHWARK AREA TEAM,STATIONERY,5902445414,1000072371
02.12.2020,MODERNISATION HGF,WEB-LABS LTD,375,DIGITAL DELIVERY,CONSULTANTS SERVICES,5902445485,1000039819
02.12.2020,MODERNISATION HGF,WEB-LABS LTD,850,DIGITAL DELIVERY,CONSULTANTS SERVICES,5902445484,1000039819
02.12.2020,RESIDENT SERVICES,CITYGLEN LTD,"2,700.00",TA PLACEMENTS,EXTERNAL AGENCIES AND BODIES,5902445417,1000026239
02.12.2020,SBS SUPPORT,SANDERSONS BUILDING SERVICES LTD,"18,793.34",SBS - HOLDING ACCOUNT,OTHER CONTRACTORS,2103182574,3000002065
03.12.2020,ADULT SOCIAL CARE,REDACTED PERSONAL DATA,500,APPOINTEESHIPS,OTHER PAYMENTS FOR CLIENTS,REDACTED,REDACTED
03.12.2020,ADULT SOCIAL CARE,WILLBECCA LTD,"1,005.73",DIR OF ASC,EXTERNAL AGENCIES AND BODIES,5902444661,1000085459
03.12.2020,ADULT SOCIAL CARE,MEDACS HOMECARE,"1,241.31",DISCHARGE TO ACCESS,HOMECARE - C&V,2103182750,11287415
03.12.2020,ADULT SOCIAL CARE,MEDACS HOMECARE,"1,723.61",DISCHARGE TO ACCESS,HOMECARE - C&V,2103182654,11287415
03.12.2020,ADULT SOCIAL CARE,MEDACS HOMECARE,868.5,LD LTS 18-64,HOMECARE - C&V,2103182672,11287415
03.12.2020,ADULT SOCIAL CARE,MEDACS HOMECARE,"1,026.20",LD LTS 18-64,HOMECARE - C&V,2103182718,11287415
03.12.2020,ADULT SOCIAL CARE,PECULIAR CARE HOMES LTD,269.25,LD LTS 18-64,SUPPORTED LIVING,2103182968,1000076991
03.12.2020,ADULT SOCIAL CARE,PECULIAR CARE HOMES LTD,359,LD LTS 18-64,SUPPORTED LIVING,2103182960,1000076991
03.12.2020,ADULT SOCIAL CARE,PECULIAR CARE HOMES LTD,359,LD LTS 18-64,SUPPORTED LIVING,2103182967,1000076991
03.12.2020,ADULT SOCIAL CARE,PECULIAR CARE HOMES LTD,448.75,LD LTS 18-64,SUPPORTED LIVING,2103182969,1000076991
03.12.2020,ADULT SOCIAL CARE,PECULIAR CARE HOMES LTD,"1,077.00",LD LTS 18-64,SUPPORTED LIVING,2103182962,1000076991
03.12.2020,ADULT SOCIAL CARE,PECULIAR CARE HOMES LTD,"1,077.00",LD LTS 18-64,SUPPORTED LIVING,2103182964,1000076991
03.12.2020,ADULT SOCIAL CARE,PECULIAR CARE HOMES LTD,"1,346.25",LD LTS 18-64,SUPPORTED LIVING,2103182963,1000076991
03.12.2020,ADULT SOCIAL CARE,MEDACS HOMECARE,337.5,MEM LTS 65+,HOMECARE - C&V,2103182746,11287415
03.12.2020,ADULT SOCIAL CARE,MEDACS HOMECARE,931.73,MEM LTS 65+,HOMECARE - C&V,2103182740,11287415
03.12.2020,ADULT SOCIAL CARE,MEDACS HOMECARE,526.5,MH LTS 18-64,HOMECARE - C&V,2103182650,11287415
03.12.2020,ADULT SOCIAL CARE,MEDACS HOMECARE,659.96,MH LTS 18-64,HOMECARE - C&V,2103182772,11287415
03.12.2020,ADULT SOCIAL CARE,MEDACS HOMECARE,"1,561.50",MH LTS 18-64,HOMECARE - C&V,2103182702,11287415
03.12.2020,ADULT SOCIAL CARE,MEDACS HOMECARE,"1,562.61",MH LTS 18-64,HOMECARE - C&V,2103182726,11287415
03.12.2020,ADULT SOCIAL CARE,MEDACS HOMECARE,260.8,PHY LTS 18-64,HOMECARE - C&V,2103182714,11287415
03.12.2020,ADULT SOCIAL CARE,MEDACS HOMECARE,270,PHY LTS 18-64,HOMECARE - C&V,2103182742,11287415
03.12.2020,ADULT SOCIAL CARE,MEDACS HOMECARE,279,PHY LTS 18-64,HOMECARE - C&V,2103182686,11287415
03.12.2020,ADULT SOCIAL CARE,MEDACS HOMECARE,301.94,PHY LTS 18-64,HOMECARE - C&V,2103182666,11287415
03.12.2020,ADULT SOCIAL CARE,MEDACS HOMECARE,310.5,PHY LTS 18-64,HOMECARE - C&V,2103182652,11287415
03.12.2020,ADULT SOCIAL CARE,MEDACS HOMECARE,332.23,PHY LTS 18-64,HOMECARE - C&V,2103182764,11287415
03.12.2020,ADULT SOCIAL CARE,MEDACS HOMECARE,387.4,PHY LTS 18-64,HOMECARE - C&V,2103182628,11287415
03.12.2020,ADULT SOCIAL CARE,MEDACS HOMECARE,422.74,PHY LTS 18-64,HOMECARE - C&V,2103182720,11287415
03.12.2020,ADULT SOCIAL CARE,MEDACS HOMECARE,468,PHY LTS 18-64,HOMECARE - C&V,2103182778,11287415
03.12.2020,ADULT SOCIAL CARE,MEDACS HOMECARE,491.69,PHY LTS 18-64,HOMECARE - C&V,2103182736,11287415
03.12.2020,ADULT SOCIAL CARE,MEDACS HOMECARE,564,PHY LTS 18-64,HOMECARE - C&V,2103182712,11287415
03.12.2020,ADULT SOCIAL CARE,MEDACS HOMECARE,595.3,PHY LTS 18-64,HOMECARE - C&V,2103182790,11287415
03.12.2020,ADULT SOCIAL CARE,MEDACS HOMECARE,601.22,PHY LTS 18-64,HOMECARE - C&V,2103182626,11287415
03.12.2020,ADULT SOCIAL CARE,MEDACS HOMECARE,616.5,PHY LTS 18-64,HOMECARE - C&V,2103182780,11287415
03.12.2020,ADULT SOCIAL CARE,MEDACS HOMECARE,616.5,PHY LTS 18-64,HOMECARE - C&V,2103182792,11287415
03.12.2020,ADULT SOCIAL CARE,MEDACS HOMECARE,639,PHY LTS 18-64,HOMECARE - C&V,2103182696,11287415
03.12.2020,ADULT SOCIAL CARE,MEDACS HOMECARE,711,PHY LTS 18-64,HOMECARE - C&V,2103182812,11287415
03.12.2020,ADULT SOCIAL CARE,MEDACS HOMECARE,777.5,PHY LTS 18-64,HOMECARE - C&V,2103182748,11287415
03.12.2020,ADULT SOCIAL CARE,MEDACS HOMECARE,"1,323.00",PHY LTS 18-64,HOMECARE - C&V,2103182732,11287415
03.12.2020,ADULT SOCIAL CARE,MEDACS HOMECARE,"1,444.50",PHY LTS 18-64,HOMECARE - C&V,2103182678,11287415
03.12.2020,ADULT SOCIAL CARE,MEDACS HOMECARE,"3,321.73",PHY LTS 18-64,HOMECARE - C&V,2103182716,11287415
03.12.2020,ADULT SOCIAL CARE,MEDACS HOMECARE,274.84,PHY LTS 65+,HOMECARE - C&V,2103182722,11287415
03.12.2020,ADULT SOCIAL CARE,MEDACS HOMECARE,288,PHY LTS 65+,HOMECARE - C&V,2103182698,11287415
03.12.2020,ADULT SOCIAL CARE,MEDACS HOMECARE,340.1,PHY LTS 65+,HOMECARE - C&V,2103182648,11287415
03.12.2020,ADULT SOCIAL CARE,MEDACS HOMECARE,342.3,PHY LTS 65+,HOMECARE - C&V,2103182776,11287415
03.12.2020,ADULT SOCIAL CARE,MEDACS HOMECARE,379.56,PHY LTS 65+,HOMECARE - C&V,2103182810,11287415
03.12.2020,ADULT SOCIAL CARE,MEDACS HOMECARE,391.5,PHY LTS 65+,HOMECARE - C&V,2103182632,11287415
03.12.2020,ADULT SOCIAL CARE,MEDACS HOMECARE,420.4,PHY LTS 65+,HOMECARE - C&V,2103182724,11287415
03.12.2020,ADULT SOCIAL CARE,MEDACS HOMECARE,435.6,PHY LTS 65+,HOMECARE - C&V,2103182762,11287415
03.12.2020,ADULT SOCIAL CARE,MEDACS HOMECARE,452.97,PHY LTS 65+,HOMECARE - C&V,2103182676,11287415
03.12.2020,ADULT SOCIAL CARE,MEDACS HOMECARE,497.28,PHY LTS 65+,HOMECARE - C&V,2103182640,11287415
03.12.2020,ADULT SOCIAL CARE,MEDACS HOMECARE,586.63,PHY LTS 65+,HOMECARE - C&V,2103182674,11287415
03.12.2020,ADULT SOCIAL CARE,MEDACS HOMECARE,634.5,PHY LTS 65+,HOMECARE - C&V,2103182804,11287415
03.12.2020,ADULT SOCIAL CARE,MEDACS HOMECARE,737.3,PHY LTS 65+,HOMECARE - C&V,2103182788,11287415
03.12.2020,ADULT SOCIAL CARE,MEDACS HOMECARE,752.32,PHY LTS 65+,HOMECARE - C&V,2103182786,11287415
03.12.2020,ADULT SOCIAL CARE,MEDACS HOMECARE,781.8,PHY LTS 65+,HOMECARE - C&V,2103182766,11287415
03.12.2020,ADULT SOCIAL CARE,MEDACS HOMECARE,819,PHY LTS 65+,HOMECARE - C&V,2103182634,11287415
03.12.2020,ADULT SOCIAL CARE,MEDACS HOMECARE,877.5,PHY LTS 65+,HOMECARE - C&V,2103182684,11287415
03.12.2020,ADULT SOCIAL CARE,MEDACS HOMECARE,890.06,PHY LTS 65+,HOMECARE - C&V,2103182794,11287415
03.12.2020,ADULT SOCIAL CARE,MEDACS HOMECARE,903.8,PHY LTS 65+,HOMECARE - C&V,2103182690,11287415
03.12.2020,ADULT SOCIAL CARE,MEDACS HOMECARE,928.09,PHY LTS 65+,HOMECARE - C&V,2103182656,11287415
03.12.2020,ADULT SOCIAL CARE,MEDACS HOMECARE,990,PHY LTS 65+,HOMECARE - C&V,2103182700,11287415
03.12.2020,ADULT SOCIAL CARE,MEDACS HOMECARE,"1,030.50",PHY LTS 65+,HOMECARE - C&V,2103182630,11287415
03.12.2020,ADULT SOCIAL CARE,MEDACS HOMECARE,"1,038.50",PHY LTS 65+,HOMECARE - C&V,2103182680,11287415
03.12.2020,ADULT SOCIAL CARE,MEDACS HOMECARE,"1,069.79",PHY LTS 65+,HOMECARE - C&V,2103182730,11287415
03.12.2020,ADULT SOCIAL CARE,MEDACS HOMECARE,"1,075.50",PHY LTS 65+,HOMECARE - C&V,2103182796,11287415
03.12.2020,ADULT SOCIAL CARE,MEDACS HOMECARE,"1,089.00",PHY LTS 65+,HOMECARE - C&V,2103182670,11287415
03.12.2020,ADULT SOCIAL CARE,MEDACS HOMECARE,"1,098.00",PHY LTS 65+,HOMECARE - C&V,2103182688,11287415
03.12.2020,ADULT SOCIAL CARE,MEDACS HOMECARE,"1,114.10",PHY LTS 65+,HOMECARE - C&V,2103182768,11287415
03.12.2020,ADULT SOCIAL CARE,MEDACS HOMECARE,"1,138.50",PHY LTS 65+,HOMECARE - C&V,2103182802,11287415
03.12.2020,ADULT SOCIAL CARE,MEDACS HOMECARE,"1,174.50",PHY LTS 65+,HOMECARE - C&V,2103182636,11287415
03.12.2020,ADULT SOCIAL CARE,MEDACS HOMECARE,"1,186.10",PHY LTS 65+,HOMECARE - C&V,2103182642,11287415
03.12.2020,ADULT SOCIAL CARE,MEDACS HOMECARE,"1,205.85",PHY LTS 65+,HOMECARE - C&V,2103182752,11287415
03.12.2020,ADULT SOCIAL CARE,MEDACS HOMECARE,"1,206.00",PHY LTS 65+,HOMECARE - C&V,2103182692,11287415
03.12.2020,ADULT SOCIAL CARE,MEDACS HOMECARE,"1,255.50",PHY LTS 65+,HOMECARE - C&V,2103182800,11287415
03.12.2020,ADULT SOCIAL CARE,MEDACS HOMECARE,"1,353.88",PHY LTS 65+,HOMECARE - C&V,2103182770,11287415
03.12.2020,ADULT SOCIAL CARE,MEDACS HOMECARE,"1,380.31",PHY LTS 65+,HOMECARE - C&V,2103182784,11287415
03.12.2020,ADULT SOCIAL CARE,MEDACS HOMECARE,"1,674.00",PHY LTS 65+,HOMECARE - C&V,2103182694,11287415
03.12.2020,ADULT SOCIAL CARE,MEDACS HOMECARE,"1,849.50",PHY LTS 65+,HOMECARE - C&V,2103182744,11287415
03.12.2020,ADULT SOCIAL CARE,MEDACS HOMECARE,"2,043.00",PHY LTS 65+,HOMECARE - C&V,2103182646,11287415
03.12.2020,ADULT SOCIAL CARE,MEDACS HOMECARE,"2,139.65",PHY LTS 65+,HOMECARE - C&V,2103182658,11287415
03.12.2020,ADULT SOCIAL CARE,MEDACS HOMECARE,"2,500.40",PHY LTS 65+,HOMECARE - C&V,2103182662,11287415
03.12.2020,ADULT SOCIAL CARE,MEDACS HOMECARE,"2,587.50",PHY LTS 65+,HOMECARE - C&V,2103182754,11287415
03.12.2020,ADULT SOCIAL CARE,MEDACS HOMECARE,"2,632.70",PHY LTS 65+,HOMECARE - C&V,2103182738,11287415
03.12.2020,ADULT SOCIAL CARE,MEDACS HOMECARE,"3,459.14",PHY LTS 65+,HOMECARE - C&V,2103182668,11287415
03.12.2020,ADULT SOCIAL CARE,LONDON CARE LTD,899.1,PHY LTS 65+,HOMECARE - C&V,2103182955,1000003398
03.12.2020,ADULT SOCIAL CARE,LONDON CARE LTD,960.72,PHY LTS 65+,HOMECARE - C&V,2103182958,1000003398
03.12.2020,ADULT SOCIAL CARE,LONDON CARE LTD,960.81,PHY LTS 65+,HOMECARE - C&V,2103182956,1000003398
03.12.2020,ADULT SOCIAL CARE,LONDON CARE LTD,974.38,PHY LTS 65+,HOMECARE - C&V,2103182957,1000003398
03.12.2020,ADULT SOCIAL CARE,LONDON CARE LTD,"4,801.39",PHY LTS 65+,HOMECARE - C&V,2103182959,1000003398
03.12.2020,ADULT SOCIAL CARE,SNOWBALL CARE UK LTD,912,PHY LTS 65+,HOMECARE - SPOT,2103182961,1000081483
03.12.2020,ADULT SOCIAL CARE,SNOWBALL CARE UK LTD,"1,696.00",PHY LTS 65+,HOMECARE - SPOT,2103182966,1000081483
03.12.2020,ADULT SOCIAL CARE,SERVESOUL LTD,265.04,PHY LTS 65+,HOMECARE - SPOT,2103182922,1000081503
03.12.2020,ADULT SOCIAL CARE,SERVESOUL LTD,265.04,PHY LTS 65+,HOMECARE - SPOT,2103182935,1000081503
03.12.2020,ADULT SOCIAL CARE,SERVESOUL LTD,267.04,PHY LTS 65+,HOMECARE - SPOT,2103182941,1000081503
03.12.2020,ADULT SOCIAL CARE,SERVESOUL LTD,267.04,PHY LTS 65+,HOMECARE - SPOT,2103182948,1000081503
03.12.2020,ADULT SOCIAL CARE,SERVESOUL LTD,346.32,PHY LTS 65+,HOMECARE - SPOT,2103182924,1000081503
03.12.2020,ADULT SOCIAL CARE,SERVESOUL LTD,346.32,PHY LTS 65+,HOMECARE - SPOT,2103182946,1000081503
03.12.2020,ADULT SOCIAL CARE,SERVESOUL LTD,425.6,PHY LTS 65+,HOMECARE - SPOT,2103182925,1000081503
03.12.2020,ADULT SOCIAL CARE,SERVESOUL LTD,425.6,PHY LTS 65+,HOMECARE - SPOT,2103182947,1000081503
03.12.2020,ADULT SOCIAL CARE,SERVESOUL LTD,454.8,PHY LTS 65+,HOMECARE - SPOT,2103182940,1000081503
03.12.2020,ADULT SOCIAL CARE,SERVESOUL LTD,496.53,PHY LTS 65+,HOMECARE - SPOT,2103182938,1000081503
03.12.2020,ADULT SOCIAL CARE,SERVESOUL LTD,529.91,PHY LTS 65+,HOMECARE - SPOT,2103182936,1000081503
03.12.2020,ADULT SOCIAL CARE,SERVESOUL LTD,588.32,PHY LTS 65+,HOMECARE - SPOT,2103182930,1000081503
03.12.2020,ADULT SOCIAL CARE,SERVESOUL LTD,650.91,PHY LTS 65+,HOMECARE - SPOT,2103182934,1000081503
03.12.2020,ADULT SOCIAL CARE,SERVESOUL LTD,650.91,PHY LTS 65+,HOMECARE - SPOT,2103182939,1000081503
03.12.2020,ADULT SOCIAL CARE,SERVESOUL LTD,671.77,PHY LTS 65+,HOMECARE - SPOT,2103182921,1000081503
03.12.2020,ADULT SOCIAL CARE,SERVESOUL LTD,671.77,PHY LTS 65+,HOMECARE - SPOT,2103182952,1000081503
03.12.2020,ADULT SOCIAL CARE,ROMEDICAL LTD,569.48,SAFEGUARDING & DOLS,OTHER CONTRACTORS,5902445673,1000076318
03.12.2020,ADULT SOCIAL CARE,ROMEDICAL LTD,575.02,SAFEGUARDING & DOLS,OTHER CONTRACTORS,5902445669,1000076318
03.12.2020,ADULT SOCIAL CARE,ROMEDICAL LTD,755.59,SAFEGUARDING & DOLS,OTHER CONTRACTORS,5902445663,1000076318
03.12.2020,ADULT SOCIAL CARE,ROMEDICAL LTD,"1,108.02",SAFEGUARDING & DOLS,OTHER CONTRACTORS,5902445675,1000076318
03.12.2020,ADULT SOCIAL CARE,MEDACS HOMECARE,940.5,SOCIAL ISOLATION,HOMECARE - C&V,2103182704,11287415
03.12.2020,ADULT SOCIAL CARE,MEDACS HOMECARE,"1,135.59",SOCIAL ISOLATION,HOMECARE - C&V,2103182728,11287415
03.12.2020,ADULT SOCIAL CARE,MEDACS HOMECARE,"1,048.50",SUB LTS 18-64,HOMECARE - SPOT,2103182660,11287415
03.12.2020,CENTRAL FUNCTIONS,TELSOLUTIONS LTD,600,OPERATIONAL TEAM,TELEPHONES (MOBILES),5902445581,1000074033
03.12.2020,CHIEF EXECUTIVE,KENT COUNTY COUNCIL - LASER,"2,147.71",CAPITAL PS (REGEN),CONSTRUCTION MAIN CONTRACT -CERTIFICATED,5902444702,1000012926
03.12.2020,CHIEF EXECUTIVE,UNTITLED PRACTICE LLP,"3,093.75",CAPITAL PS (REGEN),CONSTRUCTION FEES  - EXTERNAL,5902445346,1000080426
03.12.2020,CHIEF EXECUTIVE,SYD BISHOP & SONS(DEMOLITION) LTD,"82,101.00",CAPITAL PS (REGEN),CONSTRUCTION MAIN CONTRACT -CERTIFICATED,2103180364,3000000990
03.12.2020,CHILDREN AND ADULT,STONEGROVE LIMITED,"6,107.41",CAPITAL PS (EDUCATION),CONST'N MAIN CONTRACT - NON CERTIFICATED,2103181428,3000001525
03.12.2020,CHILDREN AND FAMILIES,NEGOTIATORS LTD,400,CONTACT SERVICE,OTHER PAYMENTS FOR CLIENTS,5902444856,1000075672
03.12.2020,CHILDREN AND FAMILIES,PURPLE PEBBLES(CHILD CARE) SERVICES,"1,821.43",EDGE OF CARE DECIS�S,OTHER PAYMENTS FOR CLIENTS,2103182620,1000070705
03.12.2020,CHILDREN AND FAMILIES,YOUNG FUTURES,"-1,080.00",FAMILY ASSESS RESID,RESIDENTIAL CARE,2103182608,1000059563
03.12.2020,CHILDREN AND FAMILIES,YOUNG FUTURES,"2,700.00",FAMILY ASSESS RESID,RESIDENTIAL CARE,2103182610,1000059563
03.12.2020,CHILDREN AND FAMILIES,OPTIMUM FOCUS COMPANY LTD,513.5,FAMILY GROUP CONF�S,PROFESSIONAL FEES,5902444959,1000081322
03.12.2020,CHILDREN AND FAMILIES,CAROL NUDDS,300,P & R CARE TEAM,OTHER PAYMENTS FOR CLIENTS,5902445637,1000076989
03.12.2020,CHILDREN AND FAMILIES,OASIS AQUILA HOUSING,616.07,SEMI-IND CARELEAVERS,EXTERNAL AGENCIES AND BODIES,2103182822,1000002184
03.12.2020,CHILDREN AND FAMILIES,OASIS AQUILA HOUSING,751.05,SEMI-IND CARELEAVERS,EXTERNAL AGENCIES AND BODIES,2103182830,1000002184
03.12.2020,CHILDREN AND FAMILIES,OASIS AQUILA HOUSING,"1,169.84",SEMI-IND CARELEAVERS,EXTERNAL AGENCIES AND BODIES,2103182848,1000002184
03.12.2020,CHILDREN AND FAMILIES,THE MEDUSA PROJECT LTD,"7,928.40",SEMI-IND CARELEAVERS,EXTERNAL AGENCIES AND BODIES,2103182868,1000014392
03.12.2020,CHILDREN AND FAMILIES,OWNLIFE LTD,"4,757.13",SEMI-IND CARELEAVERS,EXTERNAL AGENCIES AND BODIES,2103182876,1000056219
03.12.2020,CHILDREN AND FAMILIES,CONTACT PROFESSIONALS,250.47,SEMI-IND CARELEAVERS,EXTERNAL AGENCIES AND BODIES,2103182858,1000057263
03.12.2020,CHILDREN AND FAMILIES,BARNARDOS SERVICES LTD,642.86,SEMI-IND CARELEAVERS,EXTERNAL AGENCIES AND BODIES,2103182872,1000063730
03.12.2020,CHILDREN AND FAMILIES,BARNARDOS SERVICES LTD,707.15,SEMI-IND CARELEAVERS,EXTERNAL AGENCIES AND BODIES,2103182824,1000063730
03.12.2020,CHILDREN AND FAMILIES,PURPLE PEBBLES(CHILD CARE) SERVICES,"-1,032.91",SEMI-IND CARELEAVERS,COSTS RECOVERED,2103182972,1000070705
03.12.2020,CHILDREN AND FAMILIES,PURPLE PEBBLES(CHILD CARE) SERVICES,-894.99,SEMI-IND CARELEAVERS,COSTS RECOVERED,2103182974,1000070705
03.12.2020,CHILDREN AND FAMILIES,PURPLE PEBBLES(CHILD CARE) SERVICES,-894.99,SEMI-IND CARELEAVERS,COSTS RECOVERED,2103182976,1000070705
03.12.2020,CHILDREN AND FAMILIES,PURPLE PEBBLES(CHILD CARE) SERVICES,-875,SEMI-IND CARELEAVERS,COSTS RECOVERED,2103182970,1000070705
03.12.2020,CHILDREN AND FAMILIES,PURPLE PEBBLES(CHILD CARE) SERVICES,-516.52,SEMI-IND CARELEAVERS,COSTS RECOVERED,2103182971,1000070705
03.12.2020,CHILDREN AND FAMILIES,PURPLE PEBBLES(CHILD CARE) SERVICES,-449.99,SEMI-IND CARELEAVERS,COSTS RECOVERED,2103182973,1000070705
03.12.2020,CHILDREN AND FAMILIES,PURPLE PEBBLES(CHILD CARE) SERVICES,-449.99,SEMI-IND CARELEAVERS,COSTS RECOVERED,2103182975,1000070705
03.12.2020,CHILDREN AND FAMILIES,PURPLE PEBBLES(CHILD CARE) SERVICES,"1,607.14",SEMI-IND CARELEAVERS,EXTERNAL AGENCIES AND BODIES,2103182856,1000070705
03.12.2020,CHILDREN AND FAMILIES,PURPLE PEBBLES(CHILD CARE) SERVICES,"1,650.00",SEMI-IND CARELEAVERS,EXTERNAL AGENCIES AND BODIES,2103182878,1000070705
03.12.2020,CHILDREN AND FAMILIES,PURPLE PEBBLES(CHILD CARE) SERVICES,"1,660.71",SEMI-IND CARELEAVERS,EXTERNAL AGENCIES AND BODIES,2103182820,1000070705
03.12.2020,CHILDREN AND FAMILIES,PURPLE PEBBLES(CHILD CARE) SERVICES,"1,928.58",SEMI-IND CARELEAVERS,EXTERNAL AGENCIES AND BODIES,2103182814,1000070705
03.12.2020,CHILDREN AND FAMILIES,PURPLE PEBBLES(CHILD CARE) SERVICES,"1,982.14",SEMI-IND CARELEAVERS,EXTERNAL AGENCIES AND BODIES,2103182854,1000070705
03.12.2020,CHILDREN AND FAMILIES,PURPLE PEBBLES(CHILD CARE) SERVICES,"2,035.71",SEMI-IND CARELEAVERS,EXTERNAL AGENCIES AND BODIES,2103182844,1000070705
03.12.2020,CHILDREN AND FAMILIES,PURPLE PEBBLES(CHILD CARE) SERVICES,"2,400.00",SEMI-IND CARELEAVERS,EXTERNAL AGENCIES AND BODIES,2103182842,1000070705
03.12.2020,CHILDREN AND FAMILIES,PURPLE PEBBLES(CHILD CARE) SERVICES,"2,507.14",SEMI-IND CARELEAVERS,EXTERNAL AGENCIES AND BODIES,2103182860,1000070705
03.12.2020,CHILDREN AND FAMILIES,FINEFAIR LTD,"1,632.90",SEMI-IND CARELEAVERS,EXTERNAL AGENCIES AND BODIES,2103182838,1000075570
03.12.2020,CHILDREN AND FAMILIES,SYDNEY CARE LTD,"5,142.85",SEMI-IND CARELEAVERS,EXTERNAL AGENCIES AND BODIES,2103182828,1000081598
03.12.2020,CHILDREN AND FAMILIES,SYDNEY CARE LTD,"5,142.85",SEMI-IND CARELEAVERS,EXTERNAL AGENCIES AND BODIES,2103182864,1000081598
03.12.2020,CHILDREN AND FAMILIES,HOLISTIC SUPPORTED LIVING LTD,"4,700.00",SEMI-IND CARELEAVERS,EXTERNAL AGENCIES AND BODIES,2103182874,1000082130
03.12.2020,CHILDREN AND FAMILIES,TRANSFORMING LIVES COMPANY LTD,"3,619.28",SEMI-IND CARELEAVERS,EXTERNAL AGENCIES AND BODIES,2103182852,1000083352
03.12.2020,CHILDREN AND FAMILIES,OWNLIFE LTD,"3,428.58",SEMI-IND LAC 16-17,EXTERNAL AGENCIES AND BODIES,2103182918,1000056219
03.12.2020,CHILDREN AND FAMILIES,PURPLE PEBBLES(CHILD CARE) SERVICES,"1,885.71",SEMI-IND LAC 16-17,EXTERNAL AGENCIES AND BODIES,2103182892,1000070705
03.12.2020,CHILDREN AND FAMILIES,A HUSSAIN T/A ALPHA CARS LTD,480,SEMI-IND LAC 16-17,OTHER PAYMENTS FOR CLIENTS,2103182913,1000082147
03.12.2020,CHILDREN AND FAMILIES,REDACTED PERSONAL DATA,300,SPECIAL GUARDIANSHIP,EXTERNAL AGENCIES AND BODIES,REDACTED,REDACTED
03.12.2020,CHILDREN AND FAMILIES,NATIONWIDE ACCOMMODATION,"2,365.00",TEMP ACCOM FOR IH,EXTERNAL AGENCIES AND BODIES,5902445635,1000076112
03.12.2020,CHILDREN AND FAMILIES,OASIS AQUILA HOUSING,"1,013.64",UASC CARELEAVERS,EXTERNAL AGENCIES AND BODIES,2103182884,1000002184
03.12.2020,CHILDREN AND FAMILIES,PURPLE PEBBLES(CHILD CARE) SERVICES,280,UASC CARELEAVERS,EXTERNAL AGENCIES AND BODIES,2103182826,1000070705
03.12.2020,CHILDREN AND FAMILIES,PURPLE PEBBLES(CHILD CARE) SERVICES,"1,542.86",UASC CARELEAVERS,EXTERNAL AGENCIES AND BODIES,2103182888,1000070705
03.12.2020,CHILDREN AND FAMILIES,PURPLE PEBBLES(CHILD CARE) SERVICES,"1,564.29",UASC CARELEAVERS,EXTERNAL AGENCIES AND BODIES,2103182880,1000070705
03.12.2020,CHILDREN AND FAMILIES,PURPLE PEBBLES(CHILD CARE) SERVICES,"1,607.14",UASC CARELEAVERS,EXTERNAL AGENCIES AND BODIES,2103182840,1000070705
03.12.2020,CHILDREN AND FAMILIES,PURPLE PEBBLES(CHILD CARE) SERVICES,"1,692.86",UASC CARELEAVERS,EXTERNAL AGENCIES AND BODIES,2103182832,1000070705
03.12.2020,CHILDREN AND FAMILIES,PURPLE PEBBLES(CHILD CARE) SERVICES,"1,692.86",UASC CARELEAVERS,EXTERNAL AGENCIES AND BODIES,2103182850,1000070705
03.12.2020,CHILDREN AND FAMILIES,PURPLE PEBBLES(CHILD CARE) SERVICES,"1,714.29",UASC CARELEAVERS,EXTERNAL AGENCIES AND BODIES,2103182836,1000070705
03.12.2020,CHILDREN AND FAMILIES,PURPLE PEBBLES(CHILD CARE) SERVICES,"1,757.14",UASC CARELEAVERS,EXTERNAL AGENCIES AND BODIES,2103182862,1000070705
03.12.2020,CHILDREN AND FAMILIES,PURPLE PEBBLES(CHILD CARE) SERVICES,"1,821.43",UASC CARELEAVERS,EXTERNAL AGENCIES AND BODIES,2103182834,1000070705
03.12.2020,CHILDREN AND FAMILIES,PURPLE PEBBLES(CHILD CARE) SERVICES,"1,821.43",UASC CARELEAVERS,EXTERNAL AGENCIES AND BODIES,2103182882,1000070705
03.12.2020,CHILDREN AND FAMILIES,PURPLE PEBBLES(CHILD CARE) SERVICES,"1,842.86",UASC CARELEAVERS,EXTERNAL AGENCIES AND BODIES,2103182886,1000070705
03.12.2020,CHILDREN AND FAMILIES,PURPLE PEBBLES(CHILD CARE) SERVICES,"1,917.86",UASC CARELEAVERS,EXTERNAL AGENCIES AND BODIES,2103182870,1000070705
03.12.2020,CHILDREN AND FAMILIES,PURPLE PEBBLES(CHILD CARE) SERVICES,"1,928.57",UASC CARELEAVERS,EXTERNAL AGENCIES AND BODIES,2103182816,1000070705
03.12.2020,CHILDREN AND FAMILIES,PURPLE PEBBLES(CHILD CARE) SERVICES,"1,928.57",UASC CARELEAVERS,EXTERNAL AGENCIES AND BODIES,2103182846,1000070705
03.12.2020,CHILDREN AND FAMILIES,PURPLE PEBBLES(CHILD CARE) SERVICES,"2,025.00",UASC CARELEAVERS,EXTERNAL AGENCIES AND BODIES,2103182866,1000070705
03.12.2020,CHILDREN AND FAMILIES,PURPLE PEBBLES(CHILD CARE) SERVICES,280,UASC CARELEAVERS,OTHER PAYMENTS FOR CLIENTS,2103182818,1000070705
03.12.2020,CHILDREN AND FAMILIES,OWNLIFE LTD,"2,700.00",UASC LAC 16-17,EXTERNAL AGENCIES AND BODIES,2103182914,1000056219
03.12.2020,CHILDREN AND FAMILIES,PURPLE PEBBLES(CHILD CARE) SERVICES,"1,885.71",UASC LAC 16-17,EXTERNAL AGENCIES AND BODIES,2103182890,1000070705
03.12.2020,CHILDREN AND FAMILIES,PURPLE PEBBLES(CHILD CARE) SERVICES,"1,885.71",UASC LAC 16-17,EXTERNAL AGENCIES AND BODIES,2103182900,1000070705
03.12.2020,CHILDREN AND FAMILIES,PURPLE PEBBLES(CHILD CARE) SERVICES,"1,885.71",UASC LAC 16-17,EXTERNAL AGENCIES AND BODIES,2103182915,1000070705
03.12.2020,CHILDREN AND FAMILIES,PURPLE PEBBLES(CHILD CARE) SERVICES,"1,992.86",UASC LAC 16-17,EXTERNAL AGENCIES AND BODIES,2103182911,1000070705
03.12.2020,CHILDREN AND FAMILIES,PURPLE PEBBLES(CHILD CARE) SERVICES,350,UASC LAC 16-17,OTHER PAYMENTS FOR CLIENTS,2103182898,1000070705
03.12.2020,CHILDREN AND FAMILIES,PURPLE PEBBLES(CHILD CARE) SERVICES,350,UASC LAC 16-17,OTHER PAYMENTS FOR CLIENTS,2103182908,1000070705
03.12.2020,CHILDREN AND FAMILIES,PURPLE PEBBLES(CHILD CARE) SERVICES,350,UASC LAC 16-17,OTHER PAYMENTS FOR CLIENTS,2103182912,1000070705
03.12.2020,CHILDREN AND FAMILIES,PURPLE PEBBLES(CHILD CARE) SERVICES,350,UASC LAC 16-17,OTHER PAYMENTS FOR CLIENTS,2103182917,1000070705
03.12.2020,CHILDREN AND FAMILIES,IASPIRE CARE SERVICES LTD,"3,500.00",UASC LAC 16-17,EXTERNAL AGENCIES AND BODIES,2103182906,1000081500
03.12.2020,CHILDREN AND FAMILIES,IASPIRE CARE SERVICES LTD,280,UASC LAC 16-17,OTHER PAYMENTS FOR CLIENTS,2103182896,1000081500
03.12.2020,CHILDREN AND FAMILIES,EPIC CARE HOME LTD,"3,807.15",UASC LAC 16-17,EXTERNAL AGENCIES AND BODIES,2103182902,1000084192
03.12.2020,CHILDREN AND FAMILIES,EPIC CARE HOME LTD,257.14,UASC LAC 16-17,OTHER PAYMENTS FOR CLIENTS,2103182904,1000084192
03.12.2020,CHILDREN'S SERVICES,ACADEMY21 LTD,"2,656.75",ALTERNATIVE PROVISION,EXTERNAL AGENCIES AND BODIES,5902445619,1000083781
03.12.2020,CHILDREN'S SERVICES,ANNA TKACZYNSKA,"2,750.00",CENTRAL COSTS - SEN,LEGAL FEES & COURT COSTS,5902445601,1000069252
03.12.2020,CHILDREN'S SERVICES,PULSE HEALTHCARE LTD,308,SCH TRANS - CONTRACT COST,AGENCY STAFF,5902444715,1000035063
03.12.2020,CHILDREN'S SERVICES,UNIVERSITY OF WARWICK,"9,250.00",SCHOLARSHIP SCHEME,EXTERNAL AGENCIES AND BODIES,5902445638,11167312
03.12.2020,CHILDREN'S SERVICES,UNIVERSITY OF WARWICK,"9,250.00",SCHOLARSHIP SCHEME,EXTERNAL AGENCIES AND BODIES,5902445640,11167312
03.12.2020,CHILDREN'S SERVICES,GLS EDUCATIONAL SUPPLIES LTD,427.68,SUMMERHOUSE,STATIONERY,5902445557,1318282
03.12.2020,CHILDREN'S SERVICES,SINEAD JOYCE,"1,710.00",SUMMERHOUSE,CONSULTANTS SERVICES,5902445567,1000056695
03.12.2020,COMMISSIONING & CENTRAL,OXFORD BROOKES UNIVERSITY,"1,290.00",PARTNERSHIP COMMISSIONING TEAM,TRAINING,5902445257,1000005331
03.12.2020,COMMUNITIES,SOUTHWARK CATHEDRAL,"3,558.00",MAYORAL SUPPORT,HIRE OF ROOMS/HALLS,5902445653,1000063220
03.12.2020,COMMUNITIES,CORNELIUS & DAVIES LTD T/A E WOLFE,"3,950.00",MAYORAL SUPPORT,EQUIPMENT PURCHASE & REPAIR,5902445649,1000076491
03.12.2020,COMMUNITIES,COLIN HEAD,"1,600.00",MAYORAL SUPPORT,OP LEASE/HIRE CHARGES:PLANT/EQUIP/FURNIT,5902445662,1000084174
03.12.2020,COMMUNITIES,ST HELENA & OLDFIELD TR&A,"1,300.00",RESIDENTS PARTICIPATION FUND,GRANTS,5902444542,1000061625
03.12.2020,CUSTOMER EXPERIENCE HGF,SG PATH LTD,415.8,CORONER'S,PROFESSIONAL FEES,5902445597,1000077883
03.12.2020,CUSTOMER EXPERIENCE HGF,M ESTATES LONDON LTD,"1,300.00",HOMELESS PROJECTS,GRANTS,5902445577,1000083459
03.12.2020,CUSTOMER EXPERIENCE HGF,HOMES2LET UK LTD,"9,430.50",NIGHTLY TA (NSC),EXTERNAL AGENCIES AND BODIES,5902445537,1000079868
03.12.2020,CUSTOMER EXPERIENCE HGF,OLIVER LANDON LTD,"6,423.00",NIGHTLY TA (NSC),EXTERNAL AGENCIES AND BODIES,5902445530,1000082788
03.12.2020,CUSTOMER EXPERIENCE HGF,WENTWORTH HOUSING LTD,"29,467.54",PSL PLACEMENTS,EXTERNAL AGENCIES AND BODIES,5902445586,1000083640
03.12.2020,CUSTOMER EXPERIENCE HGF,WENTWORTH HOUSING LTD,"12,500.00",PSL PLACEMENTS,GRANTS,5902445573,1000083640
03.12.2020,ENVIRONMENT AND LEISURE,BLAKEDOWN LANDSCAPES,"188,198.00",CAPITAL PS (LEISURE),CONSTRUCTION MAIN CONTRACT,2103182986,4005399
03.12.2020,ENVIRONMENT AND LEISURE,LBOX COMMUNICATIONS,830.16,CAPITAL PS (LEISURE),CONSTRUCTION FEES  - EXTERNAL,5902445543,1000044844
03.12.2020,ENVIRONMENT AND LEISURE,CYCLEHOOP LTD,"2,800.00",CAPITAL PS (LEISURE),CONSTRUCTION,5902445544,1000057894
03.12.2020,ENVIRONMENT AND LEISURE,CYCLEHOOP LTD,"2,800.00",CAPITAL PS (LEISURE),CONSTRUCTION,5902445552,1000057894
03.12.2020,ENVIRONMENT AND LEISURE,CYCLEHOOP LTD,"2,800.00",CAPITAL PS (LEISURE),CONSTRUCTION,5902445565,1000057894
03.12.2020,ENVIRONMENT AND LEISURE,CYCLEHOOP LTD,"2,800.00",CAPITAL PS (LEISURE),CONSTRUCTION,5902445570,1000057894
03.12.2020,ENVIRONMENT AND LEISURE,CYCLEHOOP LTD,"2,800.00",CAPITAL PS (LEISURE),CONSTRUCTION,5902445588,1000057894
03.12.2020,ENVIRONMENT AND LEISURE,TYCO INTEGRATED FIRE & SECURITY,"3,500.40",CAPITAL PS (LEISURE),CONSTRUCTION FEES  - EXTERNAL,5902445600,1000077948
03.12.2020,ENVIRONMENT AND LEISURE,ASH&HARPER LTD,"6,842.50",CAPITAL PS (REGEN),CONSTRUCTION FEES  - EXTERNAL,5902444984,1000085534
03.12.2020,ENVIRONMENT DIRECTORATE,AUTOMOTIVE LEASING,"4,152.30",COMMERCIAL VEH CTRL A/C,HIRED VEHICLES,5902445560,11014756
03.12.2020,ENVIRONMENT DIRECTORATE,TYCO INTEGRATED FIRE & SECURITY,"3,737.50",PARKING & CAR PARKS CCTV,PROFESSIONAL FEES,5902444858,1000077948
03.12.2020,ENVIRONMENT DIRECTORATE,REDACTED PERSONAL DATA,800,RESIDENTIAL SERVICES,MANDATORY STATUTORY FEES & CHARGES,REDACTED,REDACTED
03.12.2020,ENVIRONMENT DIRECTORATE,TYCO INTEGRATED FIRE & SECURITY,"13,802.75",TOWN CENTRE CCTV,EQUIPMENT PURCHASE & REPAIR,5902445633,1000077948
03.12.2020,ENVIRONMENT DIRECTORATE,WSP UK LTD,"4,956.00",TRANSPORT PROJECTS,CONSULTANTS SERVICES,5902445659,1000054214
03.12.2020,ENVIRONMENT DIRECTORATE,WSP UK LTD,"5,567.24",TRANSPORT PROJECTS,CONSULTANTS SERVICES,5902445658,1000054214
03.12.2020,ENVIRONMENT DIRECTORATE,PROJECT CENTRE LTD,"6,052.64",TRANSPORT PROJECTS,OTHER CONTRACTORS,5902445531,1000072621
03.12.2020,ENVIRONMENT DIRECTORATE,PROJECT CENTRE LTD,"6,868.80",TRANSPORT PROJECTS,OTHER CONTRACTORS,5902445540,1000072621
03.12.2020,F & C S EXCLUDING CORPORATE BUDGETS,TELSOLUTIONS LTD,600,ADMINISTRATIVE SUPPORT,TELEPHONES (MOBILES),5902445579,1000074033
03.12.2020,F & C S EXCLUDING CORPORATE BUDGETS,TELSOLUTIONS LTD,"3,045.60",ADMINISTRATIVE SUPPORT,TELEPHONES (MOBILES),5902445578,1000074033
03.12.2020,F & C S EXCLUDING CORPORATE BUDGETS,INSTITUTE OF MONEY ADVISORS,341.36,ADMINISTRATIVE SUPPORT,TRAINING,5902444996,1000081706
03.12.2020,F & C S EXCLUDING CORPORATE BUDGETS,REDACTED PERSONAL DATA,500,SESS,OTHER PAYMENTS FOR CLIENTS,REDACTED,REDACTED
03.12.2020,F & C S EXCLUDING CORPORATE BUDGETS,REDACTED PERSONAL DATA,500,SESS,OTHER PAYMENTS FOR CLIENTS,REDACTED,REDACTED
03.12.2020,F & C S EXCLUDING CORPORATE BUDGETS,REDACTED PERSONAL DATA,500,SESS,OTHER PAYMENTS FOR CLIENTS,REDACTED,REDACTED
03.12.2020,HOUSING,DUCTCLEAN (UK) LTD,"88,993.02",DUCTCLEAN,I-WORLD CONTRACTORS HOLDING ACCOUNT,2103182577,3000001635
03.12.2020,HOUSING,PRB ESTATES LTD,"49,301.51",PRBE,I-WORLD CONTRACTORS HOLDING ACCOUNT,2103182590,3000001691
03.12.2020,HOUSING,PRB ESTATES LTD,"169,382.16",PRBE,I-WORLD CONTRACTORS HOLDING ACCOUNT,2103182589,3000001691
03.12.2020,HOUSING GENERAL FUND,BUILDTRUST LTD,"6,506.92",CAPITAL PS (HOUSING GF),CAPITAL GRANTS,5902445527,1000079190
03.12.2020,HOUSING GENERAL FUND,BUILDTRUST LTD,"6,924.08",CAPITAL PS (HOUSING GF),CAPITAL GRANTS,5902445642,1000079190
03.12.2020,HOUSING HRA,1ST LINE DEFENCE LTD,650,CAPITAL PS (HRA),CONSTRUCTION FEES  - EXTERNAL,5902445617,1000074361
03.12.2020,HOUSING HRA,APT SCAFFOLDING LTD,"11,018.80",CAPITAL PS (HRA),CONSTRUCTION SUB CONTRACT -CERTIFICATED,2103182591,3000002155
03.12.2020,HOUSING HRA,POTTER RAPER LTD,"5,925.71",CAPITAL PS (REGEN),CONSTRUCTION FEES - QUANTITY SURVEYOR,5902444886,1009369
03.12.2020,HOUSING HRA,DDS DEMOLITION LTD,"11,241.70",CAPITAL PS (REGEN),CONSTRUCTION SITE COSTS,2103182987,3000002058
03.12.2020,LEISURE DIRECTORATE,PHS GROUP PLC,"1,735.72",CREMATORIUM,OTHER CONTRACTORS,5902445576,1851993
03.12.2020,LEISURE DIRECTORATE,CASTLE WATER LTD,"1,648.12",SDM BUDGET,WATER,5902445602,1000078867
03.12.2020,LEISURE DIRECTORATE,ASKEWS & HOLTS LIBRARY SERVICES LTD,"12,319.82",STOCK SERVICES,BOOKS & PUBLICATIONS,5902445456,1494168
03.12.2020,MODERNISATION HGF,ROYAL MAIL GROUP LTD,"1,630.78",160 TOOLEY ST.,POSTAGES,5902444864,1000008168
03.12.2020,NEW BUILD,MONTAGU EVANS LLP,550,DEVELOPMENT DELIVERY,PROFESSIONAL FEES,5902445033,1000073283
03.12.2020,PLANNING AND TRANSPORT,SOUTHERN BUILDING CONTROL PARTNERSHIP,"1,064.00",BUILDING CONTROL,TRAINING,5902445605,1000082029
03.12.2020,PLANNING AND TRANSPORT,SOUTHERN BUILDING CONTROL PARTNERSHIP,"1,266.00",BUILDING CONTROL,TRAINING,5902445605,1000082029
03.12.2020,REGENERATION,PINSENT MASONS LLP,"8,986.00",CANADA WATER,PAYMENTS FOR LEGAL SERVICES,5902445347,1000046862
03.12.2020,RESIDENT SERVICES,THE PLAY INSPECTION COMPANY LTD,295,GREAT ESTATES,BUILDING R&M,5902445341,1000072456
03.12.2020,RESIDENT SERVICES,TFL TELESALES / OYSTER FULFILMENT,720,OPERATIONS/OFFICES ACCOMMODATION,PUBLIC TRANSPORT,5902445599,1000059727
03.12.2020,RESIDENT SERVICES,J & M OASIS LTD,"1,050.00",TA PLACEMENTS,EXTERNAL AGENCIES AND BODIES,5902445678,1000072169
03.12.2020,RESIDENT SERVICES,NORBURY PROPERTY SERVICES (LONDON) LTD,"6,486.50",TA PLACEMENTS,EXTERNAL AGENCIES AND BODIES,5902445665,1000075566
03.12.2020,STRATEGIC FINANCING BUDGETS,COMENSURA LTD,"609,535.92",WEEKLY PAYMENTS,AGENCY STAFF,5902445639,1000051261
04.12.2020,ADULT SOCIAL CARE,TAVISTOCK & PORTMAN NHS FT,"1,320.00","ASC - PROF DEV, QUALIFICATIONS AND CONSU",TRAINING,5902445761,1991321
04.12.2020,ADULT SOCIAL CARE,TAVISTOCK & PORTMAN NHS FT,"12,150.00","ASC - PROF DEV, QUALIFICATIONS AND CONSU",TRAINING,5902445764,1991321
04.12.2020,ADULT SOCIAL CARE,G4S CASH SOLUTIONS UK LIMITED,-287.55,CLIENT FINANCE TEAM,PAYMENTS FOR FINANCIAL SERVICES,5902445699,1000066005
04.12.2020,ADULT SOCIAL CARE,G4S CASH SOLUTIONS UK LIMITED,"4,396.17",CLIENT FINANCE TEAM,PAYMENTS FOR FINANCIAL SERVICES,5902445690,1000066005
04.12.2020,ADULT SOCIAL CARE,G4S CASH SOLUTIONS UK LIMITED,"4,396.17",CLIENT FINANCE TEAM,PAYMENTS FOR FINANCIAL SERVICES,5902445695,1000066005
04.12.2020,ADULT SOCIAL CARE,G4S CASH SOLUTIONS UK LIMITED,"4,396.17",CLIENT FINANCE TEAM,PAYMENTS FOR FINANCIAL SERVICES,5902445697,1000066005
04.12.2020,ADULT SOCIAL CARE,G4S CASH SOLUTIONS UK LIMITED,"4,396.17",CLIENT FINANCE TEAM,PAYMENTS FOR FINANCIAL SERVICES,5902445698,1000066005
04.12.2020,ADULT SOCIAL CARE,THE DRIVE CARE HOMES LTD,"14,393.10",DISABILITIES LAC,EXTERNAL AGENCIES AND BODIES,2103183026,1000003889
04.12.2020,ADULT SOCIAL CARE,THE DRIVE CARE HOMES LTD,"13,670.83",DISABILITIES LAC,RESIDENTIAL CARE,2103183022,1000003889
04.12.2020,ADULT SOCIAL CARE,BY THE BRIDGE LTD,"5,571.43",DISABILITIES LAC,EXTERNAL AGENCIES AND BODIES,2103183038,1000043961
04.12.2020,ADULT SOCIAL CARE,BY THE BRIDGE LTD,"6,030.00",DISABILITIES LAC,EXTERNAL AGENCIES AND BODIES,2103183034,1000043961
04.12.2020,ADULT SOCIAL CARE,CHOICE SUPPORT,293.92,LD LTS 18-64,SUPPORTED LIVING,2103183171,1104183
04.12.2020,ADULT SOCIAL CARE,CHOICE SUPPORT,440.88,LD LTS 18-64,SUPPORTED LIVING,2103183163,1104183
04.12.2020,ADULT SOCIAL CARE,CHOICE SUPPORT,514.36,LD LTS 18-64,SUPPORTED LIVING,2103183164,1104183
04.12.2020,ADULT SOCIAL CARE,CHOICE SUPPORT,661.32,LD LTS 18-64,SUPPORTED LIVING,2103183169,1104183
04.12.2020,ADULT SOCIAL CARE,CHOICE SUPPORT,734,LD LTS 18-64,SUPPORTED LIVING,2103183165,1104183
04.12.2020,ADULT SOCIAL CARE,CHOICE SUPPORT,"1,543.08",LD LTS 18-64,SUPPORTED LIVING,2103183162,1104183
04.12.2020,ADULT SOCIAL CARE,CARE O LINE,"1,320.00",LD LTS 18-64,SUPPORTED LIVING,2103183202,11241743
04.12.2020,ADULT SOCIAL CARE,SURREY DOCKS FARM PROVIDENT SOCIETY,480,LD LTS 18-64,DAYCARE,2103183200,1000000958
04.12.2020,ADULT SOCIAL CARE,SURREY DOCKS FARM PROVIDENT SOCIETY,487.5,LD LTS 18-64,DAYCARE,2103183201,1000000958
04.12.2020,ADULT SOCIAL CARE,SURREY DOCKS FARM PROVIDENT SOCIETY,720,LD LTS 18-64,DAYCARE,2103183199,1000000958
04.12.2020,ADULT SOCIAL CARE,CONTACT PROFESSIONALS,465,LD LTS 18-64,SUPPORTED LIVING,2103183170,1000057263
04.12.2020,ADULT SOCIAL CARE,CONTACT PROFESSIONALS,684,LD LTS 18-64,SUPPORTED LIVING,2103183173,1000057263
04.12.2020,ADULT SOCIAL CARE,CONTACT PROFESSIONALS,912,LD LTS 18-64,SUPPORTED LIVING,2103183168,1000057263
04.12.2020,ADULT SOCIAL CARE,CARE DIRECT UK LTD,330.96,LD LTS 18-64,SUPPORTED LIVING,2103183180,1000066322
04.12.2020,ADULT SOCIAL CARE,CARE DIRECT UK LTD,399.91,LD LTS 18-64,SUPPORTED LIVING,2103183186,1000066322
04.12.2020,ADULT SOCIAL CARE,CHOICE SUPPORT,"6,935.52",LD LTS 65+,SUPPORTED LIVING,2103183174,1104183
04.12.2020,ADULT SOCIAL CARE,LAMBETH CHINESE COMMUNITY ASSOCIATION,340,MH LTS 18-64,SUPPORTED LIVING,2103183196,11117038
04.12.2020,ADULT SOCIAL CARE,THE MONEY CARER FOUNDATION,280,MH LTS 18-64,SUPPORTED LIVING,2103183166,1000073148
04.12.2020,ADULT SOCIAL CARE,WORKING TRANSITIONS,600,ORIENT ST � RESPITE,OFFICE EXPENSES,5902445796,1000063689
04.12.2020,ADULT SOCIAL CARE,MEDACS HOMECARE,"2,772.00",PHY LTS 18-64,HOMECARE - C&V,2103183203,11287415
04.12.2020,ADULT SOCIAL CARE,MEDACS HOMECARE,"2,772.00",PHY LTS 18-64,HOMECARE - C&V,2103183204,11287415
04.12.2020,ADULT SOCIAL CARE,MEDACS HOMECARE,"2,772.00",PHY LTS 18-64,HOMECARE - C&V,2103183205,11287415
04.12.2020,ADULT SOCIAL CARE,MEDACS HOMECARE,"2,772.00",PHY LTS 18-64,HOMECARE - C&V,2103183206,11287415
04.12.2020,ADULT SOCIAL CARE,MEDACS HOMECARE,"2,772.00",PHY LTS 18-64,HOMECARE - C&V,2103183207,11287415
04.12.2020,ADULT SOCIAL CARE,MEDACS HOMECARE,"2,772.00",PHY LTS 18-64,HOMECARE - C&V,2103183208,11287415
04.12.2020,ADULT SOCIAL CARE,LAMBETH CHINESE COMMUNITY ASSOCIATION,923.4,PHY LTS 65+,HOMECARE - SPOT,2103183195,11117038
04.12.2020,ADULT SOCIAL CARE,LONDON CARE LTD,369.13,PHY LTS 65+,HOMECARE - C&V,2103183192,1000003398
04.12.2020,ADULT SOCIAL CARE,LONDON CARE LTD,609,PHY LTS 65+,HOMECARE - C&V,2103183193,1000003398
04.12.2020,ADULT SOCIAL CARE,SUPREME CARE SERVICES LTD,733.12,PHY LTS 65+,HOMECARE - C&V,2103183177,1000059416
04.12.2020,ADULT SOCIAL CARE,SUPREME CARE SERVICES LTD,"1,143.42",PHY LTS 65+,HOMECARE - C&V,2103183175,1000059416
04.12.2020,ADULT SOCIAL CARE,CARE DIRECT UK LTD,559.13,PHY LTS 65+,HOMECARE - SPOT,2103183179,1000066322
04.12.2020,ADULT SOCIAL CARE,CARE DIRECT UK LTD,559.13,PHY LTS 65+,HOMECARE - SPOT,2103183184,1000066322
04.12.2020,ADULT SOCIAL CARE,CARE DIRECT UK LTD,621.25,PHY LTS 65+,HOMECARE - SPOT,2103183183,1000066322
04.12.2020,ADULT SOCIAL CARE,CARE DIRECT UK LTD,621.25,PHY LTS 65+,HOMECARE - SPOT,2103183188,1000066322
04.12.2020,ADULT SOCIAL CARE,PROFAD CARE AGENCY,584.96,PHY LTS 65+,HOMECARE - SPOT,2103183191,1000079032
04.12.2020,ADULT SOCIAL CARE,LAMBETH CHINESE COMMUNITY ASSOCIATION,"2,041.20",PHY STS 65+,HOMECARE - IC,2103183194,11117038
04.12.2020,ADULT SOCIAL CARE,ROMEDICAL LTD,377.7,SAFEGUARDING & DOLS,OTHER CONTRACTORS,5902445691,1000076318
04.12.2020,ADULT SOCIAL CARE,ROMEDICAL LTD,576.3,SAFEGUARDING & DOLS,OTHER CONTRACTORS,5902445694,1000076318
04.12.2020,ADULT SOCIAL CARE,ROMEDICAL LTD,740.26,SAFEGUARDING & DOLS,OTHER CONTRACTORS,5902445696,1000076318
04.12.2020,ADULT SOCIAL CARE,SURREY DOCKS FARM PROVIDENT SOCIETY,500,SOCIAL ISOLATION,DAYCARE,2103183198,1000000958
04.12.2020,ADULT SOCIAL CARE,INTERSERVE HEALTHCARE,400.8,SPECIALIST CARE,SECTION 17 PAYMENTS TO AGENCIES/CARERS,2103183095,1000049612
04.12.2020,ADULT SOCIAL CARE,INTERSERVE HEALTHCARE,405.96,SPECIALIST CARE,SECTION 17 PAYMENTS TO AGENCIES/CARERS,2103183134,1000049612
04.12.2020,ADULT SOCIAL CARE,CONTACT PROFESSIONALS,342,SPECIALIST CARE,OTHER PAYMENTS FOR CLIENTS,2103183088,1000057263
04.12.2020,ADULT SOCIAL CARE,CONTACT PROFESSIONALS,342,SPECIALIST CARE,SECTION 17 PAYMENTS TO AGENCIES/CARERS,2103183103,1000057263
04.12.2020,ADULT SOCIAL CARE,CONTACT PROFESSIONALS,798,SPECIALIST CARE,SECTION 17 PAYMENTS TO AGENCIES/CARERS,2103183140,1000057263
04.12.2020,ASSET MANAGEMENT,STANNAH LIFT SERVICES LTD,"5,531.00",ADAPTATIONS,BUILDING R&M,5902445700,1063595
04.12.2020,ASSET MANAGEMENT,ASHFORDS LLP,"2,250.00",DISREPAIR,PAYMENTS FOR LEGAL SERVICES,2103183234,1000055865
04.12.2020,ASSET MANAGEMENT,ASHFORDS LLP,"8,750.00",DISREPAIR,PAYMENTS FOR LEGAL SERVICES,2103183227,1000055865
04.12.2020,ASSET MANAGEMENT,PROPERTY FACILITIES GROUP LTD,793.43,DISREPAIR,PAYMENTS FOR LEGAL SERVICES,2103183240,1000063713
04.12.2020,ASSET MANAGEMENT,PROPERTY FACILITIES GROUP LTD,"1,764.64",DISREPAIR,PAYMENTS FOR LEGAL SERVICES,2103183235,1000063713
04.12.2020,ASSET MANAGEMENT,PROPERTY FACILITIES GROUP LTD,"1,931.81",DISREPAIR,PAYMENTS FOR LEGAL SERVICES,2103183237,1000063713
04.12.2020,ASSET MANAGEMENT,PROPERTY FACILITIES GROUP LTD,"1,966.98",DISREPAIR,PAYMENTS FOR LEGAL SERVICES,2103183238,1000063713
04.12.2020,ASSET MANAGEMENT,PROPERTY FACILITIES GROUP LTD,"2,058.16",DISREPAIR,PAYMENTS FOR LEGAL SERVICES,2103183236,1000063713
04.12.2020,ASSET MANAGEMENT,CHESHIRE ESTATE AND LEGAL LTD,400,DISREPAIR,PAYMENTS FOR LEGAL SERVICES,2103183231,1000081908
04.12.2020,ASSET MANAGEMENT,CHESHIRE ESTATE AND LEGAL LTD,600,DISREPAIR,PAYMENTS FOR LEGAL SERVICES,2103183230,1000081908
04.12.2020,ASSET MANAGEMENT,CHESHIRE ESTATE AND LEGAL LTD,"1,000.00",DISREPAIR,PAYMENTS FOR LEGAL SERVICES,2103183229,1000081908
04.12.2020,ASSET MANAGEMENT,HIGH STREET SOLICITORS LTD,"2,600.00",DISREPAIR,PAYMENTS FOR LEGAL SERVICES,2103183228,1000083576
04.12.2020,ASSET MANAGEMENT,COBLEYS SOLICITORS LTD,"2,866.55",DISREPAIR,PAYMENTS FOR LEGAL SERVICES,2103183225,1000083642
04.12.2020,ASSET MANAGEMENT,SBW  LAW,"1,500.00",DISREPAIR,PAYMENTS FOR LEGAL SERVICES,2103183226,1000085191
04.12.2020,ASSET MANAGEMENT,MERGUL LAW SOLICITORS,"5,000.00",DISREPAIR,PAYMENTS FOR LEGAL SERVICES,2103183232,1000085974
04.12.2020,ASSET MANAGEMENT,GAS ADVISORY SERVICES LIMITED,"11,590.30",MAJOR REPAIRS,BUILDING R&M,5902445801,1000064649
04.12.2020,CENTRAL FUNCTIONS,OPUS ENERGY LIMITED,728.82,COMMERCIAL PROPERTIES,ELECTRICITY,5902445738,1000062486
04.12.2020,CENTRAL FUNCTIONS,OPUS ENERGY LIMITED,524.63,COMMERCIAL PROPERTIES,GAS,5902445740,1000062486
04.12.2020,CHIEF EXECUTIVE'S OFFICE,SABROSO LTD,"6,901.79",CHIEF EXECUTIVE'S OFFICE,EXTERNAL AGENCIES AND BODIES,5902445766,1000084610
04.12.2020,CHILDREN AND ADULT,FEILDEN CLEGG BRADLEY STUDIOS LLP,"76,646.00",CAPITAL PS (EDUCATION),CONSTRUCTION FEES - ARCHITECT,5902445706,1000067957
04.12.2020,CHILDREN AND ADULT,CONWAY AECOM LTD,"16,415.79",CAPITAL PS (EDUCATION),CONSTRUCTION SITE COSTS,2103183213,3000001595
04.12.2020,CHILDREN AND FAMILIES,ALLPAY LTD,362.24,C & F FINANCE TEAM,PROFESSIONAL FEES,5902445682,1000043001
04.12.2020,CHILDREN AND FAMILIES,KEYS PCE LTD,"16,928.57",CHILDREN�S RESID,RESIDENTIAL CARE,2103183018,1000080090
04.12.2020,CHILDREN AND FAMILIES,OWNLIFE RESIDENTIAL LTD,"18,000.00",CHILDREN�S RESID,RESIDENTIAL CARE,2103183020,1000085398
04.12.2020,CHILDREN AND FAMILIES,OWNLIFE RESIDENTIAL LTD,"25,285.71",CHILDREN�S RESID,RESIDENTIAL CARE,2103183015,1000085398
04.12.2020,CHILDREN AND FAMILIES,OWNLIFE RESIDENTIAL LTD,"25,285.71",CHILDREN�S RESID,RESIDENTIAL CARE,2103183024,1000085398
04.12.2020,CHILDREN AND FAMILIES,OWNLIFE RESIDENTIAL LTD,"25,285.71",CHILDREN�S RESID,RESIDENTIAL CARE,2103183028,1000085398
04.12.2020,CHILDREN AND FAMILIES,CONTACT PROFESSIONALS,720,CONTACT SERVICE,OTHER PAYMENTS FOR CLIENTS,2103183142,1000057263
04.12.2020,CHILDREN AND FAMILIES,CONTACT PROFESSIONALS,885,CONTACT SERVICE,OTHER PAYMENTS FOR CLIENTS,2103183143,1000057263
04.12.2020,CHILDREN AND FAMILIES,KASPER FOSTERING,"3,578.70",FRIENDS & FAMILY FOSTERING,EXTERNAL AGENCIES AND BODIES,2103183052,1000036628
04.12.2020,CHILDREN AND FAMILIES,KASPER FOSTERING,"4,727.10",FRIENDS & FAMILY FOSTERING,EXTERNAL AGENCIES AND BODIES,2103183068,1000036628
04.12.2020,CHILDREN AND FAMILIES,BY THE BRIDGE LTD,-716.22,FRIENDS & FAMILY FOSTERING,EXTERNAL AGENCIES AND BODIES,2103183054,1000043961
04.12.2020,CHILDREN AND FAMILIES,BY THE BRIDGE LTD,"1,225.66",FRIENDS & FAMILY FOSTERING,EXTERNAL AGENCIES AND BODIES,2103183064,1000043961
04.12.2020,CHILDREN AND FAMILIES,BY THE BRIDGE LTD,"4,082.44",FRIENDS & FAMILY FOSTERING,EXTERNAL AGENCIES AND BODIES,2103183044,1000043961
04.12.2020,CHILDREN AND FAMILIES,BY THE BRIDGE LTD,"4,297.33",FRIENDS & FAMILY FOSTERING,EXTERNAL AGENCIES AND BODIES,2103183036,1000043961
04.12.2020,CHILDREN AND FAMILIES,BY THE BRIDGE LTD,"4,359.64",FRIENDS & FAMILY FOSTERING,EXTERNAL AGENCIES AND BODIES,2103183042,1000043961
04.12.2020,CHILDREN AND FAMILIES,BY THE BRIDGE LTD,"4,366.37",FRIENDS & FAMILY FOSTERING,EXTERNAL AGENCIES AND BODIES,2103183074,1000043961
04.12.2020,CHILDREN AND FAMILIES,BY THE BRIDGE LTD,"4,433.01",FRIENDS & FAMILY FOSTERING,EXTERNAL AGENCIES AND BODIES,2103183032,1000043961
04.12.2020,CHILDREN AND FAMILIES,BY THE BRIDGE LTD,"4,559.40",FRIENDS & FAMILY FOSTERING,EXTERNAL AGENCIES AND BODIES,2103183046,1000043961
04.12.2020,CHILDREN AND FAMILIES,BY THE BRIDGE LTD,"4,745.36",FRIENDS & FAMILY FOSTERING,EXTERNAL AGENCIES AND BODIES,2103183072,1000043961
04.12.2020,CHILDREN AND FAMILIES,BY THE BRIDGE LTD,"4,761.17",FRIENDS & FAMILY FOSTERING,EXTERNAL AGENCIES AND BODIES,2103183062,1000043961
04.12.2020,CHILDREN AND FAMILIES,ORANGE GROVE FOSTERCARE LTD,"3,630.60",FRIENDS & FAMILY FOSTERING,EXTERNAL AGENCIES AND BODIES,2103183060,1000078716
04.12.2020,CHILDREN AND FAMILIES,FOSTERING FOR YOU LTD,"3,165.69",FRIENDS & FAMILY FOSTERING,EXTERNAL AGENCIES AND BODIES,2103183040,1000080380
04.12.2020,CHILDREN AND FAMILIES,FOSTERING FOR YOU LTD,"3,165.69",FRIENDS & FAMILY FOSTERING,EXTERNAL AGENCIES AND BODIES,2103183050,1000080380
04.12.2020,CHILDREN AND FAMILIES,FOSTERING FOR YOU LTD,"3,332.31",FRIENDS & FAMILY FOSTERING,EXTERNAL AGENCIES AND BODIES,2103183030,1000080380
04.12.2020,CHILDREN AND FAMILIES,FOSTERING FOR YOU LTD,"3,332.31",FRIENDS & FAMILY FOSTERING,EXTERNAL AGENCIES AND BODIES,2103183048,1000080380
04.12.2020,CHILDREN AND FAMILIES,FOSTERING FOR YOU LTD,"3,332.31",FRIENDS & FAMILY FOSTERING,EXTERNAL AGENCIES AND BODIES,2103183058,1000080380
04.12.2020,CHILDREN AND FAMILIES,FOSTERING FOR YOU LTD,"3,332.31",FRIENDS & FAMILY FOSTERING,EXTERNAL AGENCIES AND BODIES,2103183075,1000080380
04.12.2020,CHILDREN AND FAMILIES,FOSTERING FOR YOU LTD,"3,332.31",FRIENDS & FAMILY FOSTERING,EXTERNAL AGENCIES AND BODIES,2103183077,1000080380
04.12.2020,CHILDREN AND FAMILIES,FAMILY WORKS FOSTERING LTD,"5,442.90",FRIENDS & FAMILY FOSTERING,EXTERNAL AGENCIES AND BODIES,2103183070,1000082529
04.12.2020,CHILDREN AND FAMILIES,FLOURISH FOSTERING LTD,"4,223.91",FRIENDS & FAMILY FOSTERING,EXTERNAL AGENCIES AND BODIES,2103183066,1000084796
04.12.2020,CHILDREN AND FAMILIES,FLOURISH FOSTERING LTD,"4,422.60",FRIENDS & FAMILY FOSTERING,EXTERNAL AGENCIES AND BODIES,2103183056,1000084796
04.12.2020,CHILDREN AND FAMILIES,FLOURISH FOSTERING LTD,"4,523.48",FRIENDS & FAMILY FOSTERING,EXTERNAL AGENCIES AND BODIES,2103183073,1000084796
04.12.2020,CHILDREN AND FAMILIES,FLOURISH FOSTERING LTD,"4,650.47",FRIENDS & FAMILY FOSTERING,EXTERNAL AGENCIES AND BODIES,2103183076,1000084796
04.12.2020,CHILDREN AND FAMILIES,LOGICOUS LTD,"1,296.25",FRIENDS &FAMILY FOST,NURSING PLACEMENTS FEES,5902445742,1000073852
04.12.2020,CHILDREN AND FAMILIES,HOLLY ROBERTSON,400,P & R CARE TEAM,OTHER PAYMENTS FOR CLIENTS,5902445798,1000085982
04.12.2020,CHILDREN AND FAMILIES,OWNLIFE LTD,"-1,548.75",SEMI-IND CARELEAVERS,EXTERNAL AGENCIES AND BODIES,2103183160,1000056219
04.12.2020,CHILDREN AND FAMILIES,OWNLIFE LTD,"3,685.71",SEMI-IND CARELEAVERS,EXTERNAL AGENCIES AND BODIES,2103183153,1000056219
04.12.2020,CHILDREN AND FAMILIES,CREATING LIFESTYLES LTD,"11,200.00",SEMI-IND CARELEAVERS,EXTERNAL AGENCIES AND BODIES,2103183156,1000075830
04.12.2020,CHILDREN AND FAMILIES,ELLIOT LEIGH TLC LTD,-899.99,SEMI-IND CARELEAVERS,COSTS RECOVERED,2103180346,1000079022
04.12.2020,CHILDREN AND FAMILIES,ELLIOT LEIGH TLC LTD,321.3,SEMI-IND CARELEAVERS,EXTERNAL AGENCIES AND BODIES,2103183158,1000079022
04.12.2020,CHILDREN AND FAMILIES,ELLIOT LEIGH TLC LTD,"1,628.70",SEMI-IND CARELEAVERS,EXTERNAL AGENCIES AND BODIES,2103183152,1000079022
04.12.2020,CHILDREN AND FAMILIES,ELLIOT LEIGH TLC LTD,"1,671.30",SEMI-IND CARELEAVERS,EXTERNAL AGENCIES AND BODIES,2103183151,1000079022
04.12.2020,CHILDREN AND FAMILIES,ELLIOT LEIGH TLC LTD,"2,241.30",SEMI-IND CARELEAVERS,EXTERNAL AGENCIES AND BODIES,2103183150,1000079022
04.12.2020,CHILDREN AND FAMILIES,ELLIOT LEIGH TLC LTD,"2,421.30",SEMI-IND CARELEAVERS,EXTERNAL AGENCIES AND BODIES,2103183147,1000079022
04.12.2020,CHILDREN AND FAMILIES,ELLIOT LEIGH TLC LTD,"2,635.80",SEMI-IND CARELEAVERS,EXTERNAL AGENCIES AND BODIES,2103183155,1000079022
04.12.2020,CHILDREN AND FAMILIES,ELLIOT LEIGH TLC LTD,"2,808.30",SEMI-IND CARELEAVERS,EXTERNAL AGENCIES AND BODIES,2103183145,1000079022
04.12.2020,CHILDREN AND FAMILIES,ELLIOT LEIGH TLC LTD,"2,910.00",SEMI-IND CARELEAVERS,EXTERNAL AGENCIES AND BODIES,2103183146,1000079022
04.12.2020,CHILDREN AND FAMILIES,SYDNEY CARE LTD,300,SEMI-IND CARELEAVERS,OTHER PAYMENTS FOR CLIENTS,2103183149,1000081598
04.12.2020,CHILDREN AND FAMILIES,SYDNEY CARE LTD,"9,750.85",SEMI-IND LAC 16-17,EXTERNAL AGENCIES AND BODIES,2103183161,1000081598
04.12.2020,CHILDREN AND FAMILIES,ARC COMMUNITY TRUSTEES,650,SPECIAL GUARDIANSHIP,EXTERNAL AGENCIES AND BODIES,5902445710,1000046206
04.12.2020,CHILDREN AND FAMILIES,ELLIOT LEIGH TLC LTD,"1,658.40",UASC CARELEAVERS,EXTERNAL AGENCIES AND BODIES,2103183157,1000079022
04.12.2020,CHILDREN AND FAMILIES,ELLIOT LEIGH TLC LTD,"1,671.30",UASC CARELEAVERS,EXTERNAL AGENCIES AND BODIES,2103183159,1000079022
04.12.2020,CHILDREN AND FAMILIES,ELLIOT LEIGH TLC LTD,"2,314.20",UASC CARELEAVERS,EXTERNAL AGENCIES AND BODIES,2103183148,1000079022
04.12.2020,CHILDREN AND FAMILIES,ELLIOT LEIGH TLC LTD,"2,347.80",UASC CARELEAVERS,EXTERNAL AGENCIES AND BODIES,2103183154,1000079022
04.12.2020,CHILDREN'S SERVICES,WINCHMORE TUTORS LTD,-580,ALTERNATIVE PROVISION,EXTERNAL AGENCIES AND BODIES,5902438973,1000075298
04.12.2020,CHILDREN'S SERVICES,WINCHMORE TUTORS LTD,-440,ALTERNATIVE PROVISION,EXTERNAL AGENCIES AND BODIES,5902438970,1000075298
04.12.2020,CHILDREN'S SERVICES,WINCHMORE TUTORS LTD,-260,ALTERNATIVE PROVISION,EXTERNAL AGENCIES AND BODIES,5902438955,1000075298
04.12.2020,CHILDREN'S SERVICES,WINCHMORE TUTORS LTD,"1,360.00",ALTERNATIVE PROVISION,EXTERNAL AGENCIES AND BODIES,5902445789,1000075298
04.12.2020,CHILDREN'S SERVICES,WINCHMORE TUTORS LTD,"1,600.00",ALTERNATIVE PROVISION,EXTERNAL AGENCIES AND BODIES,5902438969,1000075298
04.12.2020,CHILDREN'S SERVICES,ANNA TKACZYNSKA,"1,300.00",CENTRAL COSTS - SEN,LEGAL FEES & COURT COSTS,5902445604,1000069252
04.12.2020,CHILDREN'S SERVICES,CHARLES DICKENS PRIMARY SCHOOL,"108,461.93",CHARLES DICKENS PRIMARY SCHOOL,SCHOOLS CAPITATION,2103183248,1000085158
04.12.2020,CHILDREN'S SERVICES,CONNEVANS LIMITED,"1,790.00",HEARING AND VISUAL IMPAIRMENT TEAM,EQUIPMENT PURCHASE & REPAIR,5902445749,1000045853
04.12.2020,CHILDREN'S SERVICES,CONNEVANS LIMITED,"1,797.95",HEARING AND VISUAL IMPAIRMENT TEAM,EQUIPMENT PURCHASE & REPAIR,5902445757,1000045853
04.12.2020,CHILDREN'S SERVICES,BRUNSWICK PARK PRIMARY SCHOOL,"9,411.00",MATERNITY COVER,SCHOOLS CAPITATION,2103183242,5001000013
04.12.2020,CHILDREN'S SERVICES,CHARLOTTE  SHARMAN PRIMARY SCHOOL,"8,909.00",MATERNITY COVER,SCHOOLS CAPITATION,2103183243,5001000016
04.12.2020,CHILDREN'S SERVICES,CRAWFORD PRIMARY SCHOOL,"6,740.00",MATERNITY COVER,SCHOOLS CAPITATION,2103183244,5001000024
04.12.2020,CHILDREN'S SERVICES,CRAWFORD PRIMARY SCHOOL,"8,804.00",MATERNITY COVER,SCHOOLS CAPITATION,2103183246,5001000024
04.12.2020,CHILDREN'S SERVICES,CRAWFORD PRIMARY SCHOOL,"15,054.00",MATERNITY COVER,SCHOOLS CAPITATION,2103183245,5001000024
04.12.2020,CHILDREN'S SERVICES,ST JAMES CE SCHOOL,"8,100.00",SCHL DIRECT SALARIES,SPECIFIC GOV'T ADMIN GRANT,2103183250,5001000070
04.12.2020,CHILDREN'S SERVICES,CHARLOTTE  SHARMAN PRIMARY SCHOOL,"14,285.75",SCHOOLS IN FINANCIAL DIFFICULTY,SCHOOLS CAPITATION,2103183247,5001000016
04.12.2020,CHILDREN'S SERVICES,ST SAVIOURS & ST OLAVES SCHOOL,"1,200.00",YPLA SCHL SIXTH FORM,SCHOOLS CAPITATION,2103183249,5001000084
04.12.2020,COMMUNITIES,ROSEMONT CARE LTD,684,NO RECOURSE TO PUBLIC FUNDS,HOMECARE - C&V,2103183190,1000084219
04.12.2020,CUSTOMER EXPERIENCE HGF,CLYDE & CO,716.9,CORONER'S,PROFESSIONAL FEES,5902444925,1000067838
04.12.2020,CUSTOMER EXPERIENCE HGF,CLYDE & CO,"4,082.00",CORONER'S,PROFESSIONAL FEES,5902444927,1000067838
04.12.2020,CUSTOMER EXPERIENCE HGF,SG PATH LTD,415.8,CORONER'S,PROFESSIONAL FEES,5902445730,1000077883
04.12.2020,CUSTOMER EXPERIENCE HGF,IMPERIAL COLLEGE PROJECTS LTD,292,CORONER'S,PROFESSIONAL FEES,5902445433,1000080106
04.12.2020,CUSTOMER EXPERIENCE HGF,IMPERIAL COLLEGE PROJECTS LTD,292,CORONER'S,PROFESSIONAL FEES,5902445457,1000080106
04.12.2020,CUSTOMER EXPERIENCE HGF,IMPERIAL COLLEGE PROJECTS LTD,309,CORONER'S,PROFESSIONAL FEES,5902445449,1000080106
04.12.2020,CUSTOMER EXPERIENCE HGF,IMPERIAL COLLEGE PROJECTS LTD,336,CORONER'S,PROFESSIONAL FEES,5902445460,1000080106
04.12.2020,CUSTOMER EXPERIENCE HGF,IMPERIAL COLLEGE PROJECTS LTD,344,CORONER'S,PROFESSIONAL FEES,5902445461,1000080106
04.12.2020,CUSTOMER EXPERIENCE HGF,IMPERIAL COLLEGE PROJECTS LTD,356,CORONER'S,PROFESSIONAL FEES,5902445422,1000080106
04.12.2020,CUSTOMER EXPERIENCE HGF,IMPERIAL COLLEGE PROJECTS LTD,364,CORONER'S,PROFESSIONAL FEES,5902445452,1000080106
04.12.2020,CUSTOMER EXPERIENCE HGF,IMPERIAL COLLEGE PROJECTS LTD,388,CORONER'S,PROFESSIONAL FEES,5902445454,1000080106
04.12.2020,CUSTOMER EXPERIENCE HGF,IMPERIAL COLLEGE PROJECTS LTD,556,CORONER'S,PROFESSIONAL FEES,5902445444,1000080106
04.12.2020,CUSTOMER EXPERIENCE HGF,IMPERIAL COLLEGE PROJECTS LTD,580,CORONER'S,PROFESSIONAL FEES,5902445437,1000080106
04.12.2020,CUSTOMER EXPERIENCE HGF,EURO HOTELS (THORNTON HEATH) LTD,"19,400.00",COVID-19 SUPPORT,EXTERNAL AGENCIES AND BODIES,5902445702,1000057571
04.12.2020,CUSTOMER EXPERIENCE HGF,EURO HOTELS (THORNTON HEATH) LTD,"310,600.00",COVID-19 SUPPORT,EXTERNAL AGENCIES AND BODIES,5902445702,1000057571
04.12.2020,CUSTOMER EXPERIENCE HGF,REAL LIFESTYLE PROPERTIES LTD,"1,300.00",HOMELESS PROJECTS,GRANTS,5902445831,1000085962
04.12.2020,CUSTOMER EXPERIENCE HGF,HOMELY HOUSING LETS LTD,"8,940.00",NIGHTLY TA (NSC),EXTERNAL AGENCIES AND BODIES,5902445763,1000050013
04.12.2020,CUSTOMER EXPERIENCE HGF,EASYMOVE EA LIMITED,"1,881.00",NIGHTLY TA (NSC),EXTERNAL AGENCIES AND BODIES,5902445817,1000066859
04.12.2020,CUSTOMER EXPERIENCE HGF,SK HOUSING LTD,"9,453.50",NIGHTLY TA (NSC),EXTERNAL AGENCIES AND BODIES,5902445746,1000070716
04.12.2020,CUSTOMER EXPERIENCE HGF,J & M OASIS LTD,"6,585.00",NIGHTLY TA (NSC),EXTERNAL AGENCIES AND BODIES,5902445707,1000072169
04.12.2020,CUSTOMER EXPERIENCE HGF,NORBURY PROPERTY SERVICES (LONDON) LTD,"1,050.00",NIGHTLY TA (NSC),EXTERNAL AGENCIES AND BODIES,5902445825,1000075566
04.12.2020,CUSTOMER EXPERIENCE HGF,FINEFAIR LTD,"8,040.00",NIGHTLY TA (NSC),EXTERNAL AGENCIES AND BODIES,5902445704,1000075570
04.12.2020,CUSTOMER EXPERIENCE HGF,CENTENNIAL PROPERTY LIMITED,"1,650.00",NIGHTLY TA (NSC),EXTERNAL AGENCIES AND BODIES,5902445705,1000083022
04.12.2020,CUSTOMER EXPERIENCE HGF,JAQUELINE COOTE,"2,000.00",PSL (SOCIAL LETTINGS),EXTERNAL AGENCIES AND BODIES,2103183252,1000085940
04.12.2020,CUSTOMER EXPERIENCE HGF,JAQUELINE COOTE,"3,563.00",PSL (SOCIAL LETTINGS),EXTERNAL AGENCIES AND BODIES,2103183251,1000085940
04.12.2020,CUSTOMER EXPERIENCE HGF,OAK HOUSING LTD,"3,383.40",PSL PLACEMENTS,EXTERNAL AGENCIES AND BODIES,5902445813,1000079310
04.12.2020,CUSTOMER EXPERIENCE HGF,LODGISTICS ESTATES,"5,224.63",PSL PLACEMENTS,EXTERNAL AGENCIES AND BODIES,5902445815,1000080324
04.12.2020,CUSTOMER EXPERIENCE HGF,CLYDE & CO,347.2,TRANSFERRED INQUEST,PROFESSIONAL FEES,5902445005,1000067838
04.12.2020,ENVIRONMENT AND LEISURE,F M CONWAY LTD,"15,884.43",CAPITAL PS (LEISURE),CONSTRUCTION,2103183217,4001384
04.12.2020,ENVIRONMENT AND LEISURE,RED R DESIGN,600,CAPITAL PS (LEISURE),CONSTRUCTION FEES - ARCHITECT,5902445072,1000035984
04.12.2020,ENVIRONMENT AND LEISURE,ROBERT HILLS,"6,320.00",CAPITAL PS (LEISURE),CONSTRUCTION FEES,5902445711,1000083259
04.12.2020,ENVIRONMENT DIRECTORATE,LONDON HIRE LIMITED,"2,416.71",COMMERCIAL VEH CTRL A/C,VEHICLE REPAIRS & MAINTENANCE,5902445780,1383812
04.12.2020,ENVIRONMENT DIRECTORATE,KAISER AND KRAFT LTD,293.13,COMMERCIAL WASTE,EQUIPMENT PURCHASE & REPAIR,5902445737,1047662
04.12.2020,ENVIRONMENT DIRECTORATE,EGBERT H TAYLOR & CO LTD,"3,040.00",COMMERCIAL WASTE,EQUIPMENT PURCHASE & REPAIR,5902445751,1000082372
04.12.2020,ENVIRONMENT DIRECTORATE,GREENHAM TRADING LTD,392.92,ESTATE CLEANING-GENERAL,MATERIALS,5902445303,1000006610
04.12.2020,ENVIRONMENT DIRECTORATE,GREENHAM TRADING LTD,738.81,ESTATE CLEANING-GENERAL,MATERIALS,5902445778,1000006610
04.12.2020,ENVIRONMENT DIRECTORATE,SPALDINGS (UK) LTD,"2,376.92",GROUNDS MAINTENANCE - GENERAL,MATERIALS,5902445829,1907384
04.12.2020,ENVIRONMENT DIRECTORATE,KILLGERM CHEMICALS LTD,459.96,PEST CONTROL,MATERIALS,5902445802,1000045706
04.12.2020,ENVIRONMENT DIRECTORATE,KILLGERM CHEMICALS LTD,316.38,PEST CONTROL-CDN A/C,MATERIALS,5902445800,1000045706
04.12.2020,ENVIRONMENT DIRECTORATE,ELLIOT ENVIRONMENTAL LTD,400,STREET CLEANING-GENERAL,OTHER CONTRACTORS,5902444994,1000047392
04.12.2020,ENVIRONMENT DIRECTORATE,REDACTED PERSONAL DATA,"9,779.76",STREET WORKS OVERHEADS,MARKETING & PUBLICITY SERVICES,REDACTED,REDACTED
04.12.2020,F & C S EXCLUDING CORPORATE BUDGETS,CIVICA UK LTD,"10,245.31",ADMINISTRATIVE SUPPORT,SOFTWARE,5902445797,1730625
04.12.2020,F & C S EXCLUDING CORPORATE BUDGETS,BDO LLP,"22,005.00",INTERNAL AUDIT CONTRACTS,PAYMENTS FOR FINANCIAL SERVICES,5902445037,1000057898
04.12.2020,F & C S EXCLUDING CORPORATE BUDGETS,BDO LLP,"2,083.33",RISK ADMIN,PROFESSIONAL FEES,5902444803,1000057898
04.12.2020,F & C S EXCLUDING CORPORATE BUDGETS,REDACTED PERSONAL DATA,500,SESS,OTHER PAYMENTS FOR CLIENTS,REDACTED,REDACTED
04.12.2020,F & C S EXCLUDING CORPORATE BUDGETS,REDACTED PERSONAL DATA,500,SESS,OTHER PAYMENTS FOR CLIENTS,REDACTED,REDACTED
04.12.2020,HOUSING,BUILDTRUST LTD,"171,260.21",BUILD TRUST,MANUAL CREDITORS,2103183218,3000002010
04.12.2020,HOUSING HRA,CALFORD SEADEN LLP,970.57,CAPITAL PS (HRA),CONSTRUCTION FEES  - EXTERNAL,5902445716,1061592
04.12.2020,HOUSING HRA,ENGIE REGENERATION (APOLLO) LTD,"41,880.41",CAPITAL PS (HRA),CONSTRUCTION MAIN CONTRACT -CERTIFICATED,2103183214,4000449
04.12.2020,HOUSING HRA,ENGIE REGENERATION (APOLLO) LTD,"53,143.56",CAPITAL PS (HRA),CONSTRUCTION MAIN CONTRACT -CERTIFICATED,2103183214,4000449
04.12.2020,HOUSING HRA,BRITISH GAS TRADING LTD,485.27,CAPITAL PS (HRA),CONSTRUCTION SITE COSTS,5902445759,1000055977
04.12.2020,HOUSING HRA,OVE ARUP & PARTNERS LTD,"12,300.00",CAPITAL PS (HRA),CONSTRUCTION FEES  - EXTERNAL,5902445814,1000066606
04.12.2020,HOUSING HRA,L H BRIDGE LTD,"7,313.50",CAPITAL PS (HRA),CONST'N MAIN CONTRACT - NON CERTIFICATED,2103183215,3000001167
04.12.2020,HOUSING HRA,3MS GOLD SERVICES LTD,"6,925.00",CAPITAL PS (HRA),CONST'N MAIN CONTRACT - NON CERTIFICATED,2103183216,3000001256
04.12.2020,HOUSING HRA,ENGIE REGENERATION LTD,"154,066.21",CAPITAL PS (HRA),CONSTRUCTION MAIN CONTRACT -CERTIFICATED,2103183004,3000002035
04.12.2020,LEISURE DIRECTORATE,KENT COUNTY COUNCIL - LASER,530.02,CAMBERWELL LIBRARY,ELECTRICITY,5902445809,1000012926
04.12.2020,LEISURE DIRECTORATE,KENT COUNTY COUNCIL - LASER,261.43,DAMILOLA TAYLOR CENTRE,GAS,5902445020,1000012926
04.12.2020,LEISURE DIRECTORATE,KENT COUNTY COUNCIL - LASER,474.62,DAMILOLA TAYLOR CENTRE,GAS,5902445008,1000012926
04.12.2020,LEISURE DIRECTORATE,KENT COUNTY COUNCIL - LASER,483.28,DAMILOLA TAYLOR CENTRE,GAS,5902445469,1000012926
04.12.2020,LEISURE DIRECTORATE,KENT COUNTY COUNCIL - LASER,500.63,DAMILOLA TAYLOR CENTRE,GAS,5902444926,1000012926
04.12.2020,LEISURE DIRECTORATE,KENT COUNTY COUNCIL - LASER,555.52,DAMILOLA TAYLOR CENTRE,GAS,5902444923,1000012926
04.12.2020,LEISURE DIRECTORATE,KENT COUNTY COUNCIL - LASER,593.85,DULWICH LIBRARY,ELECTRICITY,5902445810,1000012926
04.12.2020,LEISURE DIRECTORATE,KENT COUNTY COUNCIL - LASER,512.54,KINGSWOOD HOUSE,ELECTRICITY,5902445811,1000012926
04.12.2020,LEISURE DIRECTORATE,MANAGEMENT FUTURES CONSULTING LTD,675,PARKS SERVICES DEVELOPMENT,TRAINING,5902445821,1000083983
04.12.2020,LEISURE DIRECTORATE,MANAGEMENT FUTURES CONSULTING LTD,675,PARKS SERVICES DEVELOPMENT,TRAINING,5902445826,1000083983
04.12.2020,MODERNISATION HGF,GIVEGOOD LIMITED T/A HB PUBLICATIONS AND TRAINING UNTERNATIONAL,"1,000.00",CORPORATE TRAINING BUDGETS,TRAINING,5902445752,1000084122
04.12.2020,MODERNISATION HGF,DAISY CORPORATE SERVICES TRADING LIMITED,"12,493.92",IT MANAGEMENT,DATA COMMUNICATIONS,5902445765,1000075666
04.12.2020,MODERNISATION HGF,MIDAS TRAINING SOLUTIONS LTD,700,MEMBER DEVELOPMENT,TRAINING,5902445768,1000023193
04.12.2020,REGENERATION,BUREAU VERITAS UK,"1,240.00",BLACKFRIARS ROAD PROJECT,PROFESSIONAL FEES,5902445343,1000052275
04.12.2020,REGENERATION,FRAME PROJECTS LTD,"3,000.00",OKR MASTER PLANNING,PROFESSIONAL FEES,5902445745,1000085978
04.12.2020,REGENERATION,FRAME PROJECTS LTD,"14,000.00",OKR MASTER PLANNING,PROFESSIONAL FEES,5902445743,1000085978
04.12.2020,REGENERATION,INITIAL WASHROOM HYGIENE,"1,435.97",TOWER WORKSHOPS,PREMISES CLEANING,5902445791,1644695
04.12.2020,REGENERATION,HAG LTD,"1,770.00",TOWER WORKSHOPS,BUILDING R&M,5902445830,1000085497
04.12.2020,RESIDENT SERVICES,HARROW GREEN LTD,"8,355.06",OPERATIONS/OFFICES ACCOMMODATION,REMOVAL EXPENSES,5902445794,1000076673
04.12.2020,RESIDENT SERVICES,NEWINGTON BUTTS MANAGEMENT LTD,"13,389.39",PRIVATE SERVICE CHARGES,SERVICE CHARGES,5902444980,1000081298
04.12.2020,RESIDENT SERVICES,GOLDSTONE ESTATES LTD,"1,980.00",TA PLACEMENTS,EXTERNAL AGENCIES AND BODIES,5902445701,1000076548
04.12.2020,RESIDENT SERVICES,PROPERTYPLACEBOOK LTD,"4,200.00",TA PLACEMENTS,EXTERNAL AGENCIES AND BODIES,5902445679,1000077817
05.12.2020,ASSET MANAGEMENT,OCO HEATING & MECHANICAL,"18,704.53",ENG CONTRACTS (NORTH),HEATING - DISTRICT SYSTEM REPAIR,2103182984,4005559
05.12.2020,CHIEF EXECUTIVE,TIM MOYA ASSOCIATES,450,CAPITAL PS (REGEN),CONSTRUCTION FEES  - EXTERNAL,5902445122,1000079572
05.12.2020,CHIEF EXECUTIVE'S OFFICE,TREE SHEPHERD LTD,"3,812.00",BUSINESS SUPPORT,FREELANCE SPECIALISTS,5902445808,1000076895
05.12.2020,CHILDREN AND FAMILIES,HM PRISON & PROBATION SERVICE,"2,000.00",REMAND - YDA STC & SCH,RESIDENTIAL CARE,5902445717,1000083827
05.12.2020,CHILDREN AND FAMILIES,HM PRISON & PROBATION SERVICE,"6,096.00",REMAND - YDA STC & SCH,RESIDENTIAL CARE,5902445683,1000083827
05.12.2020,CHILDREN AND FAMILIES,HM PRISON & PROBATION SERVICE,"6,607.00",REMAND - YDA STC & SCH,RESIDENTIAL CARE,5902445717,1000083827
05.12.2020,CHILDREN AND FAMILIES,HM PRISON & PROBATION SERVICE,"10,419.00",REMAND - YDA STC & SCH,RESIDENTIAL CARE,5902445723,1000083827
05.12.2020,CHILDREN AND FAMILIES,HM PRISON & PROBATION SERVICE,"14,043.00",REMAND - YDA STC & SCH,RESIDENTIAL CARE,5902445720,1000083827
05.12.2020,CHILDREN AND FAMILIES,HM PRISON & PROBATION SERVICE,"14,043.00",REMAND - YDA STC & SCH,RESIDENTIAL CARE,5902445721,1000083827
05.12.2020,CHILDREN AND FAMILIES,HM PRISON & PROBATION SERVICE,321,REMAND - YDA YOI,RESIDENTIAL CARE,5902445684,1000083827
05.12.2020,CHILDREN AND FAMILIES,HM PRISON & PROBATION SERVICE,"2,568.00",REMAND - YDA YOI,RESIDENTIAL CARE,5902445726,1000083827
05.12.2020,CHILDREN AND FAMILIES,HM PRISON & PROBATION SERVICE,"9,951.00",REMAND - YDA YOI,RESIDENTIAL CARE,5902445725,1000083827
05.12.2020,CHILDREN AND FAMILIES,GOLD SEAL PROJECT,"12,500.00",YOS MGMT & SUPPORT,EXTERNAL AGENCIES AND BODIES,5902445407,1000050352
05.12.2020,CUSTOMER EXPERIENCE HGF,VP-AV LTD,878.82,CORONER'S,COMMS & COMPUTING CONTRACT CHARGES,5902444911,1000003888
05.12.2020,CUSTOMER EXPERIENCE HGF,HIAM ALI LTD,"6,701.70",CORONER'S,PROFESSIONAL FEES,5902445419,1000084044
05.12.2020,CUSTOMER EXPERIENCE HGF,SHELTER TRAINING LTD,"1,836.00",HOUSING OPTIONS,TRAINING,5902445542,1000033177
05.12.2020,ENVIRONMENT AND LEISURE,F M CONWAY LTD,"114,530.98",CAPITAL PS (LEISURE),CONSTR'N SUB CONTRACT - NON CERTIFICATED,2103183003,4001384
05.12.2020,ENVIRONMENT DIRECTORATE,THE T P PARTNERSHIP,445,ESTATE CLEANING-GENERAL,OTHER CONTRACTORS,5902445325,1000045906
05.12.2020,HOUSING HRA,CALFORD SEADEN LLP,"2,348.08",CAPITAL PS (HRA),CONSTRUCTION FEES  - EXTERNAL,5902444957,1061592
05.12.2020,HOUSING HRA,BSW HEATING LTD,"191,731.74",CAPITAL PS (HRA),CONSTRUCTION MAIN CONTRACT -CERTIFICATED,2103181236,3000000580
05.12.2020,MODERNISATION HGF,MINDAPPLES TRADING LTD,650,CORPORATE TRAINING BUDGETS,TRAINING,5902445245,1000080028
05.12.2020,NEW BUILD,CALFORD SEADEN LLP,"10,215.00",DEVELOPMENT DELIVERY,PROFESSIONAL FEES,5902444833,1061592
05.12.2020,RESIDENT SERVICES,CHARTWELLS,"4,931.00",SUPPORTED HOSTELS,CATERING MATERIALS & SUPPLIES,5902445819,1000010625
05.12.2020,SBS SUPPORT,TOTALMOBILE LTD,"8,000.00",ICT & COMMUNICATIONS,SOFTWARE,5902445728,1000085502
06.12.2020,ADULT SOCIAL CARE,EDGE TRAINING AND CONSULTANCY LTD,550,ASW - PROFESSIONAL DEVELOPMENT,TRAINING,5902445549,1000057249
06.12.2020,ASSET MANAGEMENT,GEOBEAR COMMERCIAL LTD,850,MAJOR REPAIRS,BUILDING R&M,5902445086,1000085759
06.12.2020,CHILDREN AND FAMILIES,OPTIMUM FOCUS COMPANY LTD,624,FAMILY GROUP CONF�S,PROFESSIONAL FEES,5902445183,1000081322
06.12.2020,CHILDREN AND FAMILIES,WRIXONCARE SEVICES,"1,358.34",TEAM C,HIRED VEHICLES,5902445681,1000013166
06.12.2020,COMMUNITIES,LEATHERMARKET JMB HOUSING,"133,607.40",LEATHERMARKET CO-OP,M&M ALLOWANCE CO-OPS,5902445732,11182872
06.12.2020,CUSTOMER EXPERIENCE HGF,IMPERIAL COLLEGE PROJECTS LTD,468,CORONER'S,PROFESSIONAL FEES,5902445425,1000080106
06.12.2020,CUSTOMER EXPERIENCE HGF,IMPERIAL COLLEGE PROJECTS LTD,632,CORONER'S,PROFESSIONAL FEES,5902445426,1000080106
06.12.2020,CUSTOMER EXPERIENCE HGF,KINGS ACCOMODATION LIMITED,"1,200.00",HOMELESS PROJECTS,GRANTS,5902445724,1000065572
06.12.2020,CUSTOMER EXPERIENCE HGF,FRESHVIEW ESTATES LTD,"1,587.96",HOMELESS PROJECTS,GRANTS,5902445522,1000081189
06.12.2020,ENVIRONMENT DIRECTORATE,AUTOMOTIVE LEASING,405,COMMERCIAL VEH CTRL A/C,HIRED VEHICLES,5902444917,11014756
06.12.2020,ENVIRONMENT DIRECTORATE,GREENHAM TRADING LTD,389.47,ESTATE CLEANING-GENERAL,MATERIALS,5902445306,1000006610
06.12.2020,ENVIRONMENT DIRECTORATE,SOUTHWARK NEWSPAPER LTD,276,STREET WORKS OVERHEADS,MARKETING & PUBLICITY SERVICES,5902445646,1556957
06.12.2020,ENVIRONMENT DIRECTORATE,SOUTHWARK NEWSPAPER LTD,432,STREET WORKS OVERHEADS,MARKETING & PUBLICITY SERVICES,5902445643,1556957
06.12.2020,ENVIRONMENT DIRECTORATE,SOUTHWARK NEWSPAPER LTD,432,STREET WORKS OVERHEADS,MARKETING & PUBLICITY SERVICES,5902445645,1556957
06.12.2020,F & C S EXCLUDING CORPORATE BUDGETS,DSI BILLING SERVICES LTD,"2,123.67",ADMINISTRATIVE SUPPORT,POSTAGES,5902445545,1000058640
06.12.2020,HOUSING,LIFTEC LIFTS LTD,"90,006.22",PAYMENTS CONTROL ACCOUNT - LIFTEC,I-WORLD CONTRACTORS HOLDING ACCOUNT,5902445121,1000057278
06.12.2020,HOUSING HRA,CALFORD SEADEN LLP,"1,176.00",CAPITAL PS (HRA),CONSTRUCTION FEES - EMPLOYERS AGENT,5902445434,1061592
06.12.2020,HOUSING HRA,CALFORD SEADEN LLP,"5,586.00",CAPITAL PS (HRA),CONSTRUCTION FEES - EMPLOYERS AGENT,5902445532,1061592
06.12.2020,HOUSING HRA,APPLEYARD & TREW,"24,000.00",CAPITAL PS (REGEN),CONSTRUCTION FEES  - EXTERNAL,5902445753,1000029065
06.12.2020,MODERNISATION HGF,GIVEGOOD LIMITED T/A HB PUBLICATIONS AND TRAINING UNTERNATIONAL,500,CORPORATE TRAINING BUDGETS,TRAINING,5902445533,1000084122
06.12.2020,PLANNING AND TRANSPORT,SOUTHWARK NEWSPAPER LTD,504,DEVELOPMENT CONTROL ADMINSTRATION,MARKETING & PUBLICITY SERVICES,5902445222,1556957
07.12.2020,ADULT SOCIAL CARE,INSIGHT SPECIALIST BEHAVIOURAL SERVICE LTD,335,APPOINTEESHIPS,OTHER PAYMENTS FOR CLIENTS,2103183814,1000071858
07.12.2020,ADULT SOCIAL CARE,INSIGHT SPECIALIST BEHAVIOURAL SERVICE LTD,"3,227.38",APPOINTEESHIPS,OTHER PAYMENTS FOR CLIENTS,2103183812,1000071858
07.12.2020,ADULT SOCIAL CARE,INSIGHT SPECIALIST BEHAVIOURAL SERVICE LTD,"3,662.11",APPOINTEESHIPS,OTHER PAYMENTS FOR CLIENTS,2103183811,1000071858
07.12.2020,ADULT SOCIAL CARE,RAPKYNS CARE CENTRE,500,APPOINTEESHIPS,OTHER PAYMENTS FOR CLIENTS,2103183815,1000077989
07.12.2020,ADULT SOCIAL CARE,REDACTED PERSONAL DATA,600,APPOINTEESHIPS,OTHER PAYMENTS FOR CLIENTS,REDACTED,REDACTED
07.12.2020,ADULT SOCIAL CARE,REDACTED PERSONAL DATA,279.85,APPOINTEESHIPS,OTHER PAYMENTS FOR CLIENTS,REDACTED,REDACTED
07.12.2020,ADULT SOCIAL CARE,HEALTH ADVOCACY UK LTD,650,CHC ADVOCACY- OP/PD,EXTERNAL AGENCIES AND BODIES,5902445845,1000082156
07.12.2020,ADULT SOCIAL CARE,HEALTH ADVOCACY UK LTD,650,CHC ADVOCACY- OP/PD,EXTERNAL AGENCIES AND BODIES,5902445846,1000082156
07.12.2020,ADULT SOCIAL CARE,PEGGY ETIEBET,"1,250.00",DIR OF ASC,LEGAL FEES & COURT COSTS,2103183775,1000057487
07.12.2020,ADULT SOCIAL CARE,IAN BROWNHILL,"1,250.00",DIR OF ASC,LEGAL FEES & COURT COSTS,2103183757,1000073234
07.12.2020,ADULT SOCIAL CARE,NIKOLAS CLARKE,650,DIR OF ASC,LEGAL FEES & COURT COSTS,2103183766,1000077342
07.12.2020,ADULT SOCIAL CARE,PAUL POWLESLAND,600,DIR OF ASC,LEGAL FEES & COURT COSTS,2103183774,1000078784
07.12.2020,ADULT SOCIAL CARE,THAMES HOMECARE SERVICE LTD,367.94,DISCHARGE TO ACCESS,HOMECARE - C&V,2103183647,1000079295
07.12.2020,ADULT SOCIAL CARE,THAMES HOMECARE SERVICE LTD,536.02,DISCHARGE TO ACCESS,HOMECARE - C&V,2103183673,1000079295
07.12.2020,ADULT SOCIAL CARE,THAMES HOMECARE SERVICE LTD,472.42,MH LTS 65+,HOMECARE - SPOT,2103183653,1000079295
07.12.2020,ADULT SOCIAL CARE,THAMES HOMECARE SERVICE LTD,508.76,MH LTS 65+,HOMECARE - SPOT,2103183620,1000079295
07.12.2020,ADULT SOCIAL CARE,THAMES HOMECARE SERVICE LTD,717.72,PHY LTS 18-64,HOMECARE - C&V,2103183677,1000079295
07.12.2020,ADULT SOCIAL CARE,THAMES HOMECARE SERVICE LTD,286.18,PHY LTS 18-64,HOMECARE - SPOT,2103183675,1000079295
07.12.2020,ADULT SOCIAL CARE,THAMES HOMECARE SERVICE LTD,349.77,PHY LTS 18-64,HOMECARE - SPOT,2103183625,1000079295
07.12.2020,ADULT SOCIAL CARE,THAMES HOMECARE SERVICE LTD,363.4,PHY LTS 18-64,HOMECARE - SPOT,2103183684,1000079295
07.12.2020,ADULT SOCIAL CARE,THAMES HOMECARE SERVICE LTD,386.11,PHY LTS 18-64,HOMECARE - SPOT,2103183645,1000079295
07.12.2020,ADULT SOCIAL CARE,THAMES HOMECARE SERVICE LTD,572.36,PHY LTS 18-64,HOMECARE - SPOT,2103183634,1000079295
07.12.2020,ADULT SOCIAL CARE,THAMES HOMECARE SERVICE LTD,572.36,PHY LTS 18-64,HOMECARE - SPOT,2103183674,1000079295
07.12.2020,ADULT SOCIAL CARE,THAMES HOMECARE SERVICE LTD,635.95,PHY LTS 18-64,HOMECARE - SPOT,2103183650,1000079295
07.12.2020,ADULT SOCIAL CARE,THAMES HOMECARE SERVICE LTD,649.58,PHY LTS 18-64,HOMECARE - SPOT,2103183687,1000079295
07.12.2020,ADULT SOCIAL CARE,THAMES HOMECARE SERVICE LTD,844.91,PHY LTS 18-64,HOMECARE - SPOT,2103183693,1000079295
07.12.2020,ADULT SOCIAL CARE,THAMES HOMECARE SERVICE LTD,935.76,PHY LTS 18-64,HOMECARE - SPOT,2103183649,1000079295
07.12.2020,ADULT SOCIAL CARE,SAGECARE LTD,674.84,PHY LTS 18-64,HOMECARE - C&V,2103183707,1000080924
07.12.2020,ADULT SOCIAL CARE,SAGECARE LTD,"1,253.13",PHY LTS 18-64,HOMECARE - C&V,2103183706,1000080924
07.12.2020,ADULT SOCIAL CARE,MEDACS HOMECARE,666,PHY LTS 65+,HOMECARE - C&V,2103183700,11287415
07.12.2020,ADULT SOCIAL CARE,MEDACS HOMECARE,813.9,PHY LTS 65+,HOMECARE - C&V,2103183701,11287415
07.12.2020,ADULT SOCIAL CARE,THAMES HOMECARE SERVICE LTD,681.38,PHY LTS 65+,HOMECARE - C&V,2103183659,1000079295
07.12.2020,ADULT SOCIAL CARE,THAMES HOMECARE SERVICE LTD,763.14,PHY LTS 65+,HOMECARE - C&V,2103183656,1000079295
07.12.2020,ADULT SOCIAL CARE,THAMES HOMECARE SERVICE LTD,258.92,PHY LTS 65+,HOMECARE - SPOT,2103183628,1000079295
07.12.2020,ADULT SOCIAL CARE,THAMES HOMECARE SERVICE LTD,268.01,PHY LTS 65+,HOMECARE - SPOT,2103183683,1000079295
07.12.2020,ADULT SOCIAL CARE,THAMES HOMECARE SERVICE LTD,272.55,PHY LTS 65+,HOMECARE - SPOT,2103183623,1000079295
07.12.2020,ADULT SOCIAL CARE,THAMES HOMECARE SERVICE LTD,286.18,PHY LTS 65+,HOMECARE - SPOT,2103183658,1000079295
07.12.2020,ADULT SOCIAL CARE,THAMES HOMECARE SERVICE LTD,317.98,PHY LTS 65+,HOMECARE - SPOT,2103183640,1000079295
07.12.2020,ADULT SOCIAL CARE,THAMES HOMECARE SERVICE LTD,349.77,PHY LTS 65+,HOMECARE - SPOT,2103183688,1000079295
07.12.2020,ADULT SOCIAL CARE,THAMES HOMECARE SERVICE LTD,413.37,PHY LTS 65+,HOMECARE - SPOT,2103183663,1000079295
07.12.2020,ADULT SOCIAL CARE,THAMES HOMECARE SERVICE LTD,413.37,PHY LTS 65+,HOMECARE - SPOT,2103183668,1000079295
07.12.2020,ADULT SOCIAL CARE,THAMES HOMECARE SERVICE LTD,508.76,PHY LTS 65+,HOMECARE - SPOT,2103183686,1000079295
07.12.2020,ADULT SOCIAL CARE,THAMES HOMECARE SERVICE LTD,536.02,PHY LTS 65+,HOMECARE - SPOT,2103183635,1000079295
07.12.2020,ADULT SOCIAL CARE,THAMES HOMECARE SERVICE LTD,572.36,PHY LTS 65+,HOMECARE - SPOT,2103183622,1000079295
07.12.2020,ADULT SOCIAL CARE,THAMES HOMECARE SERVICE LTD,572.36,PHY LTS 65+,HOMECARE - SPOT,2103183679,1000079295
07.12.2020,ADULT SOCIAL CARE,THAMES HOMECARE SERVICE LTD,576.9,PHY LTS 65+,HOMECARE - SPOT,2103183680,1000079295
07.12.2020,ADULT SOCIAL CARE,THAMES HOMECARE SERVICE LTD,599.61,PHY LTS 65+,HOMECARE - SPOT,2103183626,1000079295
07.12.2020,ADULT SOCIAL CARE,THAMES HOMECARE SERVICE LTD,608.7,PHY LTS 65+,HOMECARE - SPOT,2103183671,1000079295
07.12.2020,ADULT SOCIAL CARE,THAMES HOMECARE SERVICE LTD,635.95,PHY LTS 65+,HOMECARE - SPOT,2103183691,1000079295
07.12.2020,ADULT SOCIAL CARE,THAMES HOMECARE SERVICE LTD,640.49,PHY LTS 65+,HOMECARE - SPOT,2103183665,1000079295
07.12.2020,ADULT SOCIAL CARE,THAMES HOMECARE SERVICE LTD,663.21,PHY LTS 65+,HOMECARE - SPOT,2103183631,1000079295
07.12.2020,ADULT SOCIAL CARE,THAMES HOMECARE SERVICE LTD,699.55,PHY LTS 65+,HOMECARE - SPOT,2103183636,1000079295
07.12.2020,ADULT SOCIAL CARE,THAMES HOMECARE SERVICE LTD,699.55,PHY LTS 65+,HOMECARE - SPOT,2103183642,1000079295
07.12.2020,ADULT SOCIAL CARE,THAMES HOMECARE SERVICE LTD,763.14,PHY LTS 65+,HOMECARE - SPOT,2103183667,1000079295
07.12.2020,ADULT SOCIAL CARE,THAMES HOMECARE SERVICE LTD,799.48,PHY LTS 65+,HOMECARE - SPOT,2103183627,1000079295
07.12.2020,ADULT SOCIAL CARE,THAMES HOMECARE SERVICE LTD,"1,044.78",PHY LTS 65+,HOMECARE - SPOT,2103183696,1000079295
07.12.2020,ADULT SOCIAL CARE,THAMES HOMECARE SERVICE LTD,"1,353.67",PHY LTS 65+,HOMECARE - SPOT,2103183690,1000079295
07.12.2020,ADULT SOCIAL CARE,THAMES HOMECARE SERVICE LTD,699.55,PHY STS 18-64,HOMECARE - IC,2103183648,1000079295
07.12.2020,ADULT SOCIAL CARE,SAGECARE LTD,814.56,PHY STS 18-64,HOMECARE - IC,2103183712,1000080924
07.12.2020,ADULT SOCIAL CARE,SAGECARE LTD,913.05,PHY STS 18-64,HOMECARE - IC,2103183711,1000080924
07.12.2020,ADULT SOCIAL CARE,SAGECARE LTD,"2,000.33",PHY STS 18-64,HOMECARE - IC,2103183708,1000080924
07.12.2020,ADULT SOCIAL CARE,THAMES HOMECARE SERVICE LTD,286.18,PHY STS 65+,HOMECARE - IC,2103183629,1000079295
07.12.2020,ADULT SOCIAL CARE,THAMES HOMECARE SERVICE LTD,508.76,PHY STS 65+,HOMECARE - IC,2103183660,1000079295
07.12.2020,ADULT SOCIAL CARE,RADHA CONSULTING LTD,540,SAFEGUARDING & DOLS,OTHER CONTRACTORS,5902445867,1000061154
07.12.2020,ADULT SOCIAL CARE,ROMEDICAL LTD,561.06,SAFEGUARDING & DOLS,OTHER CONTRACTORS,5902445935,1000076318
07.12.2020,ADULT SOCIAL CARE,ROMEDICAL LTD,561.4,SAFEGUARDING & DOLS,OTHER CONTRACTORS,5902445931,1000076318
07.12.2020,ADULT SOCIAL CARE,ROMEDICAL LTD,570.33,SAFEGUARDING & DOLS,OTHER CONTRACTORS,5902445927,1000076318
07.12.2020,ADULT SOCIAL CARE,ROMEDICAL LTD,775.9,SAFEGUARDING & DOLS,OTHER CONTRACTORS,5902445932,1000076318
07.12.2020,ADULT SOCIAL CARE,THAMES HOMECARE SERVICE LTD,304.35,SEN LTS 65+,HOMECARE - SPOT,2103183669,1000079295
07.12.2020,ASSET MANAGEMENT,HIGHER ELEVATION LTD,"4,380.00",ADAPTATIONS,BUILDING R&M,5902445972,1000067328
07.12.2020,ASSET MANAGEMENT,GAS ADVISORY SERVICES LIMITED,"2,931.63",ENG CONTRACTS (NORTH),HEATING -DISTRICT SERVICE (CONTRACT SUM),5902445606,1000064649
07.12.2020,ASSET MANAGEMENT,GAS ADVISORY SERVICES LIMITED,"15,624.47",ENG CONTRACTS (NORTH),HEATING -DISTRICT SERVICE (CONTRACT SUM),5902445607,1000064649
07.12.2020,ASSET MANAGEMENT,AVONLINE NETWORK SERVICES LTD,"2,137.25",ENG CONTRACTS (NORTH),TV AERIALS R&M,5902445896,1000068672
07.12.2020,ASSET MANAGEMENT,SHARPE PRITCHARD LLP,812,INVESTMENT MANAGER,PROFESSIONAL FEES,5902445889,1790085
07.12.2020,CENTRAL FUNCTIONS,RICCARDO B CALZAVARA,845,COMMERCIAL PROPERTIES,LEGAL FEES & COURT COSTS,2103183777,1000077112
07.12.2020,CENTRAL FUNCTIONS,PAUL POWLESLAND,450,COMMERCIAL PROPERTIES,LEGAL FEES & COURT COSTS,2103183773,1000078784
07.12.2020,CENTRAL FUNCTIONS,KENT COUNTY COUNCIL - LASER,"15,421.64",HEATING ACCOUNT,ELECTRICITY,5902445290,1000012926
07.12.2020,CENTRAL FUNCTIONS,KENT COUNTY COUNCIL - LASER,"60,251.52",HEATING ACCOUNT,ELECTRICITY,5902445290,1000012926
07.12.2020,CENTRAL FUNCTIONS,KENT COUNTY COUNCIL - LASER,"48,077.86",HEATING ACCOUNT,GAS,5902445292,1000012926
07.12.2020,CENTRAL FUNCTIONS,KENT COUNTY COUNCIL - LASER,"433,389.50",HEATING ACCOUNT,GAS,5902445292,1000012926
07.12.2020,CENTRAL FUNCTIONS,STANNAH LIFT SERVICES LTD,"2,698.00",INTEREST PAYABLE,BUILDING R&M,5902445915,1063595
07.12.2020,CENTRAL FUNCTIONS,ALISTAIR TOWNSEND LTD,"6,900.00",OPERATIONAL TEAM,LEGAL FEES & COURT COSTS,2103183721,1000081236
07.12.2020,CHIEF EXECUTIVE,DANIEL WATNEY LLP,"2,154.10",CAPITAL PS (REGEN),CONSTRUCTION FEES  - EXTERNAL,5902445339,1000054693
07.12.2020,CHIEF EXECUTIVE,BAKER MALLETT LLP,600,CAPITAL PS (REGEN),CONSTRUCTION FEES - QUANTITY SURVEYOR,5902445897,1000080547
07.12.2020,CHIEF EXECUTIVE,HAYATSU ARCHITECTS LTD,"6,039.00",CAPITAL PS (REGEN),CONSTRUCTION FEES,5902445261,1000082843
07.12.2020,CHIEF EXECUTIVE,PURCELL ARCHITECTURE LTD,"5,450.00",CAPITAL PS (REGEN),CONSTRUCTION FEES - ARCHITECT,5902445895,1000082955
07.12.2020,CHIEF EXECUTIVE,TRITON BUILDING RESTORATION LTD,"36,168.57",CAPITAL PS (REGEN),CONSTRUCTION FEES  - EXTERNAL,2103182985,3000002061
07.12.2020,CHIEF EXECUTIVE,KN NETWORK SERVICES LTD,"131,360.34",CAPITAL PS (REGEN),CONSTRUCTION MAIN CONTRACT -CERTIFICATED,2103183290,3000002134
07.12.2020,CHILDREN AND ADULT,GLEEDS ADVISORY LTD,"1,380.00",CAPITAL PS (EDUCATION),CONSTRUCTION FEES  - EXTERNAL,5902445880,1000076155
07.12.2020,CHILDREN AND ADULT,INTERSERVE (FACILITIES MANAGEMENT),"3,177.28",CAPITAL PS (SOC SERV),CONSTRUCTION MAIN CONTRACT,2103183292,3000000166
07.12.2020,CHILDREN AND ADULT,PRIDE DEVELOPMENTS,"44,702.04",CAPITAL PS (SOC SERV),CONSTRUCTION MAIN CONTRACT,2103183286,3000002126
07.12.2020,CHILDREN AND FAMILIES,EXPERT WITNESS,823.5,CLINICAL SERVICE,LEGAL FEES & COURT COSTS,2103183743,1000062889
07.12.2020,CHILDREN AND FAMILIES,EXPERT WITNESS,945,CLINICAL SERVICE,LEGAL FEES & COURT COSTS,2103183744,1000062889
07.12.2020,CHILDREN AND FAMILIES,REDACTED PERSONAL DATA,300,FE SUPPORT,CLIENT TRANSPORT,REDACTED,REDACTED
07.12.2020,CHILDREN AND FAMILIES,REDACTED PERSONAL DATA,500,FE SUPPORT,OTHER PAYMENTS FOR CLIENTS,REDACTED,REDACTED
07.12.2020,CHILDREN AND FAMILIES,REDACTED PERSONAL DATA,300,FE SUPPORT,CLIENT TRANSPORT,REDACTED,REDACTED
07.12.2020,CHILDREN AND FAMILIES,REDACTED PERSONAL DATA,400,FRIENDS &FAMILY FOST,OTHER PAYMENTS FOR CLIENTS,REDACTED,REDACTED
07.12.2020,CHILDREN AND FAMILIES,REDACTED PERSONAL DATA,300,FRIENDS &FAMILY FOST,OTHER PAYMENTS FOR CLIENTS,REDACTED,REDACTED
07.12.2020,CHILDREN AND FAMILIES,REDACTED PERSONAL DATA,300,FRIENDS &FAMILY FOST,OTHER PAYMENTS FOR CLIENTS,REDACTED,REDACTED
07.12.2020,CHILDREN AND FAMILIES,REDACTED PERSONAL DATA,300,FRIENDS &FAMILY FOST,OTHER PAYMENTS FOR CLIENTS,REDACTED,REDACTED
07.12.2020,CHILDREN AND FAMILIES,REDACTED PERSONAL DATA,300,FRIENDS &FAMILY FOST,OTHER PAYMENTS FOR CLIENTS,REDACTED,REDACTED
07.12.2020,CHILDREN AND FAMILIES,REDACTED PERSONAL DATA,300,FRIENDS &FAMILY FOST,OTHER PAYMENTS FOR CLIENTS,REDACTED,REDACTED
07.12.2020,CHILDREN AND FAMILIES,REDACTED PERSONAL DATA,461,FRIENDS &FAMILY FOST,ADDITIONAL PAYMENTS TO AGENCIES/CARERS,REDACTED,REDACTED
07.12.2020,CHILDREN AND FAMILIES,REDACTED PERSONAL DATA,568,LEAVING CARE GRANT,OTHER PAYMENTS FOR CLIENTS,REDACTED,REDACTED
07.12.2020,CHILDREN AND FAMILIES,FUTURE FOUNDATIONS LTD,635.55,SEMI-IND CARELEAVERS,EXTERNAL AGENCIES AND BODIES,2103183587,1000063272
07.12.2020,CHILDREN AND FAMILIES,FUTURE FOUNDATIONS LTD,"1,112.08",SEMI-IND CARELEAVERS,EXTERNAL AGENCIES AND BODIES,2103183583,1000063272
07.12.2020,CHILDREN AND FAMILIES,CORNERSTONE CARE PARTNERSHIP LTD,"1,211.40",SEMI-IND CARELEAVERS,EXTERNAL AGENCIES AND BODIES,2103183584,1000078888
07.12.2020,CHILDREN AND FAMILIES,REDACTED PERSONAL DATA,260,SEMI-IND CARELEAVERS,OTHER PAYMENTS FOR CLIENTS,REDACTED,REDACTED
07.12.2020,CHILDREN AND FAMILIES,FUTURE FOUNDATIONS LTD,346.56,SEMI-IND LAC 16-17,EXTERNAL AGENCIES AND BODIES,2103183603,1000063272
07.12.2020,CHILDREN AND FAMILIES,PURPLE PEBBLES(CHILD CARE) SERVICES,"5,382.14",SEMI-IND LAC 16-17,EXTERNAL AGENCIES AND BODIES,2103183601,1000070705
07.12.2020,CHILDREN AND FAMILIES,COMMUNITY BUILDING MANAGEMENT,450,SEMI-IND LAC 16-17,EXTERNAL AGENCIES AND BODIES,2103183597,1000078932
07.12.2020,CHILDREN AND FAMILIES,SYDNEY CARE LTD,300,SEMI-IND LAC 16-17,OTHER PAYMENTS FOR CLIENTS,2103183596,1000081598
07.12.2020,CHILDREN AND FAMILIES,SYDNEY CARE LTD,300,SEMI-IND LAC 16-17,OTHER PAYMENTS FOR CLIENTS,2103183605,1000081598
07.12.2020,CHILDREN AND FAMILIES,REDACTED PERSONAL DATA,954.29,SEMI-IND LAC 16-17,OTHER PAYMENTS FOR CLIENTS,REDACTED,REDACTED
07.12.2020,CHILDREN AND FAMILIES,REDACTED PERSONAL DATA,925.71,SEMI-IND LAC 16-17,OTHER PAYMENTS FOR CLIENTS,REDACTED,REDACTED
07.12.2020,CHILDREN AND FAMILIES,REDACTED PERSONAL DATA,652.14,SEMI-IND LAC 16-17,OTHER PAYMENTS FOR CLIENTS,REDACTED,REDACTED
07.12.2020,CHILDREN AND FAMILIES,SIAN DAVIES,"1,800.00",SFS MGMT & SUPPORT,LEGAL FEES & COURT COSTS,2103183781,1000042111
07.12.2020,CHILDREN AND FAMILIES,EMILY RADCLIFFE,980,SFS MGMT & SUPPORT,LEGAL FEES & COURT COSTS,2103183742,1000047317
07.12.2020,CHILDREN AND FAMILIES,OLIVER MILLINGTON,800,SFS MGMT & SUPPORT,LEGAL FEES & COURT COSTS,2103183769,1000051055
07.12.2020,CHILDREN AND FAMILIES,TABITHA BARRAN,700,SFS MGMT & SUPPORT,LEGAL FEES & COURT COSTS,2103183785,1000053940
07.12.2020,CHILDREN AND FAMILIES,TABITHA BARRAN,950,SFS MGMT & SUPPORT,LEGAL FEES & COURT COSTS,2103183784,1000053940
07.12.2020,CHILDREN AND FAMILIES,GAYLE BISBEY,450,SFS MGMT & SUPPORT,LEGAL FEES & COURT COSTS,2103183753,1000074738
07.12.2020,CHILDREN AND FAMILIES,ELIZABETH NARTEY,375,SFS MGMT & SUPPORT,LEGAL FEES & COURT COSTS,2103183739,1000075833
07.12.2020,CHILDREN AND FAMILIES,ELIZABETH NARTEY,465,SFS MGMT & SUPPORT,LEGAL FEES & COURT COSTS,2103183741,1000075833
07.12.2020,CHILDREN AND FAMILIES,ELIZABETH NARTEY,635,SFS MGMT & SUPPORT,LEGAL FEES & COURT COSTS,2103183732,1000075833
07.12.2020,CHILDREN AND FAMILIES,ELIZABETH NARTEY,635,SFS MGMT & SUPPORT,LEGAL FEES & COURT COSTS,2103183733,1000075833
07.12.2020,CHILDREN AND FAMILIES,ELIZABETH NARTEY,635,SFS MGMT & SUPPORT,LEGAL FEES & COURT COSTS,2103183734,1000075833
07.12.2020,CHILDREN AND FAMILIES,ELIZABETH NARTEY,635,SFS MGMT & SUPPORT,LEGAL FEES & COURT COSTS,2103183735,1000075833
07.12.2020,CHILDREN AND FAMILIES,ELIZABETH NARTEY,635,SFS MGMT & SUPPORT,LEGAL FEES & COURT COSTS,2103183737,1000075833
07.12.2020,CHILDREN AND FAMILIES,ELIZABETH NARTEY,"2,500.00",SFS MGMT & SUPPORT,LEGAL FEES & COURT COSTS,2103183736,1000075833
07.12.2020,CHILDREN AND FAMILIES,JACOB RICHARDS,500,SFS MGMT & SUPPORT,LEGAL FEES & COURT COSTS,2103183758,1000080778
07.12.2020,CHILDREN AND FAMILIES,VICTORIA KIVER,375,SFS MGMT & SUPPORT,LEGAL FEES & COURT COSTS,2103183796,1000083032
07.12.2020,CHILDREN AND FAMILIES,VICTORIA KIVER,465,SFS MGMT & SUPPORT,LEGAL FEES & COURT COSTS,2103183791,1000083032
07.12.2020,CHILDREN AND FAMILIES,VICTORIA KIVER,525,SFS MGMT & SUPPORT,LEGAL FEES & COURT COSTS,2103183793,1000083032
07.12.2020,CHILDREN AND FAMILIES,VICTORIA KIVER,550,SFS MGMT & SUPPORT,LEGAL FEES & COURT COSTS,2103183790,1000083032
07.12.2020,CHILDREN AND FAMILIES,VICTORIA KIVER,550,SFS MGMT & SUPPORT,LEGAL FEES & COURT COSTS,2103183794,1000083032
07.12.2020,CHILDREN AND FAMILIES,FOX RED FORENSICS LTD,382.5,SFS MGMT & SUPPORT,LEGAL FEES & COURT COSTS,2103183751,1000083213
07.12.2020,CHILDREN AND FAMILIES,NISHA BAMBHRA,475,SFS MGMT & SUPPORT,LEGAL FEES & COURT COSTS,2103183768,1000083527
07.12.2020,CHILDREN AND FAMILIES,MAX MELSA,500,SFS MGMT & SUPPORT,LEGAL FEES & COURT COSTS,2103183764,1000083902
07.12.2020,CHILDREN AND FAMILIES,REDACTED PERSONAL DATA,255,SFS MGMT & SUPPORT,LEGAL FEES & COURT COSTS,REDACTED,REDACTED
07.12.2020,CHILDREN AND FAMILIES,REDACTED PERSONAL DATA,375,SFS MGMT & SUPPORT,LEGAL FEES & COURT COSTS,REDACTED,REDACTED
07.12.2020,CHILDREN AND FAMILIES,REDACTED PERSONAL DATA,375,SFS MGMT & SUPPORT,LEGAL FEES & COURT COSTS,REDACTED,REDACTED
07.12.2020,CHILDREN AND FAMILIES,REDACTED PERSONAL DATA,450,SFS MGMT & SUPPORT,LEGAL FEES & COURT COSTS,REDACTED,REDACTED
07.12.2020,CHILDREN AND FAMILIES,REDACTED PERSONAL DATA,500,SFS MGMT & SUPPORT,LEGAL FEES & COURT COSTS,REDACTED,REDACTED
07.12.2020,CHILDREN AND FAMILIES,REDACTED PERSONAL DATA,500,SFS MGMT & SUPPORT,LEGAL FEES & COURT COSTS,REDACTED,REDACTED
07.12.2020,CHILDREN AND FAMILIES,FUTURE FOUNDATIONS LTD,270,UASC CARELEAVERS,EXTERNAL AGENCIES AND BODIES,2103183572,1000063272
07.12.2020,CHILDREN AND FAMILIES,FUTURE FOUNDATIONS LTD,345,UASC CARELEAVERS,EXTERNAL AGENCIES AND BODIES,2103183575,1000063272
07.12.2020,CHILDREN AND FAMILIES,FUTURE FOUNDATIONS LTD,360,UASC CARELEAVERS,EXTERNAL AGENCIES AND BODIES,2103183586,1000063272
07.12.2020,CHILDREN AND FAMILIES,FUTURE FOUNDATIONS LTD,365,UASC CARELEAVERS,EXTERNAL AGENCIES AND BODIES,2103183573,1000063272
07.12.2020,CHILDREN AND FAMILIES,FUTURE FOUNDATIONS LTD,"1,739.14",UASC CARELEAVERS,EXTERNAL AGENCIES AND BODIES,2103183585,1000063272
07.12.2020,CHILDREN AND FAMILIES,THE APPROPRIATE ADULT SERVICE LTD,"2,430.00",YOS MGMT & SUPPORT,EXTERNAL AGENCIES AND BODIES,5902445406,1000047682
07.12.2020,CHILDREN'S SERVICES,EAST DULWICH EST T&RA,574,FREE AND EARLY LEARNING TEAM,TRAINING,5902445874,1000050123
07.12.2020,CHILDREN'S SERVICES,UNIVERSITY OF SURREY,"9,250.00",SCHOLARSHIP SCHEME,EXTERNAL AGENCIES AND BODIES,5902445919,1000031791
07.12.2020,CHILDREN'S SERVICES,CAMBRIDGE UNIVERSITY,"9,250.00",SCHOLARSHIP SCHEME,EXTERNAL AGENCIES AND BODIES,5902445863,1000085953
07.12.2020,CHILDREN'S SERVICES,SALTCO LTD T/A KELLY EXECUTIVE,"3,910.00",SUMMERHOUSE,HIRED VEHICLES,5902445928,1000000548
07.12.2020,CHILDREN'S SERVICES,SALTCO LTD T/A KELLY EXECUTIVE,"3,910.00",SUMMERHOUSE,HIRED VEHICLES,5902445930,1000000548
07.12.2020,COMMUNITIES,PAUL POWLESLAND,450,NO RECOURSE TO PUBLIC FUNDS,LEGAL FEES & COURT COSTS,2103183772,1000078784
07.12.2020,COMMUNITIES,THAMES HOMECARE SERVICE LTD,286.18,NO RECOURSE TO PUBLIC FUNDS,HOMECARE - C&V,2103183694,1000079295
07.12.2020,COMMUNITIES,SAGECARE LTD,268.5,NO RECOURSE TO PUBLIC FUNDS,HOMECARE - C&V,2103183710,1000080924
07.12.2020,COMMUNITIES,SAGECARE LTD,762.85,NO RECOURSE TO PUBLIC FUNDS,HOMECARE - C&V,2103183702,1000080924
07.12.2020,COMMUNITIES,SAGECARE LTD,"1,109.80",NO RECOURSE TO PUBLIC FUNDS,HOMECARE - C&V,2103183705,1000080924
07.12.2020,COMMUNITIES,KING CHARLES COURT RESIDENTS CLUB,"1,300.00",RESIDENTS PARTICIPATION FUND,GRANTS,5902445968,1000079377
07.12.2020,CUSTOMER EXPERIENCE HGF,FINEFAIR LTD,"67,146.00",COVID-19 SUPPORT,EXTERNAL AGENCIES AND BODIES,5902445962,1000075570
07.12.2020,CUSTOMER EXPERIENCE HGF,CATHERINE ROWLANDS,"2,500.00",HOMELESS PROJECTS,LEGAL FEES & COURT COSTS,2103183730,1000069104
07.12.2020,CUSTOMER EXPERIENCE HGF,JXH DEVELOPMENTS,"1,000.00",HOMELESS PROJECTS,GRANTS,5902445876,1000081834
07.12.2020,CUSTOMER EXPERIENCE HGF,SERHAN CINAR,"1,288.00",HOMELESS PROJECTS,GRANTS,5902445843,1000085963
07.12.2020,CUSTOMER EXPERIENCE HGF,WATERLOGIC,520.71,HOUSING OPTIONS,OFFICE EXPENSES,5902445580,1000052108
07.12.2020,CUSTOMER EXPERIENCE HGF,WATERLOGIC,720.06,HOUSING OPTIONS,OFFICE EXPENSES,5902445583,1000052108
07.12.2020,CUSTOMER EXPERIENCE HGF,RUTH APPLEBY ALIS,675.5,HOUSING OPTIONS,PROFESSIONAL FEES,5902445676,1000084741
07.12.2020,CUSTOMER EXPERIENCE HGF,WENTWORTH HOUSING LTD,280,NIGHTLY TA (NSC),EXTERNAL AGENCIES AND BODIES,5902445936,1000083640
07.12.2020,CUSTOMER EXPERIENCE HGF,FINEFAIR LTD,"247,740.60",PSL PLACEMENTS,EXTERNAL AGENCIES AND BODIES,5902445984,1000075570
07.12.2020,CUSTOMER EXPERIENCE HGF,HOMES2LET UK LTD,"53,275.23",PSL PLACEMENTS,EXTERNAL AGENCIES AND BODIES,5902446001,1000079868
07.12.2020,ENVIRONMENT AND LEISURE,F M CONWAY LTD,"1,014.17",CAPITAL PS (LEISURE),CONSTRUCTION,2103181426,4001384
07.12.2020,ENVIRONMENT AND LEISURE,F M CONWAY LTD,"2,882.95",CAPITAL PS (LEISURE),CONSTRUCTION FEES  - EXTERNAL,2103181423,4001384
07.12.2020,ENVIRONMENT AND LEISURE,THOMAS FORD & PARTNERS LTD,"2,600.00",CAPITAL PS (LEISURE),CONSTRUCTION FEES - ARCHITECT,5902445750,1000037686
07.12.2020,ENVIRONMENT AND LEISURE,STREET TREE CARE LTD,"1,334.00",CAPITAL PS (LEISURE),CONSTRUCTION MAIN CONTRACT -CERTIFICATED,2103183211,3000001537
07.12.2020,ENVIRONMENT AND LEISURE,VINCENTSTOKES LTD,"97,349.44",CAPITAL PS (LEISURE),CONSTRUCTION MAIN CONTRACT -CERTIFICATED,2103181425,3000001965
07.12.2020,ENVIRONMENT AND LEISURE,COMMUNITY SOUTHWARK,"11,057.37",COVID-19 TEST & TRACE SUPPORT GRANT,OTHER EXTERNAL BODIES GRANTS & CONTRIBUTIONS,5902445842,1000018147
07.12.2020,ENVIRONMENT AND LEISURE,MINDWAVE VENTURES LIMITED,"14,795.00",PH DIRECTOR'S TEAM,EXTERNAL AGENCIES AND BODIES,5902445308,1000085934
07.12.2020,ENVIRONMENT DIRECTORATE,AUTOMOTIVE LEASING,"1,668.00",COMMERCIAL VEH CTRL A/C,HIRED VEHICLES,5902445870,11014756
07.12.2020,ENVIRONMENT DIRECTORATE,AUTOMOTIVE LEASING,"1,894.45",COMMERCIAL VEH CTRL A/C,HIRED VEHICLES,5902445872,11014756
07.12.2020,ENVIRONMENT DIRECTORATE,AUTOMOTIVE LEASING,"2,034.40",COMMERCIAL VEH CTRL A/C,HIRED VEHICLES,5902445875,11014756
07.12.2020,ENVIRONMENT DIRECTORATE,AUTOMOTIVE LEASING,"2,045.00",COMMERCIAL VEH CTRL A/C,HIRED VEHICLES,5902445875,11014756
07.12.2020,ENVIRONMENT DIRECTORATE,AUTOMOTIVE LEASING,"2,350.00",COMMERCIAL VEH CTRL A/C,HIRED VEHICLES,5902445878,11014756
07.12.2020,ENVIRONMENT DIRECTORATE,AUTOMOTIVE LEASING,"3,330.00",COMMERCIAL VEH CTRL A/C,HIRED VEHICLES,5902445872,11014756
07.12.2020,ENVIRONMENT DIRECTORATE,AUTOMOTIVE LEASING,"6,207.04",COMMERCIAL VEH CTRL A/C,HIRED VEHICLES,5902445878,11014756
07.12.2020,ENVIRONMENT DIRECTORATE,IMPERIAL JANITORIAL SUPPLIES LTD,"3,575.50",ESTATE CLEANING-GENERAL,MATERIALS,5902445864,1000038126
07.12.2020,ENVIRONMENT DIRECTORATE,GARY GRANT,"1,750.00",LICENSING,LEGAL FEES & COURT COSTS,2103183752,1000056929
07.12.2020,ENVIRONMENT DIRECTORATE,THE MILLENNIUM QUEST LTD,"7,424.00",PUBLIC LIGHTING,MATERIALS,5902445988,1000050093
07.12.2020,ENVIRONMENT DIRECTORATE,INSTARMAC GROUP PLC,627.2,PUBLIC LIGHTING,MATERIALS,5902445989,1000070786
07.12.2020,ENVIRONMENT DIRECTORATE,TOFCO CPP LTD,"1,230.00",PUBLIC LIGHTING,MATERIALS,5902445990,1000084062
07.12.2020,ENVIRONMENT DIRECTORATE,T4 INTELLIGENT INFRASTRUCTURE,"11,678.20",PUBLIC LIGHTING,OTHER CONTRACTORS,2103183291,3000001985
07.12.2020,ENVIRONMENT DIRECTORATE,JARED NORMAN,500,SASBU,LEGAL FEES & COURT COSTS,2103183759,1000064080
07.12.2020,ENVIRONMENT DIRECTORATE,SOUTHWARK NEWSPAPER LTD,456,SECTION 278 & 38,LEGAL FEES & COURT COSTS,2103183782,1556957
07.12.2020,ENVIRONMENT DIRECTORATE,CARRICK SIGNS LTD,962.5,SIGN SHOP,MATERIALS,5902445949,1000085990
07.12.2020,ENVIRONMENT DIRECTORATE,CARRICK SIGNS LTD,"1,487.50",SIGN SHOP,MATERIALS,5902445949,1000085990
07.12.2020,ENVIRONMENT DIRECTORATE,TAMESIDE METROPOLITAN BOROUGH,"1,887.10",TRADING STANDARDS,SUBSCRIPTIONS,5902445920,1000056369
07.12.2020,F & C S EXCLUDING CORPORATE BUDGETS,NORTHGATE PUBLIC SERVICES (UK) LTD,400.84,ADMINISTRATIVE SUPPORT,POSTAGES,5902445908,1000037405
07.12.2020,F & C S EXCLUDING CORPORATE BUDGETS,NORTHGATE PUBLIC SERVICES (UK) LTD,"7,326.32",ADMINISTRATIVE SUPPORT,PRINTING,5902445844,1000037405
07.12.2020,F & C S EXCLUDING CORPORATE BUDGETS,GEORGE WOODHEAD,300,BENEFITS,LEGAL FEES & COURT COSTS,2103183754,1000078777
07.12.2020,F & C S EXCLUDING CORPORATE BUDGETS,PAUL POWLESLAND,500,BENEFITS,LEGAL FEES & COURT COSTS,2103183771,1000078784
07.12.2020,F & C S EXCLUDING CORPORATE BUDGETS,CAPITA BUSINESS SERVICES LTD,"10,332.97",CAPITA,OTHER CONTRACTORS,5902445883,1000049446
07.12.2020,F & C S EXCLUDING CORPORATE BUDGETS,CAPITA BUSINESS SERVICES LTD,"26,737.58",CAPITA,OTHER CONTRACTORS,5902445882,1000049446
07.12.2020,F & C S EXCLUDING CORPORATE BUDGETS,SWISS POST SOLUTIONS LTD,573.19,CONSTITUTIONAL TEAM,PRINTING,5902445767,1000073459
07.12.2020,F & C S EXCLUDING CORPORATE BUDGETS,FINANCIAL DATA MANAGEMENT PLC,483.34,ELECTORAL REGISTRATION,POSTAGES,2103183750,1000031759
07.12.2020,F & C S EXCLUDING CORPORATE BUDGETS,FINANCIAL DATA MANAGEMENT PLC,"2,893.66",ELECTORAL REGISTRATION,POSTAGES,2103183748,1000031759
07.12.2020,F & C S EXCLUDING CORPORATE BUDGETS,FINANCIAL DATA MANAGEMENT PLC,"8,138.21",ELECTORAL REGISTRATION,POSTAGES,2103183749,1000031759
07.12.2020,F & C S EXCLUDING CORPORATE BUDGETS,FINANCIAL DATA MANAGEMENT PLC,"1,775.05",ELECTORAL REGISTRATION,PRINTING,2103183747,1000031759
07.12.2020,F & C S EXCLUDING CORPORATE BUDGETS,REDACTED PERSONAL DATA,500,SESS,OTHER PAYMENTS FOR CLIENTS,REDACTED,REDACTED
07.12.2020,F & C S EXCLUDING CORPORATE BUDGETS,REDACTED PERSONAL DATA,500,SESS,OTHER PAYMENTS FOR CLIENTS,REDACTED,REDACTED
07.12.2020,F & C S EXCLUDING CORPORATE BUDGETS,REDACTED PERSONAL DATA,500,SESS,OTHER PAYMENTS FOR CLIENTS,REDACTED,REDACTED
07.12.2020,F & C S EXCLUDING CORPORATE BUDGETS,REDACTED PERSONAL DATA,500,SESS,OTHER PAYMENTS FOR CLIENTS,REDACTED,REDACTED
07.12.2020,F & C S EXCLUDING CORPORATE BUDGETS,REDACTED PERSONAL DATA,500,SESS,OTHER PAYMENTS FOR CLIENTS,REDACTED,REDACTED
07.12.2020,HOUSING GENERAL FUND,L H BRIDGE LTD,575,CAPITAL PS (HOUSING GF),CAPITAL GRANTS,5902445922,1000056928
07.12.2020,HOUSING GENERAL FUND,L H BRIDGE LTD,"7,370.00",CAPITAL PS (HOUSING GF),CAPITAL GRANTS,5902445922,1000056928
07.12.2020,HOUSING GENERAL FUND,INTERSERVE (FACILITIES MANAGEMENT),763.2,CAPITAL PS (REGEN),CONSTRUCTION MAIN CONTRACT,2103183292,3000000166
07.12.2020,HOUSING GENERAL FUND,INTERSERVE (FACILITIES MANAGEMENT),991.51,CAPITAL PS (REGEN),CONSTRUCTION MAIN CONTRACT,2103183292,3000000166
07.12.2020,HOUSING GENERAL FUND,INTERSERVE (FACILITIES MANAGEMENT),"1,325.00",CAPITAL PS (REGEN),CONSTRUCTION MAIN CONTRACT,2103183292,3000000166
07.12.2020,HOUSING GENERAL FUND,INTERSERVE (FACILITIES MANAGEMENT),"2,892.53",CAPITAL PS (REGEN),CONSTRUCTION MAIN CONTRACT,2103183292,3000000166
07.12.2020,HOUSING GENERAL FUND,INTERSERVE (FACILITIES MANAGEMENT),"7,987.57",CAPITAL PS (REGEN),CONSTRUCTION MAIN CONTRACT,2103183292,3000000166
07.12.2020,HOUSING GENERAL FUND,INTERSERVE (FACILITIES MANAGEMENT),"27,984.52",CAPITAL PS (REGEN),CONSTRUCTION MAIN CONTRACT,2103183292,3000000166
07.12.2020,HOUSING GENERAL FUND,INTERSERVE (FACILITIES MANAGEMENT),"69,996.39",CAPITAL PS (REGEN),CONSTRUCTION MAIN CONTRACT,2103183292,3000000166
07.12.2020,HOUSING GENERAL FUND,INTERSERVE (FACILITIES MANAGEMENT),"75,294.90",CAPITAL PS (REGEN),CONSTRUCTION MAIN CONTRACT,2103183292,3000000166
07.12.2020,HOUSING GENERAL FUND,INTERSERVE (FACILITIES MANAGEMENT),"86,094.89",CAPITAL PS (REGEN),CONSTRUCTION MAIN CONTRACT,2103183292,3000000166
07.12.2020,HOUSING GENERAL FUND,INTERSERVE (FACILITIES MANAGEMENT),"133,445.81",CAPITAL PS (REGEN),CONSTRUCTION MAIN CONTRACT,2103183292,3000000166
07.12.2020,HOUSING GENERAL FUND,INTERSERVE (FACILITIES MANAGEMENT),"154,241.53",CAPITAL PS (REGEN),CONSTRUCTION MAIN CONTRACT,2103183292,3000000166
07.12.2020,HOUSING HRA,POTTER RAPER LTD,"4,620.27",CAPITAL PS (HRA),CONSTRUCTION SITE COSTS,5902445933,1009369
07.12.2020,HOUSING HRA,A & E ELKINS LTD,"26,453.37",CAPITAL PS (HRA),CONSTRUCTION MAIN CONTRACT -CERTIFICATED,2103183212,4012501
07.12.2020,HOUSING HRA,A & E ELKINS LTD,"29,933.19",CAPITAL PS (HRA),CONSTRUCTION MAIN CONTRACT -CERTIFICATED,2103183285,4012501
07.12.2020,HOUSING HRA,A & E ELKINS LTD,"53,874.99",CAPITAL PS (HRA),CONSTRUCTION MAIN CONTRACT -CERTIFICATED,2103183005,4012501
07.12.2020,HOUSING HRA,PARIS SMITH AND RANDALL SOLICITORS,650,CAPITAL PS (HRA),CONSTRUCTION FEES  - EXTERNAL,5902445834,1000008059
07.12.2020,HOUSING HRA,PARIS SMITH AND RANDALL SOLICITORS,650,CAPITAL PS (HRA),CONSTRUCTION FEES  - EXTERNAL,5902445835,1000008059
07.12.2020,HOUSING HRA,OVE ARUP & PARTNERS LTD,"3,300.50",CAPITAL PS (HRA),CONSTRUCTION FEES  - EXTERNAL,5902445804,1000066606
07.12.2020,HOUSING HRA,FRASER BROWN MACKENNA LTD,"8,480.48",CAPITAL PS (HRA),CONSTRUCTION FEES - ARCHITECT,5902445755,1000081651
07.12.2020,HOUSING HRA,FRASER BROWN MACKENNA LTD,"15,996.42",CAPITAL PS (HRA),CONSTRUCTION FEES - ARCHITECT,5902445755,1000081651
07.12.2020,HOUSING HRA,CRS DRAWING AND DESIGN LTD,"13,560.00",CAPITAL PS (HRA),CONSTRUCTION,5902445344,1000085835
07.12.2020,HOUSING HRA,MARTIN ARNOLD LTD,"2,424.00",CAPITAL PS (REGEN),CONSTRUCTION SITE COSTS,5902445879,1000076993
07.12.2020,HOUSING HRA,MARTIN ARNOLD LTD,"2,424.00",CAPITAL PS (REGEN),CONSTRUCTION SITE COSTS,5902445879,1000076993
07.12.2020,HOUSING HRA,MARTIN ARNOLD LTD,"9,435.95",CAPITAL PS (REGEN),CONSTRUCTION SITE COSTS,5902445881,1000076993
07.12.2020,HOUSING HRA,MARTIN ARNOLD LTD,"9,435.95",CAPITAL PS (REGEN),CONSTRUCTION SITE COSTS,5902445881,1000076993
07.12.2020,HUMAN RESOURCES,FELTONS LAW SOLICITORS,450,CONSULTANCY,LEGAL FEES & COURT COSTS,2103183745,1000085912
07.12.2020,LEISURE DIRECTORATE,WESTMINSTER WASTE,820,CEMETERIES,OTHER CONTRACTORS,5902445852,1000080933
07.12.2020,LEISURE DIRECTORATE,LOST ART LIMITED,342,DULWICH AREA TEAM,OTHER R&M,5902445941,1000052586
07.12.2020,LEISURE DIRECTORATE,LOST ART LIMITED,"2,203.05",DULWICH AREA TEAM,OTHER R&M,5902445941,1000052586
07.12.2020,LEISURE DIRECTORATE,COMBINED PRECISION COMPONENTS PLC,310.55,SDM BUDGET,DELIVERY CHARGES,5902445626,1000021821
07.12.2020,LEISURE DIRECTORATE,CASTLE WATER LTD,"1,374.50",SDM BUDGET,WATER,5902445945,1000078867
07.12.2020,MODERNISATION HGF,BRITISH TELECOM,"14,823.15",IT MANAGEMENT,DATA COMMUNICATIONS,5902445921,1088091
07.12.2020,MODERNISATION HGF,INTERSERVE (FACILITIES MANAGEMENT),302.85,PLANNED FM SERVICES BY KIER,BUILDING R&M,2103183292,3000000166
07.12.2020,MODERNISATION HGF,INTERSERVE (FACILITIES MANAGEMENT),371,PLANNED FM SERVICES BY KIER,BUILDING R&M,2103183292,3000000166
07.12.2020,MODERNISATION HGF,INTERSERVE (FACILITIES MANAGEMENT),"1,060.00",PLANNED FM SERVICES BY KIER,BUILDING R&M,2103183292,3000000166
07.12.2020,MODERNISATION HGF,INTERSERVE (FACILITIES MANAGEMENT),"1,135.71",PLANNED FM SERVICES BY KIER,BUILDING R&M,2103183292,3000000166
07.12.2020,MODERNISATION HGF,INTERSERVE (FACILITIES MANAGEMENT),"1,496.91",PLANNED FM SERVICES BY KIER,BUILDING R&M,2103183292,3000000166
07.12.2020,MODERNISATION HGF,INTERSERVE (FACILITIES MANAGEMENT),"3,719.96",PLANNED FM SERVICES BY KIER,BUILDING R&M,2103183292,3000000166
07.12.2020,MODERNISATION HGF,PULSE CORPORATION LTD,855,REPAIR AND MAINTENANCE SERVICES,HARDWARE,5902445894,1000072911
07.12.2020,MODERNISATION HGF,INTERSERVE (FACILITIES MANAGEMENT),"106,325.49",TSFM CONTINGENCY,INTEGRATED FACILITIES MANAGEMENT CONTRACT,2103183292,3000000166
07.12.2020,REGENERATION,INITIAL WASHROOM HYGIENE,-402.45,TOWER WORKSHOPS,PREMISES CLEANING,5902445888,1644695
07.12.2020,REGENERATION,INITIAL WASHROOM HYGIENE,"1,435.97",TOWER WORKSHOPS,PREMISES CLEANING,5902445886,1644695
07.12.2020,REGENERATION,INITIAL WASHROOM HYGIENE,"1,570.13",TOWER WORKSHOPS,PREMISES CLEANING,5902445887,1644695
07.12.2020,RESIDENT SERVICES,RUSKIN PARK HOUSE LTD,653.13,CAMBERWELL,RENTS,5902445692,1000038111
07.12.2020,RESIDENT SERVICES,RUSKIN PARK HOUSE LTD,653.13,CAMBERWELL,RENTS,5902445693,1000038111
07.12.2020,RESIDENT SERVICES,CHRISTINE COOPER,360,OPERATIONS/OFFICES ACCOMMODATION,LEGAL FEES & COURT COSTS,2103183731,1000058155
07.12.2020,RESIDENT SERVICES,GILLIAN CREW,"1,575.00",PARKING CONTROL,LEGAL FEES & COURT COSTS,2103183755,1000052954
07.12.2020,RESIDENT SERVICES,BRIDGEWATER ROOFING CONTRACTORS LTD,"40,005.00",PARKING CONTROL,OTHER R&M,2103183289,3000001482
07.12.2020,RESIDENT SERVICES,BRIDGEWATER ROOFING CONTRACTORS LTD,"94,513.00",PARKING CONTROL,OTHER R&M,2103183288,3000001482
07.12.2020,RESIDENT SERVICES HGF,FIELD COURT CHAMBERS,600,ILDERTON ROAD PERM,LEGAL FEES & COURT COSTS,2103183746,1000037404
07.12.2020,SOUTHWARK BUILDING SERVICES,FAYERS PLUMBING & BUILDING SUPPLIES,290.4,STORES/LOGISTICS,CREDITORS -GR/IR CLEARING ACCOUNT,5902445973,1572765
07.12.2020,SOUTHWARK BUILDING SERVICES,FAYERS PLUMBING & BUILDING SUPPLIES,314.65,STORES/LOGISTICS,CREDITORS -GR/IR CLEARING ACCOUNT,5902445973,1572765
07.12.2020,SOUTHWARK BUILDING SERVICES,CALLOW MASTER LOCKSMITHS,275.55,STORES/LOGISTICS,CREDITORS -GR/IR CLEARING ACCOUNT,5902445969,11179552
07.12.2020,SOUTHWARK BUILDING SERVICES,CALLOW MASTER LOCKSMITHS,344.85,STORES/LOGISTICS,CREDITORS -GR/IR CLEARING ACCOUNT,5902445960,11179552
07.12.2020,SOUTHWARK BUILDING SERVICES,CALLOW MASTER LOCKSMITHS,361.8,STORES/LOGISTICS,CREDITORS -GR/IR CLEARING ACCOUNT,5902445960,11179552
07.12.2020,SOUTHWARK BUILDING SERVICES,CALLOW MASTER LOCKSMITHS,388.96,STORES/LOGISTICS,CREDITORS -GR/IR CLEARING ACCOUNT,5902445967,11179552
07.12.2020,SOUTHWARK BUILDING SERVICES,CALLOW MASTER LOCKSMITHS,550,STORES/LOGISTICS,CREDITORS -GR/IR CLEARING ACCOUNT,5902445963,11179552
07.12.2020,SOUTHWARK BUILDING SERVICES,CALLOW MASTER LOCKSMITHS,600,STORES/LOGISTICS,CREDITORS -GR/IR CLEARING ACCOUNT,5902445969,11179552
07.12.2020,SOUTHWARK BUILDING SERVICES,CALLOW MASTER LOCKSMITHS,650,STORES/LOGISTICS,CREDITORS -GR/IR CLEARING ACCOUNT,5902445960,11179552
07.12.2020,SOUTHWARK BUILDING SERVICES,CALLOW MASTER LOCKSMITHS,896.61,STORES/LOGISTICS,CREDITORS -GR/IR CLEARING ACCOUNT,5902445969,11179552
07.12.2020,SOUTHWARK BUILDING SERVICES,CALLOW MASTER LOCKSMITHS,"1,750.25",STORES/LOGISTICS,CREDITORS -GR/IR CLEARING ACCOUNT,5902445969,11179552
07.12.2020,STRATEGIC FINANCING BUDGETS,BGC EUROPEAN HOLDINGS,"26,178.09",EXTERNAL INTEREST,DEBT MANAGEMENT EXPENSES,5902445848,1000081336
07.12.2020,STRATEGIC FINANCING BUDGETS,IMPERIAL TREASURY SERVICES LTD,"17,078.08",EXTERNAL INTEREST,DEBT MANAGEMENT EXPENSES,5902445885,1000083103
08.12.2020,ADULT SOCIAL CARE,REDACTED PERSONAL DATA,395.2,APPOINTEESHIPS,OTHER PAYMENTS FOR CLIENTS,REDACTED,REDACTED
08.12.2020,ADULT SOCIAL CARE,CAMBRIDGE HOUSE & TALBOT,490,LD LTS 18-64,DAYCARE,2103184024,1139414
08.12.2020,ADULT SOCIAL CARE,CAMBRIDGE HOUSE & TALBOT,"1,820.00",LD LTS 18-64,DAYCARE,2103184023,1139414
08.12.2020,ADULT SOCIAL CARE,CAMBRIDGE HOUSE & TALBOT,"2,002.00",LD LTS 18-64,DAYCARE,2103184025,1139414
08.12.2020,ADULT SOCIAL CARE,CAMBRIDGE HOUSE & TALBOT,"2,002.00",LD LTS 18-64,DAYCARE,2103184026,1139414
08.12.2020,ADULT SOCIAL CARE,CAMBRIDGE HOUSE & TALBOT,"2,912.00",LD LTS 18-64,DAYCARE,2103184027,1139414
08.12.2020,ADULT SOCIAL CARE,SHARE COMMUNITY LTD,780,LD LTS 18-64,DAYCARE,2103184019,1000062408
08.12.2020,ADULT SOCIAL CARE,SHARE COMMUNITY LTD,780,LD LTS 18-64,DAYCARE,2103184021,1000062408
08.12.2020,ADULT SOCIAL CARE,LONDON CARE LTD,871.25,MEM LTS 65+,HOMECARE - C&V,2103184032,1000003398
08.12.2020,ADULT SOCIAL CARE,LONDON CARE LTD,282.03,PHY LTS 18-64,HOMECARE - C&V,2103184076,1000003398
08.12.2020,ADULT SOCIAL CARE,LONDON CARE LTD,250.6,PHY LTS 65+,HOMECARE - C&V,2103184072,1000003398
08.12.2020,ADULT SOCIAL CARE,LONDON CARE LTD,261,PHY LTS 65+,HOMECARE - C&V,2103184028,1000003398
08.12.2020,ADULT SOCIAL CARE,LONDON CARE LTD,375.9,PHY LTS 65+,HOMECARE - C&V,2103184067,1000003398
08.12.2020,ADULT SOCIAL CARE,LONDON CARE LTD,501.2,PHY LTS 65+,HOMECARE - C&V,2103184084,1000003398
08.12.2020,ADULT SOCIAL CARE,LONDON CARE LTD,501.2,PHY LTS 65+,HOMECARE - C&V,2103184086,1000003398
08.12.2020,ADULT SOCIAL CARE,LONDON CARE LTD,600.05,PHY LTS 65+,HOMECARE - C&V,2103184038,1000003398
08.12.2020,ADULT SOCIAL CARE,LONDON CARE LTD,617.69,PHY LTS 65+,HOMECARE - C&V,2103184070,1000003398
08.12.2020,ADULT SOCIAL CARE,LONDON CARE LTD,622.17,PHY LTS 65+,HOMECARE - C&V,2103184043,1000003398
08.12.2020,ADULT SOCIAL CARE,LONDON CARE LTD,"1,074.00",PHY LTS 65+,HOMECARE - C&V,2103184051,1000003398
08.12.2020,ADULT SOCIAL CARE,LONDON CARE LTD,"1,114.40",PHY LTS 65+,HOMECARE - C&V,2103184071,1000003398
08.12.2020,ADULT SOCIAL CARE,LONDON CARE LTD,"1,239.58",PHY LTS 65+,HOMECARE - C&V,2103184040,1000003398
08.12.2020,ADULT SOCIAL CARE,LONDON CARE LTD,"1,303.57",PHY LTS 65+,HOMECARE - C&V,2103184033,1000003398
08.12.2020,ADULT SOCIAL CARE,LONDON CARE LTD,"2,197.51",PHY LTS 65+,HOMECARE - C&V,2103184050,1000003398
08.12.2020,ADULT SOCIAL CARE,LONDON CARE LTD,"2,206.18",PHY LTS 65+,HOMECARE - C&V,2103184047,1000003398
08.12.2020,ADULT SOCIAL CARE,LONDON CARE LTD,"2,768.68",PHY LTS 65+,HOMECARE - C&V,2103184030,1000003398
08.12.2020,ADULT SOCIAL CARE,THAMES HOMECARE SERVICE LTD,317.98,PHY LTS 65+,HOMECARE - C&V,2103184022,1000079295
08.12.2020,ADULT SOCIAL CARE,LONDON CARE LTD,523.72,PHY STS 18-64,HOMECARE - IC,2103184048,1000003398
08.12.2020,ADULT SOCIAL CARE,LONDON CARE LTD,"1,123.36",PHY STS 18-64,HOMECARE - IC,2103184034,1000003398
08.12.2020,ADULT SOCIAL CARE,LONDON CARE LTD,"1,890.42",PHY STS 18-64,HOMECARE - IC,2103184062,1000003398
08.12.2020,ADULT SOCIAL CARE,LONDON CARE LTD,273.02,PHY STS 65+,HOMECARE - IC,2103184035,1000003398
08.12.2020,ADULT SOCIAL CARE,LONDON CARE LTD,281.96,PHY STS 65+,HOMECARE - IC,2103184064,1000003398
08.12.2020,ADULT SOCIAL CARE,LONDON CARE LTD,317.81,PHY STS 65+,HOMECARE - IC,2103184039,1000003398
08.12.2020,ADULT SOCIAL CARE,LONDON CARE LTD,438.7,PHY STS 65+,HOMECARE - IC,2103184053,1000003398
08.12.2020,ADULT SOCIAL CARE,LONDON CARE LTD,543.6,PHY STS 65+,HOMECARE - IC,2103184041,1000003398
08.12.2020,ADULT SOCIAL CARE,LONDON CARE LTD,608.64,PHY STS 65+,HOMECARE - IC,2103184063,1000003398
08.12.2020,ADULT SOCIAL CARE,LONDON CARE LTD,666.8,PHY STS 65+,HOMECARE - IC,2103184073,1000003398
08.12.2020,ADULT SOCIAL CARE,LONDON CARE LTD,747.46,PHY STS 65+,HOMECARE - IC,2103184045,1000003398
08.12.2020,ADULT SOCIAL CARE,LONDON CARE LTD,769.81,PHY STS 65+,HOMECARE - IC,2103184074,1000003398
08.12.2020,ADULT SOCIAL CARE,LONDON CARE LTD,895.08,PHY STS 65+,HOMECARE - IC,2103184055,1000003398
08.12.2020,ADULT SOCIAL CARE,LONDON CARE LTD,930.91,PHY STS 65+,HOMECARE - IC,2103184069,1000003398
08.12.2020,ADULT SOCIAL CARE,LONDON CARE LTD,953.41,PHY STS 65+,HOMECARE - IC,2103184054,1000003398
08.12.2020,ADULT SOCIAL CARE,LONDON CARE LTD,"1,033.89",PHY STS 65+,HOMECARE - IC,2103184065,1000003398
08.12.2020,ADULT SOCIAL CARE,LONDON CARE LTD,"1,210.76",PHY STS 65+,HOMECARE - IC,2103184060,1000003398
08.12.2020,ADULT SOCIAL CARE,LONDON CARE LTD,"1,275.39",PHY STS 65+,HOMECARE - IC,2103184037,1000003398
08.12.2020,ADULT SOCIAL CARE,LONDON CARE LTD,"1,530.85",PHY STS 65+,HOMECARE - IC,2103184058,1000003398
08.12.2020,ASSET MANAGEMENT,STANNAH LIFT SERVICES LTD,"2,574.00",ADAPTATIONS,BUILDING R&M,5902446061,1063595
08.12.2020,ASSET MANAGEMENT,ANTONY HODARI  SOLICITORS,"4,500.00",DISREPAIR,LEGAL FEES & COURT COSTS,2103184092,1000031040
08.12.2020,CHIEF EXECUTIVE,EQUITY LAW SOLICITORS,"1,500.00",CAPITAL PS (REGEN),LAND & BUILDINGS ACQUISITION,2103184093,1000074154
08.12.2020,CHILDREN AND FAMILIES,LUQMANI THOMPSON & PARTNERS,"1,111.20",16 PLUS TEAM,OTHER PAYMENTS FOR CLIENTS,5902446105,1000072722
08.12.2020,CHILDREN AND FAMILIES,CONTACT PROFESSIONALS,365,CONTACT SERVICE,OTHER PAYMENTS FOR CLIENTS,2103183995,1000057263
08.12.2020,CHILDREN AND FAMILIES,CONTACT PROFESSIONALS,720,CONTACT SERVICE,OTHER PAYMENTS FOR CLIENTS,2103183992,1000057263
08.12.2020,CHILDREN AND FAMILIES,CONTACT PROFESSIONALS,885,CONTACT SERVICE,OTHER PAYMENTS FOR CLIENTS,2103183991,1000057263
08.12.2020,CHILDREN AND FAMILIES,BLERINA TAHIRAJ-PRITCHARD,566.28,FAMILY GROUP CONF�S,PROFESSIONAL FEES,5902446111,1000083304
08.12.2020,CHILDREN AND FAMILIES,HERA SOCIAL CARE LTD,338,FAMILY GROUP CONF�S,PROFESSIONAL FEES,5902446110,1000084935
08.12.2020,CHILDREN AND FAMILIES,REDACTED PERSONAL DATA,399.19,FAMILY GROUP CONF�S,PROFESSIONAL FEES,REDACTED,REDACTED
08.12.2020,CHILDREN AND FAMILIES,REDACTED PERSONAL DATA,399.19,FAMILY GROUP CONF�S,PROFESSIONAL FEES,REDACTED,REDACTED
08.12.2020,CHILDREN AND FAMILIES,NEXT STEP CARE MANAGEMENT LTD,"2,871.43",SEMI-IND CARELEAVERS,EXTERNAL AGENCIES AND BODIES,2103184000,1825556
08.12.2020,CHILDREN AND FAMILIES,NEXT STEP CARE MANAGEMENT LTD,"2,892.86",SEMI-IND CARELEAVERS,EXTERNAL AGENCIES AND BODIES,2103184006,1825556
08.12.2020,CHILDREN AND FAMILIES,CONTACT PROFESSIONALS,275.04,SEMI-IND CARELEAVERS,EXTERNAL AGENCIES AND BODIES,2103184012,1000057263
08.12.2020,CHILDREN AND FAMILIES,HEARTWOOD OUTREACH SERVICES LTD,"1,826.70",SEMI-IND CARELEAVERS,EXTERNAL AGENCIES AND BODIES,2103184013,1000075021
08.12.2020,CHILDREN AND FAMILIES,NETPEX LTD CORPORATE SERVICES,"-2,567.92",SEMI-IND CARELEAVERS,COSTS RECOVERED,2103173996,1000076073
08.12.2020,CHILDREN AND FAMILIES,NETPEX LTD CORPORATE SERVICES,"-1,800.00",SEMI-IND CARELEAVERS,COSTS RECOVERED,2103173995,1000076073
08.12.2020,CHILDREN AND FAMILIES,NETPEX LTD CORPORATE SERVICES,"2,678.70",SEMI-IND CARELEAVERS,EXTERNAL AGENCIES AND BODIES,2103184005,1000076073
08.12.2020,CHILDREN AND FAMILIES,NETPEX LTD CORPORATE SERVICES,"2,957.10",SEMI-IND CARELEAVERS,EXTERNAL AGENCIES AND BODIES,2103184003,1000076073
08.12.2020,CHILDREN AND FAMILIES,NETPEX LTD CORPORATE SERVICES,"3,214.20",SEMI-IND CARELEAVERS,EXTERNAL AGENCIES AND BODIES,2103184008,1000076073
08.12.2020,CHILDREN AND FAMILIES,NETPEX LTD CORPORATE SERVICES,"4,071.60",SEMI-IND CARELEAVERS,EXTERNAL AGENCIES AND BODIES,2103184014,1000076073
08.12.2020,CHILDREN AND FAMILIES,SANCTUARY CARE SERVICES LTD,"1,840.00",SEMI-IND CARELEAVERS,EXTERNAL AGENCIES AND BODIES,2103184001,1000078444
08.12.2020,CHILDREN AND FAMILIES,SANCTUARY CARE SERVICES LTD,560,SEMI-IND CARELEAVERS,OTHER PAYMENTS FOR CLIENTS,2103184011,1000078444
08.12.2020,CHILDREN AND FAMILIES,PATHWAY LTD,"4,071.43",SEMI-IND CARELEAVERS,EXTERNAL AGENCIES AND BODIES,2103184016,1000080564
08.12.2020,CHILDREN AND FAMILIES,PATHWAY LTD,"4,500.00",SEMI-IND LAC 16-17,EXTERNAL AGENCIES AND BODIES,2103183997,1000080564
08.12.2020,CHILDREN AND FAMILIES,PATHWAY LTD,300,SEMI-IND LAC 16-17,OTHER PAYMENTS FOR CLIENTS,2103183998,1000080564
08.12.2020,CHILDREN AND FAMILIES,TACT,899.82,STAYPUT- FOST CARERS,EXTERNAL AGENCIES AND BODIES,2103184007,1000012941
08.12.2020,CHILDREN AND FAMILIES,NETPEX LTD CORPORATE SERVICES,"3,837.78",UASC CARELEAVERS,EXTERNAL AGENCIES AND BODIES,2103184017,1000076073
08.12.2020,CHILDREN AND FAMILIES,NETPEX LTD CORPORATE SERVICES,280,UASC CARELEAVERS,OTHER PAYMENTS FOR CLIENTS,2103184010,1000076073
08.12.2020,CHILDREN AND FAMILIES,SANCTUARY CARE SERVICES LTD,"1,840.00",UASC CARELEAVERS,EXTERNAL AGENCIES AND BODIES,2103184015,1000078444
08.12.2020,CHILDREN AND FAMILIES,SANCTUARY CARE SERVICES LTD,560,UASC CARELEAVERS,OTHER PAYMENTS FOR CLIENTS,2103184002,1000078444
08.12.2020,CHILDREN'S SERVICES,THE COMPLETE WORKS INDEPENDENT SCHOOL,826,ALTERNATIVE PROVISION,EXTERNAL AGENCIES AND BODIES,5902446019,1000033256
08.12.2020,CHILDREN'S SERVICES,THE COMPLETE WORKS INDEPENDENT SCHOOL,"1,298.00",ALTERNATIVE PROVISION,EXTERNAL AGENCIES AND BODIES,5902446017,1000033256
08.12.2020,CHILDREN'S SERVICES,SOUTHWARK INCLUSIVE LEARNING SERVICE,"175,000.00",SILS,HIGH NEEDS - TOP UP FUNDING,5902446108,5001000105
08.12.2020,COMMUNITIES,LONDON CARE LTD,299.89,NO RECOURSE TO PUBLIC FUNDS,HOMECARE - C&V,2103184081,1000003398
08.12.2020,COMMUNITIES,LONDON CARE LTD,"1,120.85",NO RECOURSE TO PUBLIC FUNDS,HOMECARE - C&V,2103184057,1000003398
08.12.2020,COMMUNITIES,LONDON CARE LTD,"1,123.36",NO RECOURSE TO PUBLIC FUNDS,HOMECARE - C&V,2103184082,1000003398
08.12.2020,CUSTOMER EXPERIENCE HGF,FINEFAIR LTD,"8,225.00",COVID-19 SUPPORT,EXTERNAL AGENCIES AND BODIES,5902446006,1000075570
08.12.2020,CUSTOMER EXPERIENCE HGF,HOMES2LET UK LTD,"1,448.04",PSL PLACEMENTS,EXTERNAL AGENCIES AND BODIES,5902446007,1000079868
08.12.2020,CUSTOMER EXPERIENCE HGF,HOMES2LET UK LTD,"1,950.86",PSL PLACEMENTS,GRANTS,5902446002,1000079868
08.12.2020,CUSTOMER EXPERIENCE HGF,HOMES2LET UK LTD,"2,000.00",PSL PLACEMENTS,GRANTS,5902446009,1000079868
08.12.2020,ENVIRONMENT AND LEISURE,AUTO SISTANCE LTD,348,CAPITAL PS (LEISURE),CONSTRUCTION,5902446015,1000070536
08.12.2020,ENVIRONMENT AND LEISURE,AUTO SISTANCE LTD,696,CAPITAL PS (LEISURE),CONSTRUCTION,5902446014,1000070536
08.12.2020,ENVIRONMENT AND LEISURE,COMPLETE ECOLOGY LTD,950,CAPITAL PS (LEISURE),CONSTRUCTION FEES - INTERNAL,2103184098,3000001840
08.12.2020,ENVIRONMENT AND LEISURE,COMPLETE ECOLOGY LTD,"6,900.00",CAPITAL PS (LEISURE),CONSTRUCTION FEES - INTERNAL,2103184098,3000001840
08.12.2020,ENVIRONMENT DIRECTORATE,SPALDINGS (UK) LTD,358.5,GROUNDS MAINTENANCE - GENERAL,MATERIALS,5902446034,1907384
08.12.2020,F & C S EXCLUDING CORPORATE BUDGETS,REDACTED PERSONAL DATA,500,SESS,OTHER PAYMENTS FOR CLIENTS,REDACTED,REDACTED
08.12.2020,F & C S EXCLUDING CORPORATE BUDGETS,REDACTED PERSONAL DATA,500,SESS,OTHER PAYMENTS FOR CLIENTS,REDACTED,REDACTED
08.12.2020,F & C S EXCLUDING CORPORATE BUDGETS,REDACTED PERSONAL DATA,500,SESS,OTHER PAYMENTS FOR CLIENTS,REDACTED,REDACTED
08.12.2020,HOUSING,A & E ELKINS LTD,"114,176.55",A&E ELKINS,I-WORLD CONTRACTORS HOLDING ACCOUNT,2103184095,4012501
08.12.2020,HOUSING,BRIDGEWATER ROOFING CONTRACTORS LTD,"117,493.69",BRC,I-WORLD CONTRACTORS HOLDING ACCOUNT,2103184097,3000001482
08.12.2020,HOUSING HRA,SHARPE PRITCHARD LLP,768,CAPITAL PS (HRA),CONSTRUCTION FEES  - EXTERNAL,5902446134,1790085
08.12.2020,HOUSING HRA,ENGIE REGENERATION (APOLLO) LTD,"9,140.90",CAPITAL PS (HRA),CONSTRUCTION MAIN CONTRACT -CERTIFICATED,2103184099,4000449
08.12.2020,HOUSING HRA,LARK LANDSCAPE DESIGN LIMITED,"6,751.33",CAPITAL PS (HRA),CONSTRUCTION FEES,5902446010,1000035609
08.12.2020,HOUSING HRA,OPEN COMMUNITIES LTD,441,CAPITAL PS (HRA),CONSTRUCTION FEES  - EXTERNAL,5902446011,1000065800
08.12.2020,HOUSING HRA,OPEN COMMUNITIES LTD,"1,837.50",CAPITAL PS (HRA),CONSTRUCTION FEES  - EXTERNAL,5902446008,1000065800
08.12.2020,LEISURE DIRECTORATE,REDACTED PERSONAL DATA,337.5,KINGSWOOD LIBRARY,HIRE OF FACILITIES AND EQUIPMENT,REDACTED,REDACTED
08.12.2020,SBS OPERATIONS,TRAVIS PERKINS TRADING COMPANY LTD,313.33,BOROUGH & BANKSIDE DD,MATERIALS,5902446102,1514319
08.12.2020,SBS OPERATIONS,TRAVIS PERKINS TRADING COMPANY LTD,255.15,ELECTRICIANS - DAY TO DAY,MATERIALS,5902446028,1514319
08.12.2020,SBS OPERATIONS,TRAVIS PERKINS TRADING COMPANY LTD,384.99,SBS AIDS AND ADAPTATIONS,MATERIALS,5902446036,1514319
08.12.2020,SBS OPERATIONS,TRAVIS PERKINS TRADING COMPANY LTD,384.99,SBS AIDS AND ADAPTATIONS,MATERIALS,5902446123,1514319
08.12.2020,SBS OPERATIONS,TRAVIS PERKINS TRADING COMPANY LTD,"1,638.75",SBS AIDS AND ADAPTATIONS,MATERIALS,5902446037,1514319
08.12.2020,SBS OPERATIONS,TRAVIS PERKINS TRADING COMPANY LTD,291,WALWORTH DD,MATERIALS,5902446126,1514319
08.12.2020,SBS SUPPORT,TRAVIS PERKINS TRADING COMPANY LTD,546.25,R & M OVERHEADS,MATERIALS,5902446127,1514319
08.12.2020,SOUTHWARK BUILDING SERVICES,TRAVIS PERKINS TRADING COMPANY LTD,508.95,STORES/LOGISTICS,CREDITORS -GR/IR CLEARING ACCOUNT,5902446118,1514319
08.12.2020,SOUTHWARK BUILDING SERVICES,TRAVIS PERKINS TRADING COMPANY LTD,965.9,STORES/LOGISTICS,CREDITORS -GR/IR CLEARING ACCOUNT,5902446118,1514319
08.12.2020,SOUTHWARK BUILDING SERVICES,SMI INT GROUP LTD,"3,000.00",STORES/LOGISTICS,CREDITORS -GR/IR CLEARING ACCOUNT,5902446091,1000076606
09.12.2020,ADULT SOCIAL CARE,FOSTERING SUPPORT GROUP LTD,"5,142.60",DISABILITIES LAC,EXTERNAL AGENCIES AND BODIES,2103184701,1000065830
09.12.2020,ADULT SOCIAL CARE,THAMES HOMECARE SERVICE LTD,367.94,DISCHARGE TO ACCESS,HOMECARE - C&V,2103184802,1000079295
09.12.2020,ADULT SOCIAL CARE,THAMES HOMECARE SERVICE LTD,517.85,DISCHARGE TO ACCESS,HOMECARE - C&V,2103184796,1000079295
09.12.2020,ADULT SOCIAL CARE,CHOICE SUPPORT,367.4,LD LTS 18-64,SUPPORTED LIVING,2103184728,1104183
09.12.2020,ADULT SOCIAL CARE,BEDE CAFE PROJECT,260,LD LTS 18-64,DAYCARE,2103184762,1553877
09.12.2020,ADULT SOCIAL CARE,BEDE CAFE PROJECT,260,LD LTS 18-64,DAYCARE,2103184770,1553877
09.12.2020,ADULT SOCIAL CARE,BEDE CAFE PROJECT,280,LD LTS 18-64,DAYCARE,2103184749,1553877
09.12.2020,ADULT SOCIAL CARE,BEDE CAFE PROJECT,280,LD LTS 18-64,DAYCARE,2103184752,1553877
09.12.2020,ADULT SOCIAL CARE,BEDE CAFE PROJECT,308,LD LTS 18-64,DAYCARE,2103184768,1553877
09.12.2020,ADULT SOCIAL CARE,BEDE CAFE PROJECT,372,LD LTS 18-64,DAYCARE,2103184735,1553877
09.12.2020,ADULT SOCIAL CARE,BEDE CAFE PROJECT,464,LD LTS 18-64,DAYCARE,2103184753,1553877
09.12.2020,ADULT SOCIAL CARE,BEDE CAFE PROJECT,464,LD LTS 18-64,DAYCARE,2103184763,1553877
09.12.2020,ADULT SOCIAL CARE,BEDE CAFE PROJECT,492,LD LTS 18-64,DAYCARE,2103184764,1553877
09.12.2020,ADULT SOCIAL CARE,BEDE CAFE PROJECT,520,LD LTS 18-64,DAYCARE,2103184745,1553877
09.12.2020,ADULT SOCIAL CARE,BEDE CAFE PROJECT,520,LD LTS 18-64,DAYCARE,2103184751,1553877
09.12.2020,ADULT SOCIAL CARE,BEDE CAFE PROJECT,530,LD LTS 18-64,DAYCARE,2103184741,1553877
09.12.2020,ADULT SOCIAL CARE,BEDE CAFE PROJECT,561.6,LD LTS 18-64,DAYCARE,2103184747,1553877
09.12.2020,ADULT SOCIAL CARE,BEDE CAFE PROJECT,568,LD LTS 18-64,DAYCARE,2103184756,1553877
09.12.2020,ADULT SOCIAL CARE,BEDE CAFE PROJECT,580,LD LTS 18-64,DAYCARE,2103184740,1553877
09.12.2020,ADULT SOCIAL CARE,BEDE CAFE PROJECT,592,LD LTS 18-64,DAYCARE,2103184739,1553877
09.12.2020,ADULT SOCIAL CARE,BEDE CAFE PROJECT,696,LD LTS 18-64,DAYCARE,2103184737,1553877
09.12.2020,ADULT SOCIAL CARE,BEDE CAFE PROJECT,860,LD LTS 18-64,DAYCARE,2103184766,1553877
09.12.2020,ADULT SOCIAL CARE,BEDE CAFE PROJECT,928,LD LTS 18-64,DAYCARE,2103184760,1553877
09.12.2020,ADULT SOCIAL CARE,BEDE CAFE PROJECT,956,LD LTS 18-64,DAYCARE,2103184738,1553877
09.12.2020,ADULT SOCIAL CARE,BEDE CAFE PROJECT,956,LD LTS 18-64,DAYCARE,2103184742,1553877
09.12.2020,ADULT SOCIAL CARE,BEDE CAFE PROJECT,956,LD LTS 18-64,DAYCARE,2103184755,1553877
09.12.2020,ADULT SOCIAL CARE,BEDE CAFE PROJECT,956,LD LTS 18-64,DAYCARE,2103184757,1553877
09.12.2020,ADULT SOCIAL CARE,BEDE CAFE PROJECT,"1,040.00",LD LTS 18-64,DAYCARE,2103184743,1553877
09.12.2020,ADULT SOCIAL CARE,BEDE CAFE PROJECT,"1,040.00",LD LTS 18-64,DAYCARE,2103184765,1553877
09.12.2020,ADULT SOCIAL CARE,BEDE CAFE PROJECT,"1,364.00",LD LTS 18-64,DAYCARE,2103184746,1553877
09.12.2020,ADULT SOCIAL CARE,BEDE CAFE PROJECT,"1,752.00",LD LTS 18-64,DAYCARE,2103184754,1553877
09.12.2020,ADULT SOCIAL CARE,BEDE CAFE PROJECT,"2,920.00",LD LTS 18-64,DAYCARE,2103184767,1553877
09.12.2020,ADULT SOCIAL CARE,SOUTHSIDE PARTNERSHIP LTD,"1,263.13",LD LTS 18-64,SUPPORTED LIVING,2103184776,1716624
09.12.2020,ADULT SOCIAL CARE,SOUTHSIDE PARTNERSHIP LTD,"1,591.00",LD LTS 18-64,SUPPORTED LIVING,2103184774,1716624
09.12.2020,ADULT SOCIAL CARE,DARETHEALTHCARE UK LTD,682.65,LD LTS 18-64,SUPPORTED LIVING,2103184734,1000059149
09.12.2020,ADULT SOCIAL CARE,SUPREME CARE SERVICES LTD,349,LD LTS 18-64,HOMECARE - C&V,2103184684,1000059416
09.12.2020,ADULT SOCIAL CARE,ACCESS MOBILITY TRANSPORT LTD,"2,578.80",LD LTS 18-64,CLIENT TRANSPORT,2103184730,1000074637
09.12.2020,ADULT SOCIAL CARE,REMARK LIVING,288,LD LTS 18-64,SUPPORTED LIVING,2103184772,1000081741
09.12.2020,ADULT SOCIAL CARE,CHOICE SUPPORT,"1,028.72",LD LTS 65+,SUPPORTED LIVING,2103184726,1104183
09.12.2020,ADULT SOCIAL CARE,CHOICE SUPPORT,"1,028.72",LD LTS 65+,SUPPORTED LIVING,2103184731,1104183
09.12.2020,ADULT SOCIAL CARE,CHOICE SUPPORT,"1,028.72",LD LTS 65+,SUPPORTED LIVING,2103184732,1104183
09.12.2020,ADULT SOCIAL CARE,CHOICE SUPPORT,"1,028.72",LD LTS 65+,SUPPORTED LIVING,2103184733,1104183
09.12.2020,ADULT SOCIAL CARE,BEDE CAFE PROJECT,478.4,LD LTS 65+,DAYCARE,2103184748,1553877
09.12.2020,ADULT SOCIAL CARE,SUPREME CARE SERVICES LTD,296.64,MEM LTS 65+,HOMECARE - C&V,2103184613,1000059416
09.12.2020,ADULT SOCIAL CARE,BEDE CAFE PROJECT,280,MH LTS 18-64,DAYCARE,2103184759,1553877
09.12.2020,ADULT SOCIAL CARE,SUPREME CARE SERVICES LTD,488.6,MH LTS 18-64,HOMECARE - C&V,2103184637,1000059416
09.12.2020,ADULT SOCIAL CARE,SUPREME CARE SERVICES LTD,436.24,MH LTS 65+,HOMECARE - C&V,2103184659,1000059416
09.12.2020,ADULT SOCIAL CARE,SUPREME CARE SERVICES LTD,994.64,MH LTS 65+,HOMECARE - C&V,2103184667,1000059416
09.12.2020,ADULT SOCIAL CARE,THAMES HOMECARE SERVICE LTD,472.42,MH LTS 65+,HOMECARE - SPOT,2103184840,1000079295
09.12.2020,ADULT SOCIAL CARE,THAMES HOMECARE SERVICE LTD,508.76,MH LTS 65+,HOMECARE - SPOT,2103184799,1000079295
09.12.2020,ADULT SOCIAL CARE,SUPREME CARE SERVICES LTD,436.24,PHY LTS 18-64,HOMECARE - C&V,2103184668,1000059416
09.12.2020,ADULT SOCIAL CARE,SUPREME CARE SERVICES LTD,488.6,PHY LTS 18-64,HOMECARE - C&V,2103184676,1000059416
09.12.2020,ADULT SOCIAL CARE,SUPREME CARE SERVICES LTD,855.04,PHY LTS 18-64,HOMECARE - C&V,2103184646,1000059416
09.12.2020,ADULT SOCIAL CARE,SUPREME CARE SERVICES LTD,889.96,PHY LTS 18-64,HOMECARE - C&V,2103184654,1000059416
09.12.2020,ADULT SOCIAL CARE,SUPREME CARE SERVICES LTD,977.2,PHY LTS 18-64,HOMECARE - C&V,2103184647,1000059416
09.12.2020,ADULT SOCIAL CARE,SUPREME CARE SERVICES LTD,994.64,PHY LTS 18-64,HOMECARE - C&V,2103184645,1000059416
09.12.2020,ADULT SOCIAL CARE,SUPREME CARE SERVICES LTD,"1,221.52",PHY LTS 18-64,HOMECARE - C&V,2103184651,1000059416
09.12.2020,ADULT SOCIAL CARE,THAMES HOMECARE SERVICE LTD,717.72,PHY LTS 18-64,HOMECARE - C&V,2103184838,1000079295
09.12.2020,ADULT SOCIAL CARE,THAMES HOMECARE SERVICE LTD,286.18,PHY LTS 18-64,HOMECARE - SPOT,2103184847,1000079295
09.12.2020,ADULT SOCIAL CARE,THAMES HOMECARE SERVICE LTD,349.77,PHY LTS 18-64,HOMECARE - SPOT,2103184825,1000079295
09.12.2020,ADULT SOCIAL CARE,THAMES HOMECARE SERVICE LTD,363.4,PHY LTS 18-64,HOMECARE - SPOT,2103184784,1000079295
09.12.2020,ADULT SOCIAL CARE,THAMES HOMECARE SERVICE LTD,386.11,PHY LTS 18-64,HOMECARE - SPOT,2103184797,1000079295
09.12.2020,ADULT SOCIAL CARE,THAMES HOMECARE SERVICE LTD,572.36,PHY LTS 18-64,HOMECARE - SPOT,2103184790,1000079295
09.12.2020,ADULT SOCIAL CARE,THAMES HOMECARE SERVICE LTD,572.36,PHY LTS 18-64,HOMECARE - SPOT,2103184811,1000079295
09.12.2020,ADULT SOCIAL CARE,THAMES HOMECARE SERVICE LTD,635.95,PHY LTS 18-64,HOMECARE - SPOT,2103184794,1000079295
09.12.2020,ADULT SOCIAL CARE,THAMES HOMECARE SERVICE LTD,649.58,PHY LTS 18-64,HOMECARE - SPOT,2103184816,1000079295
09.12.2020,ADULT SOCIAL CARE,THAMES HOMECARE SERVICE LTD,844.91,PHY LTS 18-64,HOMECARE - SPOT,2103184833,1000079295
09.12.2020,ADULT SOCIAL CARE,THAMES HOMECARE SERVICE LTD,935.76,PHY LTS 18-64,HOMECARE - SPOT,2103184818,1000079295
09.12.2020,ADULT SOCIAL CARE,REMARK LIVING,"1,035.00",PHY LTS 18-64,SUPPORTED LIVING,2103184773,1000081741
09.12.2020,ADULT SOCIAL CARE,SUPREME CARE SERVICES LTD,261.75,PHY LTS 65+,HOMECARE - C&V,2103184658,1000059416
09.12.2020,ADULT SOCIAL CARE,SUPREME CARE SERVICES LTD,261.76,PHY LTS 65+,HOMECARE - C&V,2103184660,1000059416
09.12.2020,ADULT SOCIAL CARE,SUPREME CARE SERVICES LTD,366.44,PHY LTS 65+,HOMECARE - C&V,2103184618,1000059416
09.12.2020,ADULT SOCIAL CARE,SUPREME CARE SERVICES LTD,366.44,PHY LTS 65+,HOMECARE - C&V,2103184626,1000059416
09.12.2020,ADULT SOCIAL CARE,SUPREME CARE SERVICES LTD,366.44,PHY LTS 65+,HOMECARE - C&V,2103184672,1000059416
09.12.2020,ADULT SOCIAL CARE,SUPREME CARE SERVICES LTD,401.36,PHY LTS 65+,HOMECARE - C&V,2103184671,1000059416
09.12.2020,ADULT SOCIAL CARE,SUPREME CARE SERVICES LTD,471.16,PHY LTS 65+,HOMECARE - C&V,2103184616,1000059416
09.12.2020,ADULT SOCIAL CARE,SUPREME CARE SERVICES LTD,488.6,PHY LTS 65+,HOMECARE - C&V,2103184641,1000059416
09.12.2020,ADULT SOCIAL CARE,SUPREME CARE SERVICES LTD,488.6,PHY LTS 65+,HOMECARE - C&V,2103184681,1000059416
09.12.2020,ADULT SOCIAL CARE,SUPREME CARE SERVICES LTD,506.04,PHY LTS 65+,HOMECARE - C&V,2103184665,1000059416
09.12.2020,ADULT SOCIAL CARE,SUPREME CARE SERVICES LTD,523.5,PHY LTS 65+,HOMECARE - C&V,2103184682,1000059416
09.12.2020,ADULT SOCIAL CARE,SUPREME CARE SERVICES LTD,558.4,PHY LTS 65+,HOMECARE - C&V,2103184634,1000059416
09.12.2020,ADULT SOCIAL CARE,SUPREME CARE SERVICES LTD,558.4,PHY LTS 65+,HOMECARE - C&V,2103184656,1000059416
09.12.2020,ADULT SOCIAL CARE,SUPREME CARE SERVICES LTD,575.84,PHY LTS 65+,HOMECARE - C&V,2103184657,1000059416
09.12.2020,ADULT SOCIAL CARE,SUPREME CARE SERVICES LTD,593.32,PHY LTS 65+,HOMECARE - C&V,2103184614,1000059416
09.12.2020,ADULT SOCIAL CARE,SUPREME CARE SERVICES LTD,610.76,PHY LTS 65+,HOMECARE - C&V,2103184662,1000059416
09.12.2020,ADULT SOCIAL CARE,SUPREME CARE SERVICES LTD,663.12,PHY LTS 65+,HOMECARE - C&V,2103184679,1000059416
09.12.2020,ADULT SOCIAL CARE,SUPREME CARE SERVICES LTD,698,PHY LTS 65+,HOMECARE - C&V,2103184649,1000059416
09.12.2020,ADULT SOCIAL CARE,SUPREME CARE SERVICES LTD,732.92,PHY LTS 65+,HOMECARE - C&V,2103184619,1000059416
09.12.2020,ADULT SOCIAL CARE,SUPREME CARE SERVICES LTD,732.92,PHY LTS 65+,HOMECARE - C&V,2103184650,1000059416
09.12.2020,ADULT SOCIAL CARE,SUPREME CARE SERVICES LTD,737.26,PHY LTS 65+,HOMECARE - C&V,2103184653,1000059416
09.12.2020,ADULT SOCIAL CARE,SUPREME CARE SERVICES LTD,750.36,PHY LTS 65+,HOMECARE - C&V,2103184652,1000059416
09.12.2020,ADULT SOCIAL CARE,SUPREME CARE SERVICES LTD,837.6,PHY LTS 65+,HOMECARE - C&V,2103184655,1000059416
09.12.2020,ADULT SOCIAL CARE,SUPREME CARE SERVICES LTD,855.04,PHY LTS 65+,HOMECARE - C&V,2103184642,1000059416
09.12.2020,ADULT SOCIAL CARE,SUPREME CARE SERVICES LTD,872.52,PHY LTS 65+,HOMECARE - C&V,2103184663,1000059416
09.12.2020,ADULT SOCIAL CARE,SUPREME CARE SERVICES LTD,899.92,PHY LTS 65+,HOMECARE - C&V,2103184635,1000059416
09.12.2020,ADULT SOCIAL CARE,SUPREME CARE SERVICES LTD,924.84,PHY LTS 65+,HOMECARE - C&V,2103184627,1000059416
09.12.2020,ADULT SOCIAL CARE,SUPREME CARE SERVICES LTD,959.76,PHY LTS 65+,HOMECARE - C&V,2103184643,1000059416
09.12.2020,ADULT SOCIAL CARE,SUPREME CARE SERVICES LTD,977.2,PHY LTS 65+,HOMECARE - C&V,2103184621,1000059416
09.12.2020,ADULT SOCIAL CARE,SUPREME CARE SERVICES LTD,977.2,PHY LTS 65+,HOMECARE - C&V,2103184636,1000059416
09.12.2020,ADULT SOCIAL CARE,SUPREME CARE SERVICES LTD,"1,012.12",PHY LTS 65+,HOMECARE - C&V,2103184683,1000059416
09.12.2020,ADULT SOCIAL CARE,SUPREME CARE SERVICES LTD,"1,099.36",PHY LTS 65+,HOMECARE - C&V,2103184615,1000059416
09.12.2020,ADULT SOCIAL CARE,SUPREME CARE SERVICES LTD,"1,099.36",PHY LTS 65+,HOMECARE - C&V,2103184617,1000059416
09.12.2020,ADULT SOCIAL CARE,SUPREME CARE SERVICES LTD,"1,099.36",PHY LTS 65+,HOMECARE - C&V,2103184628,1000059416
09.12.2020,ADULT SOCIAL CARE,SUPREME CARE SERVICES LTD,"1,116.80",PHY LTS 65+,HOMECARE - C&V,2103184664,1000059416
09.12.2020,ADULT SOCIAL CARE,SUPREME CARE SERVICES LTD,"1,203.43",PHY LTS 65+,HOMECARE - C&V,2103184639,1000059416
09.12.2020,ADULT SOCIAL CARE,SUPREME CARE SERVICES LTD,"1,221.52",PHY LTS 65+,HOMECARE - C&V,2103184622,1000059416
09.12.2020,ADULT SOCIAL CARE,SUPREME CARE SERVICES LTD,"1,221.52",PHY LTS 65+,HOMECARE - C&V,2103184648,1000059416
09.12.2020,ADULT SOCIAL CARE,SUPREME CARE SERVICES LTD,"1,221.52",PHY LTS 65+,HOMECARE - C&V,2103184666,1000059416
09.12.2020,ADULT SOCIAL CARE,SUPREME CARE SERVICES LTD,"1,256.41",PHY LTS 65+,HOMECARE - C&V,2103184675,1000059416
09.12.2020,ADULT SOCIAL CARE,SUPREME CARE SERVICES LTD,"1,305.28",PHY LTS 65+,HOMECARE - C&V,2103184631,1000059416
09.12.2020,ADULT SOCIAL CARE,SUPREME CARE SERVICES LTD,"1,465.80",PHY LTS 65+,HOMECARE - C&V,2103184678,1000059416
09.12.2020,ADULT SOCIAL CARE,SUPREME CARE SERVICES LTD,"1,727.56",PHY LTS 65+,HOMECARE - C&V,2103184638,1000059416
09.12.2020,ADULT SOCIAL CARE,SUPREME CARE SERVICES LTD,"1,919.52",PHY LTS 65+,HOMECARE - C&V,2103184670,1000059416
09.12.2020,ADULT SOCIAL CARE,SUPREME CARE SERVICES LTD,"2,181.24",PHY LTS 65+,HOMECARE - C&V,2103184640,1000059416
09.12.2020,ADULT SOCIAL CARE,SUPREME CARE SERVICES LTD,"2,198.72",PHY LTS 65+,HOMECARE - C&V,2103184624,1000059416
09.12.2020,ADULT SOCIAL CARE,SUPREME CARE SERVICES LTD,"2,931.60",PHY LTS 65+,HOMECARE - C&V,2103184673,1000059416
09.12.2020,ADULT SOCIAL CARE,SUPREME CARE SERVICES LTD,"3,629.60",PHY LTS 65+,HOMECARE - C&V,2103184630,1000059416
09.12.2020,ADULT SOCIAL CARE,THAMES HOMECARE SERVICE LTD,681.38,PHY LTS 65+,HOMECARE - C&V,2103184844,1000079295
09.12.2020,ADULT SOCIAL CARE,THAMES HOMECARE SERVICE LTD,763.14,PHY LTS 65+,HOMECARE - C&V,2103184809,1000079295
09.12.2020,ADULT SOCIAL CARE,THAMES HOMECARE SERVICE LTD,268.01,PHY LTS 65+,HOMECARE - SPOT,2103184845,1000079295
09.12.2020,ADULT SOCIAL CARE,THAMES HOMECARE SERVICE LTD,272.55,PHY LTS 65+,HOMECARE - SPOT,2103184843,1000079295
09.12.2020,ADULT SOCIAL CARE,THAMES HOMECARE SERVICE LTD,286.18,PHY LTS 65+,HOMECARE - SPOT,2103184829,1000079295
09.12.2020,ADULT SOCIAL CARE,THAMES HOMECARE SERVICE LTD,286.18,PHY LTS 65+,HOMECARE - SPOT,2103184848,1000079295
09.12.2020,ADULT SOCIAL CARE,THAMES HOMECARE SERVICE LTD,286.18,PHY LTS 65+,HOMECARE - SPOT,2103184854,1000079295
09.12.2020,ADULT SOCIAL CARE,THAMES HOMECARE SERVICE LTD,317.98,PHY LTS 65+,HOMECARE - SPOT,2103184783,1000079295
09.12.2020,ADULT SOCIAL CARE,THAMES HOMECARE SERVICE LTD,349.77,PHY LTS 65+,HOMECARE - SPOT,2103184791,1000079295
09.12.2020,ADULT SOCIAL CARE,THAMES HOMECARE SERVICE LTD,413.37,PHY LTS 65+,HOMECARE - SPOT,2103184798,1000079295
09.12.2020,ADULT SOCIAL CARE,THAMES HOMECARE SERVICE LTD,413.37,PHY LTS 65+,HOMECARE - SPOT,2103184827,1000079295
09.12.2020,ADULT SOCIAL CARE,THAMES HOMECARE SERVICE LTD,508.76,PHY LTS 65+,HOMECARE - SPOT,2103184855,1000079295
09.12.2020,ADULT SOCIAL CARE,THAMES HOMECARE SERVICE LTD,572.36,PHY LTS 65+,HOMECARE - SPOT,2103184804,1000079295
09.12.2020,ADULT SOCIAL CARE,THAMES HOMECARE SERVICE LTD,572.36,PHY LTS 65+,HOMECARE - SPOT,2103184810,1000079295
09.12.2020,ADULT SOCIAL CARE,THAMES HOMECARE SERVICE LTD,572.36,PHY LTS 65+,HOMECARE - SPOT,2103184826,1000079295
09.12.2020,ADULT SOCIAL CARE,THAMES HOMECARE SERVICE LTD,576.9,PHY LTS 65+,HOMECARE - SPOT,2103184856,1000079295
09.12.2020,ADULT SOCIAL CARE,THAMES HOMECARE SERVICE LTD,599.61,PHY LTS 65+,HOMECARE - SPOT,2103184830,1000079295
09.12.2020,ADULT SOCIAL CARE,THAMES HOMECARE SERVICE LTD,608.7,PHY LTS 65+,HOMECARE - SPOT,2103184819,1000079295
09.12.2020,ADULT SOCIAL CARE,THAMES HOMECARE SERVICE LTD,635.95,PHY LTS 65+,HOMECARE - SPOT,2103184807,1000079295
09.12.2020,ADULT SOCIAL CARE,THAMES HOMECARE SERVICE LTD,640.49,PHY LTS 65+,HOMECARE - SPOT,2103184842,1000079295
09.12.2020,ADULT SOCIAL CARE,THAMES HOMECARE SERVICE LTD,663.21,PHY LTS 65+,HOMECARE - SPOT,2103184792,1000079295
09.12.2020,ADULT SOCIAL CARE,THAMES HOMECARE SERVICE LTD,699.55,PHY LTS 65+,HOMECARE - SPOT,2103184800,1000079295
09.12.2020,ADULT SOCIAL CARE,THAMES HOMECARE SERVICE LTD,699.55,PHY LTS 65+,HOMECARE - SPOT,2103184832,1000079295
09.12.2020,ADULT SOCIAL CARE,THAMES HOMECARE SERVICE LTD,763.14,PHY LTS 65+,HOMECARE - SPOT,2103184786,1000079295
09.12.2020,ADULT SOCIAL CARE,THAMES HOMECARE SERVICE LTD,799.48,PHY LTS 65+,HOMECARE - SPOT,2103184777,1000079295
09.12.2020,ADULT SOCIAL CARE,THAMES HOMECARE SERVICE LTD,"1,044.78",PHY LTS 65+,HOMECARE - SPOT,2103184821,1000079295
09.12.2020,ADULT SOCIAL CARE,THAMES HOMECARE SERVICE LTD,"1,480.86",PHY LTS 65+,HOMECARE - SPOT,2103184805,1000079295
09.12.2020,ADULT SOCIAL CARE,ELEANOR NURSING AND SOCIAL CARE LTD,"2,076.12",PHY LTS 65+,HOMECARE - SPOT,2103184771,1000081695
09.12.2020,ADULT SOCIAL CARE,ELEANOR NURSING AND SOCIAL CARE LTD,"2,076.12",PHY LTS 65+,HOMECARE - SPOT,2103184775,1000081695
09.12.2020,ADULT SOCIAL CARE,REDACTED PERSONAL DATA,"14,361.68",PHY LTS 65+,NURSING PLACEMENTS FEES,REDACTED,REDACTED
09.12.2020,ADULT SOCIAL CARE,THAMES HOMECARE SERVICE LTD,699.55,PHY STS 18-64,HOMECARE - IC,2103184820,1000079295
09.12.2020,ADULT SOCIAL CARE,THAMES HOMECARE SERVICE LTD,286.18,PHY STS 65+,HOMECARE - IC,2103184781,1000079295
09.12.2020,ADULT SOCIAL CARE,THAMES HOMECARE SERVICE LTD,508.76,PHY STS 65+,HOMECARE - IC,2103184846,1000079295
09.12.2020,ADULT SOCIAL CARE,THAMES HOMECARE SERVICE LTD,"26,600.00",REABLEMENT CONTRACT,HOMECARE - C&V,5902446257,1000079295
09.12.2020,ADULT SOCIAL CARE,SUPREME CARE SERVICES LTD,837.6,SEN LTS 65+,HOMECARE - C&V,2103184623,1000059416
09.12.2020,ADULT SOCIAL CARE,SUPREME CARE SERVICES LTD,"2,512.80",SEN LTS 65+,HOMECARE - C&V,2103184669,1000059416
09.12.2020,ADULT SOCIAL CARE,THAMES HOMECARE SERVICE LTD,304.35,SEN LTS 65+,HOMECARE - SPOT,2103184849,1000079295
09.12.2020,ADULT SOCIAL CARE,BEDE CAFE PROJECT,"1,168.00",SOCIAL ISOLATION,DAYCARE,2103184758,1553877
09.12.2020,ADULT SOCIAL CARE,INTERSERVE HEALTHCARE,787.08,SPECIALIST CARE,SECTION 17 PAYMENTS TO AGENCIES/CARERS,2103184685,1000049612
09.12.2020,ADULT SOCIAL CARE,KAIROS COMMUNITY TRUST,"2,160.00",SUB LTS 18-64,DAYCARE,2103184717,1000025479
09.12.2020,ADULT SOCIAL CARE,KAIROS COMMUNITY TRUST,"3,201.43",SUB LTS 18-64,PLACEMENTS - REHAB,2103184724,1000025479
09.12.2020,ADULT SOCIAL CARE,FREEDOM RECOVERY CENTRE,490,SUB LTS 18-64,DAYCARE,2103184722,1000046185
09.12.2020,ADULT SOCIAL CARE,FREEDOM RECOVERY CENTRE,980,SUB LTS 18-64,DAYCARE,2103184720,1000046185
09.12.2020,ADULT SOCIAL CARE,SUPREME CARE SERVICES LTD,261.75,SUB LTS 18-64,HOMECARE - C&V,2103184680,1000059416
09.12.2020,ADULT SOCIAL CARE,CARE O LINE,440,TRANSITIONS 14-18YRS,SECTION 17 PAYMENTS TO AGENCIES/CARERS,2103184686,11241743
09.12.2020,ASSET MANAGEMENT,ASHFORDS LLP OFFICE ACCOUNT,425,DISREPAIR,PAYMENTS FOR LEGAL SERVICES,5902446139,1000082695
09.12.2020,ASSET MANAGEMENT,ASHFORDS LLP OFFICE ACCOUNT,425,DISREPAIR,PAYMENTS FOR LEGAL SERVICES,5902446146,1000082695
09.12.2020,ASSET MANAGEMENT,ASHFORDS LLP OFFICE ACCOUNT,425,DISREPAIR,PAYMENTS FOR LEGAL SERVICES,5902446147,1000082695
09.12.2020,ASSET MANAGEMENT,ASHFORDS LLP OFFICE ACCOUNT,425,DISREPAIR,PAYMENTS FOR LEGAL SERVICES,5902446148,1000082695
09.12.2020,ASSET MANAGEMENT,ASHFORDS LLP OFFICE ACCOUNT,425,DISREPAIR,PAYMENTS FOR LEGAL SERVICES,5902446152,1000082695
09.12.2020,ASSET MANAGEMENT,ASHFORDS LLP OFFICE ACCOUNT,425,DISREPAIR,PAYMENTS FOR LEGAL SERVICES,5902446153,1000082695
09.12.2020,ASSET MANAGEMENT,ASHFORDS LLP OFFICE ACCOUNT,425,DISREPAIR,PAYMENTS FOR LEGAL SERVICES,5902446154,1000082695
09.12.2020,ASSET MANAGEMENT,ASHFORDS LLP OFFICE ACCOUNT,425,DISREPAIR,PAYMENTS FOR LEGAL SERVICES,5902446155,1000082695
09.12.2020,ASSET MANAGEMENT,ASHFORDS LLP OFFICE ACCOUNT,425,DISREPAIR,PAYMENTS FOR LEGAL SERVICES,5902446156,1000082695
09.12.2020,ASSET MANAGEMENT,ASHFORDS LLP OFFICE ACCOUNT,425,DISREPAIR,PAYMENTS FOR LEGAL SERVICES,5902446158,1000082695
09.12.2020,ASSET MANAGEMENT,ASHFORDS LLP OFFICE ACCOUNT,425,DISREPAIR,PAYMENTS FOR LEGAL SERVICES,5902446159,1000082695
09.12.2020,ASSET MANAGEMENT,ASHFORDS LLP OFFICE ACCOUNT,425,DISREPAIR,PAYMENTS FOR LEGAL SERVICES,5902446160,1000082695
09.12.2020,ASSET MANAGEMENT,ASHFORDS LLP OFFICE ACCOUNT,425,DISREPAIR,PAYMENTS FOR LEGAL SERVICES,5902446162,1000082695
09.12.2020,ASSET MANAGEMENT,ASHFORDS LLP OFFICE ACCOUNT,425,DISREPAIR,PAYMENTS FOR LEGAL SERVICES,5902446163,1000082695
09.12.2020,ASSET MANAGEMENT,ASHFORDS LLP OFFICE ACCOUNT,425,DISREPAIR,PAYMENTS FOR LEGAL SERVICES,5902446164,1000082695
09.12.2020,ASSET MANAGEMENT,ASHFORDS LLP OFFICE ACCOUNT,425,DISREPAIR,PAYMENTS FOR LEGAL SERVICES,5902446168,1000082695
09.12.2020,ASSET MANAGEMENT,ASHFORDS LLP OFFICE ACCOUNT,425,DISREPAIR,PAYMENTS FOR LEGAL SERVICES,5902446169,1000082695
09.12.2020,ASSET MANAGEMENT,ASHFORDS LLP OFFICE ACCOUNT,425,DISREPAIR,PAYMENTS FOR LEGAL SERVICES,5902446172,1000082695
09.12.2020,ASSET MANAGEMENT,ASHFORDS LLP OFFICE ACCOUNT,425,DISREPAIR,PAYMENTS FOR LEGAL SERVICES,5902446177,1000082695
09.12.2020,ASSET MANAGEMENT,ASHFORDS LLP OFFICE ACCOUNT,425.25,DISREPAIR,PAYMENTS FOR LEGAL SERVICES,5902446150,1000082695
09.12.2020,ASSET MANAGEMENT,ASHFORDS LLP OFFICE ACCOUNT,425.25,DISREPAIR,PAYMENTS FOR LEGAL SERVICES,5902446165,1000082695
09.12.2020,ASSET MANAGEMENT,ASHFORDS LLP OFFICE ACCOUNT,850,DISREPAIR,PAYMENTS FOR LEGAL SERVICES,5902446145,1000082695
09.12.2020,ASSET MANAGEMENT,ASHFORDS LLP OFFICE ACCOUNT,850,DISREPAIR,PAYMENTS FOR LEGAL SERVICES,5902446157,1000082695
09.12.2020,ASSET MANAGEMENT,ASHFORDS LLP OFFICE ACCOUNT,850,DISREPAIR,PAYMENTS FOR LEGAL SERVICES,5902446175,1000082695
09.12.2020,ASSET MANAGEMENT,ASHFORDS LLP OFFICE ACCOUNT,"1,750.00",DISREPAIR,PAYMENTS FOR LEGAL SERVICES,5902446140,1000082695
09.12.2020,ASSET MANAGEMENT,ASHFORDS LLP OFFICE ACCOUNT,"1,750.00",DISREPAIR,PAYMENTS FOR LEGAL SERVICES,5902446141,1000082695
09.12.2020,ASSET MANAGEMENT,ASHFORDS LLP OFFICE ACCOUNT,"1,750.00",DISREPAIR,PAYMENTS FOR LEGAL SERVICES,5902446142,1000082695
09.12.2020,ASSET MANAGEMENT,ASHFORDS LLP OFFICE ACCOUNT,"1,750.00",DISREPAIR,PAYMENTS FOR LEGAL SERVICES,5902446143,1000082695
09.12.2020,ASSET MANAGEMENT,LONDON FIRE BRIGADE,346,ENG CONTRACTS (NORTH),LIFTS,5902446278,1000083629
09.12.2020,CENTRAL FUNCTIONS,BRESLIN CONSTRUCTION LTD,"8,214.30",COMMERCIAL PROPERTIES,BUILDING R&M,2103184867,3000001948
09.12.2020,CHIEF EXECUTIVE,BELLENDEN SIGNS LTD,"1,495.00",CAPITAL PS (REGEN),CONSTRUCTION FEES - ARCHITECT,5902446211,1704661
09.12.2020,CHIEF EXECUTIVE,AUTO SISTANCE LTD,"1,334.00",CAPITAL PS (REGEN),CONSTRUCTION FEES  - EXTERNAL,5902446213,1000070536
09.12.2020,CHIEF EXECUTIVE,KALMARS COMMERCIAL LTD,"66,750.00",CAPITAL PS (REGEN),LAND & BUILDINGS ACQUISITION FEES,5902446258,1000081844
09.12.2020,CHILDREN AND ADULT,FAITHFUL & GOULD,"5,800.00",CAPITAL PS (EDUCATION),CONSTRUCTION,5902446206,1000061390
09.12.2020,CHILDREN AND ADULT,FAITHFUL & GOULD,"33,859.82",CAPITAL PS (EDUCATION),CONSTRUCTION FEES,5902446261,1000061390
09.12.2020,CHILDREN AND ADULT,PREMIER ROOFING AND CONSTRUCTION LTD,"8,370.00",CAPITAL PS (EDUCATION),CONSTRUCTION MAIN CONTRACT,2103184910,3000002158
09.12.2020,CHILDREN AND FAMILIES,REDACTED PERSONAL DATA,"1,750.00",CARELEAVER UNIV SUPP,OTHER PAYMENTS FOR CLIENTS,REDACTED,REDACTED
09.12.2020,CHILDREN AND FAMILIES,REDACTED PERSONAL DATA,"1,750.00",CARELEAVER UNIV SUPP,OTHER PAYMENTS FOR CLIENTS,REDACTED,REDACTED
09.12.2020,CHILDREN AND FAMILIES,REDACTED PERSONAL DATA,"1,750.00",CARELEAVER UNIV SUPP,OTHER PAYMENTS FOR CLIENTS,REDACTED,REDACTED
09.12.2020,CHILDREN AND FAMILIES,REDACTED PERSONAL DATA,"1,750.00",CARELEAVER UNIV SUPP,OTHER PAYMENTS FOR CLIENTS,REDACTED,REDACTED
09.12.2020,CHILDREN AND FAMILIES,REDACTED PERSONAL DATA,875,CARELEAVER UNIV SUPP,OTHER PAYMENTS FOR CLIENTS,REDACTED,REDACTED
09.12.2020,CHILDREN AND FAMILIES,REDACTED PERSONAL DATA,"1,750.00",CARELEAVER UNIV SUPP,OTHER PAYMENTS FOR CLIENTS,REDACTED,REDACTED
09.12.2020,CHILDREN AND FAMILIES,REDACTED PERSONAL DATA,"1,750.00",CARELEAVER UNIV SUPP,OTHER PAYMENTS FOR CLIENTS,REDACTED,REDACTED
09.12.2020,CHILDREN AND FAMILIES,REDACTED PERSONAL DATA,"1,750.00",CARELEAVER UNIV SUPP,OTHER PAYMENTS FOR CLIENTS,REDACTED,REDACTED
09.12.2020,CHILDREN AND FAMILIES,REDACTED PERSONAL DATA,"1,750.00",CARELEAVER UNIV SUPP,OTHER PAYMENTS FOR CLIENTS,REDACTED,REDACTED
09.12.2020,CHILDREN AND FAMILIES,REDACTED PERSONAL DATA,"1,750.00",CARELEAVER UNIV SUPP,OTHER PAYMENTS FOR CLIENTS,REDACTED,REDACTED
09.12.2020,CHILDREN AND FAMILIES,REDACTED PERSONAL DATA,"1,750.00",CARELEAVER UNIV SUPP,OTHER PAYMENTS FOR CLIENTS,REDACTED,REDACTED
09.12.2020,CHILDREN AND FAMILIES,REDACTED PERSONAL DATA,"1,750.00",CARELEAVER UNIV SUPP,OTHER PAYMENTS FOR CLIENTS,REDACTED,REDACTED
09.12.2020,CHILDREN AND FAMILIES,REDACTED PERSONAL DATA,"1,750.00",CARELEAVER UNIV SUPP,OTHER PAYMENTS FOR CLIENTS,REDACTED,REDACTED
09.12.2020,CHILDREN AND FAMILIES,REDACTED PERSONAL DATA,"1,250.00",CARELEAVER UNIV SUPP,OTHER PAYMENTS FOR CLIENTS,REDACTED,REDACTED
09.12.2020,CHILDREN AND FAMILIES,REDACTED PERSONAL DATA,"1,750.00",CARELEAVER UNIV SUPP,OTHER PAYMENTS FOR CLIENTS,REDACTED,REDACTED
09.12.2020,CHILDREN AND FAMILIES,REDACTED PERSONAL DATA,875,CARELEAVER UNIV SUPP,OTHER PAYMENTS FOR CLIENTS,REDACTED,REDACTED
09.12.2020,CHILDREN AND FAMILIES,REDACTED PERSONAL DATA,"1,750.00",CARELEAVER UNIV SUPP,OTHER PAYMENTS FOR CLIENTS,REDACTED,REDACTED
09.12.2020,CHILDREN AND FAMILIES,REDACTED PERSONAL DATA,"1,750.00",CARELEAVER UNIV SUPP,OTHER PAYMENTS FOR CLIENTS,REDACTED,REDACTED
09.12.2020,CHILDREN AND FAMILIES,RESTORATION CARE & SERVICES LTD,"17,089.86",CHILDREN�S RESID,RESIDENTIAL CARE,2103184716,1000081085
09.12.2020,CHILDREN AND FAMILIES,NEGOTIATORS LTD,450,CONTACT SERVICE,OTHER PAYMENTS FOR CLIENTS,5902446151,1000075672
09.12.2020,CHILDREN AND FAMILIES,REDACTED PERSONAL DATA,300,FE SUPPORT,CLIENT TRANSPORT,REDACTED,REDACTED
09.12.2020,CHILDREN AND FAMILIES,REDACTED PERSONAL DATA,300,FE SUPPORT,CLIENT TRANSPORT,REDACTED,REDACTED
09.12.2020,CHILDREN AND FAMILIES,REDACTED PERSONAL DATA,500,FE SUPPORT,OTHER PAYMENTS FOR CLIENTS,REDACTED,REDACTED
09.12.2020,CHILDREN AND FAMILIES,REDACTED PERSONAL DATA,300,FE SUPPORT,CLIENT TRANSPORT,REDACTED,REDACTED
09.12.2020,CHILDREN AND FAMILIES,REDACTED PERSONAL DATA,500,FE SUPPORT,OTHER PAYMENTS FOR CLIENTS,REDACTED,REDACTED
09.12.2020,CHILDREN AND FAMILIES,TACT,"3,060.00",FRIENDS & FAMILY FOSTERING,EXTERNAL AGENCIES AND BODIES,2103184700,1000012941
09.12.2020,CHILDREN AND FAMILIES,TACT,"3,654.00",FRIENDS & FAMILY FOSTERING,EXTERNAL AGENCIES AND BODIES,2103184709,1000012941
09.12.2020,CHILDREN AND FAMILIES,TACT,"6,210.00",FRIENDS & FAMILY FOSTERING,EXTERNAL AGENCIES AND BODIES,2103184715,1000012941
09.12.2020,CHILDREN AND FAMILIES,FIVE RIVERS CHILD CARE LTD,"3,284.14",FRIENDS & FAMILY FOSTERING,EXTERNAL AGENCIES AND BODIES,2103184692,1000018792
09.12.2020,CHILDREN AND FAMILIES,FIVE RIVERS CHILD CARE LTD,"3,408.86",FRIENDS & FAMILY FOSTERING,EXTERNAL AGENCIES AND BODIES,2103184708,1000018792
09.12.2020,CHILDREN AND FAMILIES,NATIONAL FOSTERING AGENCY,790.58,FRIENDS & FAMILY FOSTERING,EXTERNAL AGENCIES AND BODIES,2103184712,1000038868
09.12.2020,CHILDREN AND FAMILIES,NATIONAL FOSTERING AGENCY,999.3,FRIENDS & FAMILY FOSTERING,EXTERNAL AGENCIES AND BODIES,2103184696,1000038868
09.12.2020,CHILDREN AND FAMILIES,NATIONAL FOSTERING AGENCY,"1,148.58",FRIENDS & FAMILY FOSTERING,EXTERNAL AGENCIES AND BODIES,2103184711,1000038868
09.12.2020,CHILDREN AND FAMILIES,NATIONAL FOSTERING AGENCY,"2,612.11",FRIENDS & FAMILY FOSTERING,EXTERNAL AGENCIES AND BODIES,2103184698,1000038868
09.12.2020,CHILDREN AND FAMILIES,NATIONAL FOSTERING AGENCY,"3,145.80",FRIENDS & FAMILY FOSTERING,EXTERNAL AGENCIES AND BODIES,2103184694,1000038868
09.12.2020,CHILDREN AND FAMILIES,NATIONAL FOSTERING AGENCY,"3,210.00",FRIENDS & FAMILY FOSTERING,EXTERNAL AGENCIES AND BODIES,2103184702,1000038868
09.12.2020,CHILDREN AND FAMILIES,NATIONAL FOSTERING AGENCY,"3,210.00",FRIENDS & FAMILY FOSTERING,EXTERNAL AGENCIES AND BODIES,2103184710,1000038868
09.12.2020,CHILDREN AND FAMILIES,NATIONAL FOSTERING AGENCY,"3,210.00",FRIENDS & FAMILY FOSTERING,EXTERNAL AGENCIES AND BODIES,2103184713,1000038868
09.12.2020,CHILDREN AND FAMILIES,NATIONAL FOSTERING AGENCY,"3,214.20",FRIENDS & FAMILY FOSTERING,EXTERNAL AGENCIES AND BODIES,2103184695,1000038868
09.12.2020,CHILDREN AND FAMILIES,NATIONAL FOSTERING AGENCY,"4,264.20",FRIENDS & FAMILY FOSTERING,EXTERNAL AGENCIES AND BODIES,2103184706,1000038868
09.12.2020,CHILDREN AND FAMILIES,NATIONAL FOSTERING AGENCY,"4,410.00",FRIENDS & FAMILY FOSTERING,EXTERNAL AGENCIES AND BODIES,2103184703,1000038868
09.12.2020,CHILDREN AND FAMILIES,NATIONAL FOSTERING AGENCY,"4,410.00",FRIENDS & FAMILY FOSTERING,EXTERNAL AGENCIES AND BODIES,2103184705,1000038868
09.12.2020,CHILDREN AND FAMILIES,NATIONAL FOSTERING AGENCY,"4,594.32",FRIENDS & FAMILY FOSTERING,EXTERNAL AGENCIES AND BODIES,2103184704,1000038868
09.12.2020,CHILDREN AND FAMILIES,NATIONAL FOSTERING AGENCY,"5,044.20",FRIENDS & FAMILY FOSTERING,EXTERNAL AGENCIES AND BODIES,2103184691,1000038868
09.12.2020,CHILDREN AND FAMILIES,NATIONAL FOSTERING AGENCY,"5,095.80",FRIENDS & FAMILY FOSTERING,EXTERNAL AGENCIES AND BODIES,2103184699,1000038868
09.12.2020,CHILDREN AND FAMILIES,NATIONAL FOSTERING AGENCY,"5,815.50",FRIENDS & FAMILY FOSTERING,EXTERNAL AGENCIES AND BODIES,2103184693,1000038868
09.12.2020,CHILDREN AND FAMILIES,SUNBEAM FOSTERING AGENCY LTD,"3,321.43",FRIENDS & FAMILY FOSTERING,EXTERNAL AGENCIES AND BODIES,2103184697,1000041457
09.12.2020,CHILDREN AND FAMILIES,FOSTERING SUPPORT GROUP LTD,"8,867.70",FRIENDS & FAMILY FOSTERING,EXTERNAL AGENCIES AND BODIES,2103184690,1000065830
09.12.2020,CHILDREN AND FAMILIES,THE OPEN TOY BOX,"4,911.00",FRIENDS & FAMILY FOSTERING,ADDITIONAL PAYMENTS TO AGENCIES/CARERS,2103184689,1000085910
09.12.2020,CHILDREN AND FAMILIES,REDACTED PERSONAL DATA,"2,000.00",LEAVING CARE GRANT,OTHER PAYMENTS FOR CLIENTS,REDACTED,REDACTED
09.12.2020,CHILDREN AND FAMILIES,HE SAFEGUARDING LTD,375,SFS MGMT & SUPPORT,PROFESSIONAL FEES,5902446224,1000077530
09.12.2020,CHILDREN AND FAMILIES,REDACTED PERSONAL DATA,388.04,SPECIAL GUARDIANSHIP,PAYMENTS TO CARERS,REDACTED,REDACTED
09.12.2020,CHILDREN AND FAMILIES,REDACTED PERSONAL DATA,342.45,SPECIAL GUARDIANSHIP,PAYMENTS TO CARERS,REDACTED,REDACTED
09.12.2020,CHILDREN AND FAMILIES,REDACTED PERSONAL DATA,389.34,SPECIAL GUARDIANSHIP,PAYMENTS TO CARERS,REDACTED,REDACTED
09.12.2020,CHILDREN AND FAMILIES,REDACTED PERSONAL DATA,356.15,SPECIAL GUARDIANSHIP,PAYMENTS TO CARERS,REDACTED,REDACTED
09.12.2020,CHILDREN AND FAMILIES,REDACTED PERSONAL DATA,403.04,SPECIAL GUARDIANSHIP,PAYMENTS TO CARERS,REDACTED,REDACTED
09.12.2020,CHILDREN AND FAMILIES,REDACTED PERSONAL DATA,343.05,SPECIAL GUARDIANSHIP,PAYMENTS TO CARERS,REDACTED,REDACTED
09.12.2020,CHILDREN AND FAMILIES,REDACTED PERSONAL DATA,525,SPECIAL GUARDIANSHIP,PAYMENTS TO CARERS,REDACTED,REDACTED
09.12.2020,CHILDREN AND FAMILIES,REDACTED PERSONAL DATA,525,SPECIAL GUARDIANSHIP,PAYMENTS TO CARERS,REDACTED,REDACTED
09.12.2020,CHILDREN AND FAMILIES,REDACTED PERSONAL DATA,395,SPECIAL GUARDIANSHIP,PAYMENTS TO CARERS,REDACTED,REDACTED
09.12.2020,CHILDREN AND FAMILIES,REDACTED PERSONAL DATA,341.15,SPECIAL GUARDIANSHIP,PAYMENTS TO CARERS,REDACTED,REDACTED
09.12.2020,CHILDREN AND FAMILIES,REDACTED PERSONAL DATA,535.62,SPECIAL GUARDIANSHIP,PAYMENTS TO CARERS,REDACTED,REDACTED
09.12.2020,CHILDREN AND FAMILIES,ZENITH CARS LTD,895,TEAM B,HIRED VEHICLES,5902446217,1000070570
09.12.2020,CHILDREN AND FAMILIES,ZENITH CARS LTD,275,TEAM C,HIRED VEHICLES,5902446217,1000070570
09.12.2020,CHILDREN AND FAMILIES,ZENITH CARS LTD,"3,085.00",TEAM D,HIRED VEHICLES,5902446217,1000070570
09.12.2020,CHILDREN AND FAMILIES,SOUTH OF THE RIVER INVESTMENTS LTD,"2,181.00",TEMP ACCOM FOR IH,EXTERNAL AGENCIES AND BODIES,5902446198,1000073638
09.12.2020,CHILDREN'S SERVICES,BATH SPA UNIVERSITY,"9,250.00",SCHOLARSHIP SCHEME,EXTERNAL AGENCIES AND BODIES,5902446259,1000070997
09.12.2020,CHILDREN'S SERVICES,UNIVERSITY ENGINEERING ACADEMY,"2,687.18",SEN - ACADEMY AND FREE SCHOOLS,STATEMENTED FEES,2103184929,1000074104
09.12.2020,CHILDREN'S SERVICES,UNIVERSITY ENGINEERING ACADEMY,"2,687.18",SEN - ACADEMY AND FREE SCHOOLS,STATEMENTED FEES,2103184932,1000074104
09.12.2020,CHILDREN'S SERVICES,UNIVERSITY ENGINEERING ACADEMY,"2,687.18",SEN - ACADEMY AND FREE SCHOOLS,STATEMENTED FEES,2103184938,1000074104
09.12.2020,CHILDREN'S SERVICES,UNIVERSITY ENGINEERING ACADEMY,"2,687.18",SEN - ACADEMY AND FREE SCHOOLS,STATEMENTED FEES,2103184939,1000074104
09.12.2020,CHILDREN'S SERVICES,UNIVERSITY ENGINEERING ACADEMY,"5,374.36",SEN - ACADEMY AND FREE SCHOOLS,STATEMENTED FEES,2103184933,1000074104
09.12.2020,CHILDREN'S SERVICES,UNIVERSITY ENGINEERING ACADEMY,"5,374.36",SEN - ACADEMY AND FREE SCHOOLS,STATEMENTED FEES,2103184934,1000074104
09.12.2020,CHILDREN'S SERVICES,UNIVERSITY ENGINEERING ACADEMY,"5,374.36",SEN - ACADEMY AND FREE SCHOOLS,STATEMENTED FEES,2103184936,1000074104
09.12.2020,CHILDREN'S SERVICES,UNIVERSITY ENGINEERING ACADEMY,"8,061.54",SEN - ACADEMY AND FREE SCHOOLS,STATEMENTED FEES,2103184930,1000074104
09.12.2020,CHILDREN'S SERVICES,UNIVERSITY ENGINEERING ACADEMY,"8,541.87",SEN - ACADEMY AND FREE SCHOOLS,STATEMENTED FEES,2103184931,1000074104
09.12.2020,CHILDREN'S SERVICES,UNIVERSITY ENGINEERING ACADEMY,"8,541.87",SEN - ACADEMY AND FREE SCHOOLS,STATEMENTED FEES,2103184935,1000074104
09.12.2020,CHILDREN'S SERVICES,UNIVERSITY ENGINEERING ACADEMY,"8,541.87",SEN - ACADEMY AND FREE SCHOOLS,STATEMENTED FEES,2103184937,1000074104
09.12.2020,CHILDREN'S SERVICES,THE COMPLETE WORKS INDEPENDENT SCHOOL,"4,982.75",SEN - AEP,STATEMENTED FEES,2103184945,1000033256
09.12.2020,CHILDREN'S SERVICES,FLEET TUTORS,"1,122.00",SEN - AEP,STATEMENTED FEES,2103184940,1000044820
09.12.2020,CHILDREN'S SERVICES,FLEET TUTORS,"1,278.00",SEN - AEP,STATEMENTED FEES,2103184941,1000044820
09.12.2020,CHILDREN'S SERVICES,FLEET TUTORS,"2,397.00",SEN - AEP,STATEMENTED FEES,2103184942,1000044820
09.12.2020,CHILDREN'S SERVICES,FLEET TUTORS,"3,090.00",SEN - AEP,STATEMENTED FEES,2103184943,1000044820
